Department Family,Entity,Date,Expense Type,Expense Area,Supplier,Transaction Number,Amount,Vat No
Department of Health,CT Revenue Funds,09/09/2016,Medical Consultant SLA From Other NHS Bodies.,Bridgnorth Hospital Outpatients Cardiology,THE ROYAL WOLVERHAMPTON HOSPITALS NHS TRUST,0000195971,2006.5,654 9478 86
Department of Health,CT Revenue Funds,28/09/2016,Additions - Assets Under Construction,Balance Sheet Suspense Dental Equipment,HENRY SCHEIN MINERVA - CONSUMABLES,F166140083,29.85,573 7789 79
Department of Health,CT Revenue Funds,28/09/2016,Additions - Assets Under Construction,Balance Sheet Suspense Dental Equipment,HENRY SCHEIN MINERVA - CONSUMABLES,F166140083,149.23,573 7789 79
Department of Health,CT Revenue Funds,28/09/2016,Additions - Assets Under Construction,Balance Sheet Suspense Dental Equipment,HENRY SCHEIN MINERVA - CONSUMABLES,F166152852,13674.26,573 7789 79
Department of Health,CT Revenue Funds,28/09/2016,Additions - Assets Under Construction,Balance Sheet Suspense Dental Equipment,HENRY SCHEIN MINERVA - CONSUMABLES,F166152852,2734.85,573 7789 79
Department of Health,CT Revenue Funds,09/09/2016,Medical Consultant SLA From Other NHS Bodies.,Bridgnorth Hospital Outpatients Dermatology,THE ROYAL WOLVERHAMPTON HOSPITALS NHS TRUST,0000195971,889.46,654 9478 86
Department of Health,CT Revenue Funds,09/09/2016,Medical Consultant SLA From Other NHS Bodies.,Bridgnorth Hospital Outpatients ENT,THE ROYAL WOLVERHAMPTON HOSPITALS NHS TRUST,0000195971,1832.17,654 9478 86
Department of Health,CT Revenue Funds,15/09/2016,Additions - Assets Under Construction,Balance Sheet Suspense I/T Sophos Licences,SBL (SOFT BOX) LTD,INV83845,40355,
Department of Health,CT Revenue Funds,15/09/2016,Additions - Assets Under Construction,Balance Sheet Suspense I/T Sophos Licences,SBL (SOFT BOX) LTD,INV83845,8071,
Department of Health,CT Revenue Funds,01/09/2016,Additions - Assets Under Construction,Balance Sheet Suspense IT Data Warehouse,MISCO COMPUTER SUPPLIES LTD,11078706,194.98,494 1756 15
Department of Health,CT Revenue Funds,01/09/2016,Additions - Assets Under Construction,Balance Sheet Suspense IT Data Warehouse,MISCO COMPUTER SUPPLIES LTD,11078706,1.59,494 1756 15
Department of Health,CT Revenue Funds,01/09/2016,Additions - Assets Under Construction,Balance Sheet Suspense IT Data Warehouse,MISCO COMPUTER SUPPLIES LTD,11078706,7.94,494 1756 15
Department of Health,CT Revenue Funds,01/09/2016,Additions - Assets Under Construction,Balance Sheet Suspense IT Data Warehouse,MISCO COMPUTER SUPPLIES LTD,11078706,974.93,494 1756 15
Department of Health,CT Revenue Funds,15/09/2016,Additions - Assets Under Construction,Balance Sheet Suspense IT Data Warehouse,SOFTCAT,INV01451525,16396.6,
Department of Health,CT Revenue Funds,15/09/2016,Additions - Assets Under Construction,Balance Sheet Suspense IT Data Warehouse,SOFTCAT,INV01451525,3279.32,
Department of Health,CT Revenue Funds,15/09/2016,Additions - Assets Under Construction,Balance Sheet Suspense IT Replacement Hardware,MISCO COMPUTER SUPPLIES LTD,11081864,3750,494 1756 15
Department of Health,CT Revenue Funds,15/09/2016,Additions - Assets Under Construction,Balance Sheet Suspense IT Replacement Hardware,MISCO COMPUTER SUPPLIES LTD,11081864,18750,494 1756 15
Department of Health,CT Revenue Funds,09/09/2016,Medical Consultant SLA From Other NHS Bodies.,Bridgnorth Hospital Outpatients Lower GI,THE ROYAL WOLVERHAMPTON HOSPITALS NHS TRUST,0000195971,574.58,654 9478 86
Department of Health,CT Revenue Funds,09/09/2016,Absorbents Non X Ray Detectable,South West Interdisciplinary Teams,NHS SUPPLY CHAIN,1017105555,0.01,654 4347 29
Department of Health,CT Revenue Funds,09/09/2016,Absorbents Non X Ray Detectable,Bishops Castle Hospital Inpatient Ward,NHS SUPPLY CHAIN,1017105555,1.06,654 4347 29
Department of Health,CT Revenue Funds,09/09/2016,Absorbents Non X Ray Detectable,South West Interdisciplinary Teams,NHS SUPPLY CHAIN,1017105555,1.32,654 4347 29
Department of Health,CT Revenue Funds,09/09/2016,Absorbents Non X Ray Detectable,Bridgnorth Hospital Minor Injuries Unit,NHS SUPPLY CHAIN,1017105555,0.02,654 4347 29
Department of Health,CT Revenue Funds,09/09/2016,Absorbents Non X Ray Detectable,Bridgnorth Hospital Minor Injuries Unit,NHS SUPPLY CHAIN,1017105555,1.16,654 4347 29
Department of Health,CT Revenue Funds,09/09/2016,Absorbents Non X Ray Detectable,Bridgnorth Hospital Minor Injuries Unit,NHS SUPPLY CHAIN,1017105555,9.18,654 4347 29
Department of Health,CT Revenue Funds,09/09/2016,Absorbents Non X Ray Detectable,South West Interdisciplinary Teams,NHS SUPPLY CHAIN,1017105555,0.27,654 4347 29
Department of Health,CT Revenue Funds,09/09/2016,Absorbents Non X Ray Detectable,Ludlow Hospital Inpatient Wards,NHS SUPPLY CHAIN,1017105555,0.34,654 4347 29
Department of Health,CT Revenue Funds,09/09/2016,Absorbents Non X Ray Detectable,MSK Rheumatology,NHS SUPPLY CHAIN,1017105555,14.76,654 4347 29
Department of Health,CT Revenue Funds,09/09/2016,Absorbents Non X Ray Detectable,Bridgnorth Hospital Minor Injuries Unit,NHS SUPPLY CHAIN,1017105555,0.01,654 4347 29
Department of Health,CT Revenue Funds,09/09/2016,Absorbents Non X Ray Detectable,South West Interdisciplinary Teams,NHS SUPPLY CHAIN,1017105555,0.92,654 4347 29
Department of Health,CT Revenue Funds,09/09/2016,Absorbents Non X Ray Detectable,South West Interdisciplinary Teams,NHS SUPPLY CHAIN,1017105555,3.06,654 4347 29
Department of Health,CT Revenue Funds,09/09/2016,Absorbents Non X Ray Detectable,Bishops Castle Hospital Inpatient Ward,NHS SUPPLY CHAIN,1017105555,-0.01,654 4347 29
Department of Health,CT Revenue Funds,09/09/2016,Absorbents Non X Ray Detectable,South East Interdisciplinary Teams,NHS SUPPLY CHAIN,1017105555,0.62,654 4347 29
Department of Health,CT Revenue Funds,09/09/2016,Absorbents Non X Ray Detectable,South West Interdisciplinary Teams,NHS SUPPLY CHAIN,1017105555,0.01,654 4347 29
Department of Health,CT Revenue Funds,09/09/2016,Absorbents Non X Ray Detectable,South West Interdisciplinary Teams,NHS SUPPLY CHAIN,1017105555,4.59,654 4347 29
Department of Health,CT Revenue Funds,09/09/2016,Absorbents Non X Ray Detectable,Shrewsbury and Atcham DAART,NHS SUPPLY CHAIN,1017105555,0.31,654 4347 29
Department of Health,CT Revenue Funds,09/09/2016,Absorbents Non X Ray Detectable,Shrewsbury and Atcham DAART,NHS SUPPLY CHAIN,1017105555,2.05,654 4347 29
Department of Health,CT Revenue Funds,09/09/2016,Absorbents Non X Ray Detectable,Shrewsbury and Atcham DAART,NHS SUPPLY CHAIN,1017105555,1.53,654 4347 29
Department of Health,CT Revenue Funds,09/09/2016,Absorbents Non X Ray Detectable,MSK Rheumatology,NHS SUPPLY CHAIN,1017105555,0.01,654 4347 29
Department of Health,CT Revenue Funds,09/09/2016,Absorbents Non X Ray Detectable,Ludlow Hospital Inpatient Wards,NHS SUPPLY CHAIN,1017105555,0.07,654 4347 29
Department of Health,CT Revenue Funds,09/09/2016,Absorbents Non X Ray Detectable,South West Interdisciplinary Teams,NHS SUPPLY CHAIN,1017105555,0.03,654 4347 29
Department of Health,CT Revenue Funds,09/09/2016,Absorbents Non X Ray Detectable,South West Interdisciplinary Teams,NHS SUPPLY CHAIN,1017105555,0.01,654 4347 29
Department of Health,CT Revenue Funds,09/09/2016,Absorbents Non X Ray Detectable,South West Interdisciplinary Teams,NHS SUPPLY CHAIN,1017105555,15.3,654 4347 29
Department of Health,CT Revenue Funds,09/09/2016,Absorbents Non X Ray Detectable,Bridgnorth Hospital Minor Injuries Unit,NHS SUPPLY CHAIN,1017105555,0.23,654 4347 29
Department of Health,CT Revenue Funds,09/09/2016,Absorbents Non X Ray Detectable,Bridgnorth Hospital Minor Injuries Unit,NHS SUPPLY CHAIN,1017105555,1.84,654 4347 29
Department of Health,CT Revenue Funds,09/09/2016,Absorbents Non X Ray Detectable,Shrewsbury and Atcham DAART,NHS SUPPLY CHAIN,1017105555,0.41,654 4347 29
Department of Health,CT Revenue Funds,09/09/2016,Absorbents Non X Ray Detectable,Bishops Castle Hospital Inpatient Ward,NHS SUPPLY CHAIN,1017105555,0.21,654 4347 29
Department of Health,CT Revenue Funds,09/09/2016,Absorbents Non X Ray Detectable,MSK Rheumatology,NHS SUPPLY CHAIN,1017105555,2.95,654 4347 29
Department of Health,CT Revenue Funds,09/09/2016,Absorbents Non X Ray Detectable,South East Interdisciplinary Teams,NHS SUPPLY CHAIN,1017105555,3.12,654 4347 29
Department of Health,CT Revenue Funds,20/09/2016,Absorbents Non X Ray Detectable,Ludlow Hospital Inpatient Wards,NHS SUPPLY CHAIN,1017110056,0.07,654 4347 29
Department of Health,CT Revenue Funds,20/09/2016,Absorbents Non X Ray Detectable,Whitchurch Hospital Inpatient Ward,NHS SUPPLY CHAIN,1017110056,0.41,654 4347 29
Department of Health,CT Revenue Funds,20/09/2016,Absorbents Non X Ray Detectable,Telford North Community Nursing,NHS SUPPLY CHAIN,1017110056,-0.02,654 4347 29
Department of Health,CT Revenue Funds,20/09/2016,Absorbents Non X Ray Detectable,Bridgnorth Hospital Minor Injuries Unit,NHS SUPPLY CHAIN,1017110056,1.16,654 4347 29
Department of Health,CT Revenue Funds,20/09/2016,Absorbents Non X Ray Detectable,Telford South Community Nursing,NHS SUPPLY CHAIN,1017110056,8.88,654 4347 29
Department of Health,CT Revenue Funds,20/09/2016,Absorbents Non X Ray Detectable,Telford South Community Nursing,NHS SUPPLY CHAIN,1017110056,1.77,654 4347 29
Department of Health,CT Revenue Funds,20/09/2016,Absorbents Non X Ray Detectable,Bridgnorth Hospital Minor Injuries Unit,NHS SUPPLY CHAIN,1017110056,1.23,654 4347 29
Department of Health,CT Revenue Funds,20/09/2016,Absorbents Non X Ray Detectable,Bridgnorth Hospital Minor Injuries Unit,NHS SUPPLY CHAIN,1017110056,6.12,654 4347 29
Department of Health,CT Revenue Funds,20/09/2016,Absorbents Non X Ray Detectable,Bridgnorth Hospital Minor Injuries Unit,NHS SUPPLY CHAIN,1017110056,0.01,654 4347 29
Department of Health,CT Revenue Funds,20/09/2016,Absorbents Non X Ray Detectable,Ludlow Hospital Inpatient Wards,NHS SUPPLY CHAIN,1017110056,0.34,654 4347 29
Department of Health,CT Revenue Funds,20/09/2016,Absorbents Non X Ray Detectable,Whitchurch Hospital Inpatient Ward,NHS SUPPLY CHAIN,1017110056,2.05,654 4347 29
Department of Health,CT Revenue Funds,20/09/2016,Absorbents Non X Ray Detectable,Paediatric Phlebotomy,NHS SUPPLY CHAIN,1017110056,1,654 4347 29
Department of Health,CT Revenue Funds,20/09/2016,Absorbents Non X Ray Detectable,Telford North Community Nursing,NHS SUPPLY CHAIN,1017110056,3.24,654 4347 29
Department of Health,CT Revenue Funds,20/09/2016,Absorbents Non X Ray Detectable,Telford North Community Nursing,NHS SUPPLY CHAIN,1017110056,0.82,654 4347 29
Department of Health,CT Revenue Funds,20/09/2016,Absorbents Non X Ray Detectable,Shrewsbury and Atcham North Interdisciplinary Teams,NHS SUPPLY CHAIN,1017110056,-0.01,654 4347 29
Department of Health,CT Revenue Funds,20/09/2016,Absorbents Non X Ray Detectable,Telford South Community Nursing,NHS SUPPLY CHAIN,1017110056,-0.01,654 4347 29
Department of Health,CT Revenue Funds,20/09/2016,Absorbents Non X Ray Detectable,Whitchurch Hospital Minor Injuries Unit,NHS SUPPLY CHAIN,1017110056,3.12,654 4347 29
Department of Health,CT Revenue Funds,20/09/2016,Absorbents Non X Ray Detectable,Bishops Castle Hospital Inpatient Ward,NHS SUPPLY CHAIN,1017110056,-0.01,654 4347 29
Department of Health,CT Revenue Funds,20/09/2016,Absorbents Non X Ray Detectable,Whitchurch Hospital Minor Injuries Unit,NHS SUPPLY CHAIN,1017110056,0.62,654 4347 29
Department of Health,CT Revenue Funds,20/09/2016,Absorbents Non X Ray Detectable,Telford North Community Nursing,NHS SUPPLY CHAIN,1017110056,0.65,654 4347 29
Department of Health,CT Revenue Funds,20/09/2016,Absorbents Non X Ray Detectable,Ludlow Hospital Minor Injuries Unit,NHS SUPPLY CHAIN,1017110056,1.16,654 4347 29
Department of Health,CT Revenue Funds,20/09/2016,Absorbents Non X Ray Detectable,Ludlow Hospital Minor Injuries Unit,NHS SUPPLY CHAIN,1017110056,0.01,654 4347 29
Department of Health,CT Revenue Funds,20/09/2016,Absorbents Non X Ray Detectable,Bridgnorth Hospital Inpatient Ward,NHS SUPPLY CHAIN,1017110056,1,654 4347 29
Department of Health,CT Revenue Funds,20/09/2016,Absorbents Non X Ray Detectable,Telford North Community Nursing,NHS SUPPLY CHAIN,1017110056,4.1,654 4347 29
Department of Health,CT Revenue Funds,20/09/2016,Absorbents Non X Ray Detectable,Whitchurch Hospital Minor Injuries Unit,NHS SUPPLY CHAIN,1017110056,0.62,654 4347 29
Department of Health,CT Revenue Funds,20/09/2016,Absorbents Non X Ray Detectable,MSK Therapy,NHS SUPPLY CHAIN,1017110056,3.12,654 4347 29
Department of Health,CT Revenue Funds,20/09/2016,Absorbents Non X Ray Detectable,MSK Therapy,NHS SUPPLY CHAIN,1017110056,0.62,654 4347 29
Department of Health,CT Revenue Funds,20/09/2016,Absorbents Non X Ray Detectable,Bridgnorth Hospital Minor Injuries Unit,NHS SUPPLY CHAIN,1017110056,4,654 4347 29
Department of Health,CT Revenue Funds,20/09/2016,Absorbents Non X Ray Detectable,Bridgnorth Hospital Minor Injuries Unit,NHS SUPPLY CHAIN,1017110056,0.23,654 4347 29
Department of Health,CT Revenue Funds,20/09/2016,Absorbents Non X Ray Detectable,Shrewsbury and Atcham North Interdisciplinary Teams,NHS SUPPLY CHAIN,1017110056,8.2,654 4347 29
Department of Health,CT Revenue Funds,20/09/2016,Absorbents Non X Ray Detectable,Shrewsbury and Atcham North Interdisciplinary Teams,NHS SUPPLY CHAIN,1017110056,-0.03,654 4347 29
Department of Health,CT Revenue Funds,20/09/2016,Absorbents Non X Ray Detectable,Paediatric Phlebotomy,NHS SUPPLY CHAIN,1017110056,0.2,654 4347 29
Department of Health,CT Revenue Funds,20/09/2016,Absorbents Non X Ray Detectable,Bishops Castle Hospital Inpatient Ward,NHS SUPPLY CHAIN,1017110056,1.06,654 4347 29
Department of Health,CT Revenue Funds,20/09/2016,Absorbents Non X Ray Detectable,Bishops Castle Hospital Inpatient Ward,NHS SUPPLY CHAIN,1017110056,0.21,654 4347 29
Department of Health,CT Revenue Funds,20/09/2016,Absorbents Non X Ray Detectable,Telford North Community Nursing,NHS SUPPLY CHAIN,1017110056,-0.01,654 4347 29
Department of Health,CT Revenue Funds,20/09/2016,Absorbents Non X Ray Detectable,Whitchurch Hospital Minor Injuries Unit,NHS SUPPLY CHAIN,1017110056,3.12,654 4347 29
Department of Health,CT Revenue Funds,20/09/2016,Absorbents Non X Ray Detectable,Shrewsbury and Atcham North Interdisciplinary Teams,NHS SUPPLY CHAIN,1017110056,1.64,654 4347 29
Department of Health,CT Revenue Funds,20/09/2016,Absorbents Non X Ray Detectable,Ludlow Hospital Minor Injuries Unit,NHS SUPPLY CHAIN,1017110056,0.23,654 4347 29
Department of Health,CT Revenue Funds,20/09/2016,Absorbents Non X Ray Detectable,Bridgnorth Hospital Inpatient Ward,NHS SUPPLY CHAIN,1017110056,0.2,654 4347 29
Department of Health,CT Revenue Funds,20/09/2016,Absorbents Non X Ray Detectable,Bridgnorth Hospital Minor Injuries Unit,NHS SUPPLY CHAIN,1017110056,0.8,654 4347 29
Department of Health,CT Revenue Funds,20/09/2016,Absorbents Non X Ray Detectable,Bridgnorth Hospital Minor Injuries Unit,NHS SUPPLY CHAIN,1017110056,0.01,654 4347 29
Department of Health,CT Revenue Funds,20/09/2016,Absorbents Non X Ray Detectable,Bridgnorth Hospital Minor Injuries Unit,NHS SUPPLY CHAIN,1017114088,1.16,654 4347 29
Department of Health,CT Revenue Funds,20/09/2016,Absorbents Non X Ray Detectable,Bridgnorth Hospital Minor Injuries Unit,NHS SUPPLY CHAIN,1017114088,0.01,654 4347 29
Department of Health,CT Revenue Funds,20/09/2016,Absorbents Non X Ray Detectable,Ludlow Hospital Minor Injuries Unit,NHS SUPPLY CHAIN,1017114088,3.12,654 4347 29
Department of Health,CT Revenue Funds,20/09/2016,Absorbents Non X Ray Detectable,Ludlow Hospital Inpatient Wards,NHS SUPPLY CHAIN,1017114088,0.07,654 4347 29
Department of Health,CT Revenue Funds,20/09/2016,Absorbents Non X Ray Detectable,South West Interdisciplinary Teams,NHS SUPPLY CHAIN,1017114088,0.01,654 4347 29
Department of Health,CT Revenue Funds,20/09/2016,Absorbents Non X Ray Detectable,Shrewsbury and Atcham North Interdisciplinary Teams,NHS SUPPLY CHAIN,1017114088,3.28,654 4347 29
Department of Health,CT Revenue Funds,20/09/2016,Absorbents Non X Ray Detectable,Community Childrens Nurses,NHS SUPPLY CHAIN,1017114088,0.62,654 4347 29
Department of Health,CT Revenue Funds,20/09/2016,Absorbents Non X Ray Detectable,Rapid Response (T&W),NHS SUPPLY CHAIN,1017114088,12,654 4347 29
Department of Health,CT Revenue Funds,20/09/2016,Absorbents Non X Ray Detectable,Bridgnorth Hospital Minor Injuries Unit,NHS SUPPLY CHAIN,1017114088,0.23,654 4347 29
Department of Health,CT Revenue Funds,20/09/2016,Absorbents Non X Ray Detectable,Ludlow Hospital Inpatient Wards,NHS SUPPLY CHAIN,1017114088,0.34,654 4347 29
Department of Health,CT Revenue Funds,20/09/2016,Absorbents Non X Ray Detectable,Bridgnorth Hospital Minor Injuries Unit,NHS SUPPLY CHAIN,1017114088,1.23,654 4347 29
Department of Health,CT Revenue Funds,20/09/2016,Absorbents Non X Ray Detectable,Rapid Response (T&W),NHS SUPPLY CHAIN,1017114088,2.4,654 4347 29
Department of Health,CT Revenue Funds,20/09/2016,Absorbents Non X Ray Detectable,Telford North Community Nursing,NHS SUPPLY CHAIN,1017114088,4.05,654 4347 29
Department of Health,CT Revenue Funds,20/09/2016,Absorbents Non X Ray Detectable,North West Shropshire Interdisciplinary Teams,NHS SUPPLY CHAIN,1017114088,3.35,654 4347 29
Department of Health,CT Revenue Funds,20/09/2016,Absorbents Non X Ray Detectable,Bridgnorth Hospital Inpatient Ward,NHS SUPPLY CHAIN,1017114088,0.09,654 4347 29
Department of Health,CT Revenue Funds,20/09/2016,Absorbents Non X Ray Detectable,South West Interdisciplinary Teams,NHS SUPPLY CHAIN,1017114088,0.27,654 4347 29
Department of Health,CT Revenue Funds,20/09/2016,Absorbents Non X Ray Detectable,Ludlow Hospital Minor Injuries Unit,NHS SUPPLY CHAIN,1017114088,0.62,654 4347 29
Department of Health,CT Revenue Funds,20/09/2016,Absorbents Non X Ray Detectable,Shrewsbury and Atcham North Interdisciplinary Teams,NHS SUPPLY CHAIN,1017114088,-0.07,654 4347 29
Department of Health,CT Revenue Funds,20/09/2016,Absorbents Non X Ray Detectable,Shrewsbury and Atcham North Interdisciplinary Teams,NHS SUPPLY CHAIN,1017114088,-0.01,654 4347 29
Department of Health,CT Revenue Funds,20/09/2016,Absorbents Non X Ray Detectable,South East Interdisciplinary Teams,NHS SUPPLY CHAIN,1017114088,0.23,654 4347 29
Department of Health,CT Revenue Funds,20/09/2016,Absorbents Non X Ray Detectable,Bridgnorth Hospital Inpatient Ward,NHS SUPPLY CHAIN,1017114088,0.44,654 4347 29
Department of Health,CT Revenue Funds,20/09/2016,Absorbents Non X Ray Detectable,Bridgnorth Hospital Minor Injuries Unit,NHS SUPPLY CHAIN,1017114088,6.12,654 4347 29
Department of Health,CT Revenue Funds,20/09/2016,Absorbents Non X Ray Detectable,Bridgnorth Hospital Minor Injuries Unit,NHS SUPPLY CHAIN,1017114088,0.01,654 4347 29
Department of Health,CT Revenue Funds,20/09/2016,Absorbents Non X Ray Detectable,South West Interdisciplinary Teams,NHS SUPPLY CHAIN,1017114088,1.32,654 4347 29
Department of Health,CT Revenue Funds,20/09/2016,Absorbents Non X Ray Detectable,North West Shropshire Interdisciplinary Teams,NHS SUPPLY CHAIN,1017114088,0.67,654 4347 29
Department of Health,CT Revenue Funds,20/09/2016,Absorbents Non X Ray Detectable,Community Childrens Nurses,NHS SUPPLY CHAIN,1017114088,3.12,654 4347 29
Department of Health,CT Revenue Funds,20/09/2016,Absorbents Non X Ray Detectable,Telford North Community Nursing,NHS SUPPLY CHAIN,1017114088,0.81,654 4347 29
Department of Health,CT Revenue Funds,20/09/2016,Absorbents Non X Ray Detectable,South East Interdisciplinary Teams,NHS SUPPLY CHAIN,1017114088,1.16,654 4347 29
Department of Health,CT Revenue Funds,20/09/2016,Absorbents Non X Ray Detectable,South East Interdisciplinary Teams,NHS SUPPLY CHAIN,1017114088,0.01,654 4347 29
Department of Health,CT Revenue Funds,20/09/2016,Absorbents Non X Ray Detectable,Shrewsbury and Atcham North Interdisciplinary Teams,NHS SUPPLY CHAIN,1017114088,16.4,654 4347 29
Department of Health,CT Revenue Funds,20/09/2016,Absorbents Non X Ray Detectable,Telford North Community Nursing,NHS SUPPLY CHAIN,1017114088,-0.01,654 4347 29
Department of Health,CT Revenue Funds,20/09/2016,Absorbents Non X Ray Detectable,North West Shropshire Interdisciplinary Teams,NHS SUPPLY CHAIN,1017114088,-0.02,654 4347 29
Department of Health,CT Revenue Funds,29/09/2016,Absorbents Non X Ray Detectable,South West Interdisciplinary Teams,NHS SUPPLY CHAIN,1017120186,0.01,654 4347 29
Department of Health,CT Revenue Funds,29/09/2016,Absorbents Non X Ray Detectable,Shrewsbury and Atcham DAART,NHS SUPPLY CHAIN,1017120186,0.53,654 4347 29
Department of Health,CT Revenue Funds,29/09/2016,Absorbents Non X Ray Detectable,Bridgnorth Hospital Minor Injuries Unit,NHS SUPPLY CHAIN,1017120186,4,654 4347 29
Department of Health,CT Revenue Funds,29/09/2016,Absorbents Non X Ray Detectable,Bridgnorth Hospital Minor Injuries Unit,NHS SUPPLY CHAIN,1017120186,0.23,654 4347 29
Department of Health,CT Revenue Funds,29/09/2016,Absorbents Non X Ray Detectable,Bridgnorth Hospital Minor Injuries Unit,NHS SUPPLY CHAIN,1017120186,0.01,654 4347 29
Department of Health,CT Revenue Funds,29/09/2016,Absorbents Non X Ray Detectable,Immunisations and Vaccinations,NHS SUPPLY CHAIN,1017120186,1.43,654 4347 29
Department of Health,CT Revenue Funds,29/09/2016,Absorbents Non X Ray Detectable,South West Interdisciplinary Teams,NHS SUPPLY CHAIN,1017120186,0.01,654 4347 29
Department of Health,CT Revenue Funds,29/09/2016,Absorbents Non X Ray Detectable,South West Interdisciplinary Teams,NHS SUPPLY CHAIN,1017120186,1.32,654 4347 29
Department of Health,CT Revenue Funds,29/09/2016,Absorbents Non X Ray Detectable,South West Interdisciplinary Teams,NHS SUPPLY CHAIN,1017120186,0.92,654 4347 29
Department of Health,CT Revenue Funds,29/09/2016,Absorbents Non X Ray Detectable,Shrewsbury and Atcham DAART,NHS SUPPLY CHAIN,1017120186,0.11,654 4347 29
Department of Health,CT Revenue Funds,29/09/2016,Absorbents Non X Ray Detectable,Bishops Castle Hospital Inpatient Ward,NHS SUPPLY CHAIN,1017120186,0.62,654 4347 29
Department of Health,CT Revenue Funds,29/09/2016,Absorbents Non X Ray Detectable,Ludlow Hospital Inpatient Wards,NHS SUPPLY CHAIN,1017120186,0.34,654 4347 29
Department of Health,CT Revenue Funds,29/09/2016,Absorbents Non X Ray Detectable,Immunisations and Vaccinations,NHS SUPPLY CHAIN,1017120186,7.15,654 4347 29
Department of Health,CT Revenue Funds,29/09/2016,Absorbents Non X Ray Detectable,South West Interdisciplinary Teams,NHS SUPPLY CHAIN,1017120186,4.59,654 4347 29
Department of Health,CT Revenue Funds,29/09/2016,Absorbents Non X Ray Detectable,Paediatric Phlebotomy,NHS SUPPLY CHAIN,1017120186,0.07,654 4347 29
Department of Health,CT Revenue Funds,29/09/2016,Absorbents Non X Ray Detectable,South West Interdisciplinary Teams,NHS SUPPLY CHAIN,1017120186,0.27,654 4347 29
Department of Health,CT Revenue Funds,29/09/2016,Absorbents Non X Ray Detectable,Bishops Castle Hospital Inpatient Ward,NHS SUPPLY CHAIN,1017120186,1.06,654 4347 29
Department of Health,CT Revenue Funds,29/09/2016,Absorbents Non X Ray Detectable,Immunisations and Vaccinations,NHS SUPPLY CHAIN,1017120186,0.02,654 4347 29
Department of Health,CT Revenue Funds,29/09/2016,Absorbents Non X Ray Detectable,Shrewsbury and Atcham DAART,NHS SUPPLY CHAIN,1017120186,0.31,654 4347 29
Department of Health,CT Revenue Funds,29/09/2016,Absorbents Non X Ray Detectable,Paediatric Phlebotomy,NHS SUPPLY CHAIN,1017120186,0.34,654 4347 29
Department of Health,CT Revenue Funds,29/09/2016,Absorbents Non X Ray Detectable,Shrewsbury and Atcham DAART,NHS SUPPLY CHAIN,1017120186,1.53,654 4347 29
Department of Health,CT Revenue Funds,29/09/2016,Absorbents Non X Ray Detectable,Bridgnorth Hospital Minor Injuries Unit,NHS SUPPLY CHAIN,1017120186,1.16,654 4347 29
Department of Health,CT Revenue Funds,29/09/2016,Absorbents Non X Ray Detectable,Bridgnorth Hospital Minor Injuries Unit,NHS SUPPLY CHAIN,1017120186,0.01,654 4347 29
Department of Health,CT Revenue Funds,29/09/2016,Absorbents Non X Ray Detectable,Bishops Castle Hospital Inpatient Ward,NHS SUPPLY CHAIN,1017120186,3.12,654 4347 29
Department of Health,CT Revenue Funds,29/09/2016,Absorbents Non X Ray Detectable,Paediatric Phlebotomy,NHS SUPPLY CHAIN,1017120186,-0.01,654 4347 29
Department of Health,CT Revenue Funds,29/09/2016,Absorbents Non X Ray Detectable,Ludlow Hospital Inpatient Wards,NHS SUPPLY CHAIN,1017120186,0.07,654 4347 29
Department of Health,CT Revenue Funds,29/09/2016,Absorbents Non X Ray Detectable,Bridgnorth Hospital Minor Injuries Unit,NHS SUPPLY CHAIN,1017120186,0.8,654 4347 29
Department of Health,CT Revenue Funds,29/09/2016,Absorbents Non X Ray Detectable,Bridgnorth Hospital Minor Injuries Unit,NHS SUPPLY CHAIN,1017120186,6.12,654 4347 29
Department of Health,CT Revenue Funds,29/09/2016,Absorbents Non X Ray Detectable,Bridgnorth Hospital Minor Injuries Unit,NHS SUPPLY CHAIN,1017120186,1.23,654 4347 29
Department of Health,CT Revenue Funds,29/09/2016,Absorbents Non X Ray Detectable,Bishops Castle Hospital Inpatient Ward,NHS SUPPLY CHAIN,1017120186,-0.01,654 4347 29
Department of Health,CT Revenue Funds,29/09/2016,Absorbents Non X Ray Detectable,Bishops Castle Hospital Inpatient Ward,NHS SUPPLY CHAIN,1017120186,0.21,654 4347 29
Department of Health,CT Revenue Funds,20/09/2016,Absorbents X Ray Detectable,APCS Administration,NHS SUPPLY CHAIN,1017110056,36.18,654 4347 29
Department of Health,CT Revenue Funds,20/09/2016,Absorbents X Ray Detectable,APCS Administration,NHS SUPPLY CHAIN,1017110056,7.24,654 4347 29
Department of Health,CT Revenue Funds,01/09/2016,Accomodation Insurance,Charlesworth Court Unit B,RYMINSTER LTD,CWC/0174,22.35,
Department of Health,CT Revenue Funds,08/09/2016,Accomodation Insurance,Princess House,CUSHMAN & WAKEFIELD LLP,SHRSHR/9757,1250.4,
Department of Health,CT Revenue Funds,08/09/2016,Accomodation Insurance,Princess House,CUSHMAN & WAKEFIELD LLP,SHRSHR/9757,250.08,
Department of Health,CT Revenue Funds,09/09/2016,Adhesive Wound Dressings,Ludlow Hospital Minor Injuries Unit,NHS SUPPLY CHAIN,1017105555,1.13,654 4347 29
Department of Health,CT Revenue Funds,09/09/2016,Adhesive Wound Dressings,Ludlow Hospital Minor Injuries Unit,NHS SUPPLY CHAIN,1017105555,5.66,654 4347 29
Department of Health,CT Revenue Funds,09/09/2016,Adhesive Wound Dressings,South West Interdisciplinary Teams,NHS SUPPLY CHAIN,1017105555,0.99,654 4347 29
Department of Health,CT Revenue Funds,09/09/2016,Adhesive Wound Dressings,South East Interdisciplinary Teams,NHS SUPPLY CHAIN,1017105555,4.56,654 4347 29
Department of Health,CT Revenue Funds,09/09/2016,Adhesive Wound Dressings,Whitchurch Hospital Inpatient Ward,NHS SUPPLY CHAIN,1017105555,0.82,654 4347 29
Department of Health,CT Revenue Funds,09/09/2016,Adhesive Wound Dressings,Bridgnorth Hospital Inpatient Ward,NHS SUPPLY CHAIN,1017105555,4.93,654 4347 29
Department of Health,CT Revenue Funds,09/09/2016,Adhesive Wound Dressings,Ludlow Hospital Minor Injuries Unit,NHS SUPPLY CHAIN,1017105555,0.91,654 4347 29
Department of Health,CT Revenue Funds,09/09/2016,Adhesive Wound Dressings,Ludlow Hospital Minor Injuries Unit,NHS SUPPLY CHAIN,1017105555,9.86,654 4347 29
Department of Health,CT Revenue Funds,09/09/2016,Adhesive Wound Dressings,Whitchurch Hospital Inpatient Ward,NHS SUPPLY CHAIN,1017105555,0.16,654 4347 29
Department of Health,CT Revenue Funds,09/09/2016,Adhesive Wound Dressings,South West Interdisciplinary Teams,NHS SUPPLY CHAIN,1017105555,0.01,654 4347 29
Department of Health,CT Revenue Funds,09/09/2016,Adhesive Wound Dressings,South West Interdisciplinary Teams,NHS SUPPLY CHAIN,1017105555,6.84,654 4347 29
Department of Health,CT Revenue Funds,09/09/2016,Adhesive Wound Dressings,South West Interdisciplinary Teams,NHS SUPPLY CHAIN,1017105555,0.07,654 4347 29
Department of Health,CT Revenue Funds,09/09/2016,Adhesive Wound Dressings,South West Interdisciplinary Teams,NHS SUPPLY CHAIN,1017105555,4.93,654 4347 29
Department of Health,CT Revenue Funds,09/09/2016,Adhesive Wound Dressings,South East Interdisciplinary Teams,NHS SUPPLY CHAIN,1017105555,0.01,654 4347 29
Department of Health,CT Revenue Funds,09/09/2016,Adhesive Wound Dressings,South East Interdisciplinary Teams,NHS SUPPLY CHAIN,1017105555,1.13,654 4347 29
Department of Health,CT Revenue Funds,09/09/2016,Adhesive Wound Dressings,South East Interdisciplinary Teams,NHS SUPPLY CHAIN,1017105555,-0.01,654 4347 29
Department of Health,CT Revenue Funds,09/09/2016,Adhesive Wound Dressings,Ludlow Hospital Minor Injuries Unit,NHS SUPPLY CHAIN,1017105555,0.01,654 4347 29
Department of Health,CT Revenue Funds,09/09/2016,Adhesive Wound Dressings,Ludlow Hospital Minor Injuries Unit,NHS SUPPLY CHAIN,1017105555,4.56,654 4347 29
Department of Health,CT Revenue Funds,09/09/2016,Adhesive Wound Dressings,Ludlow Hospital Minor Injuries Unit,NHS SUPPLY CHAIN,1017105555,-0.01,654 4347 29
Department of Health,CT Revenue Funds,09/09/2016,Adhesive Wound Dressings,South East Interdisciplinary Teams,NHS SUPPLY CHAIN,1017105555,-0.01,654 4347 29
Department of Health,CT Revenue Funds,09/09/2016,Adhesive Wound Dressings,South West Interdisciplinary Teams,NHS SUPPLY CHAIN,1017105555,1.37,654 4347 29
Department of Health,CT Revenue Funds,09/09/2016,Adhesive Wound Dressings,South West Interdisciplinary Teams,NHS SUPPLY CHAIN,1017105555,0.35,654 4347 29
Department of Health,CT Revenue Funds,09/09/2016,Adhesive Wound Dressings,Ludlow Hospital Minor Injuries Unit,NHS SUPPLY CHAIN,1017105555,-0.01,654 4347 29
Department of Health,CT Revenue Funds,09/09/2016,Adhesive Wound Dressings,Ludlow Hospital Minor Injuries Unit,NHS SUPPLY CHAIN,1017105555,1.97,654 4347 29
Department of Health,CT Revenue Funds,09/09/2016,Adhesive Wound Dressings,South East Interdisciplinary Teams,NHS SUPPLY CHAIN,1017105555,0.91,654 4347 29
Department of Health,CT Revenue Funds,09/09/2016,Adhesive Wound Dressings,South East Interdisciplinary Teams,NHS SUPPLY CHAIN,1017105555,5.66,654 4347 29
Department of Health,CT Revenue Funds,09/09/2016,Adhesive Wound Dressings,South West Interdisciplinary Teams,NHS SUPPLY CHAIN,1017105555,0.07,654 4347 29
Department of Health,CT Revenue Funds,09/09/2016,Adhesive Wound Dressings,South West Interdisciplinary Teams,NHS SUPPLY CHAIN,1017105555,0.35,654 4347 29
Department of Health,CT Revenue Funds,09/09/2016,Adhesive Wound Dressings,Bridgnorth Hospital Inpatient Ward,NHS SUPPLY CHAIN,1017105555,0.99,654 4347 29
Department of Health,CT Revenue Funds,09/09/2016,Adhesive Wound Dressings,South East Interdisciplinary Teams,NHS SUPPLY CHAIN,1017105555,1.97,654 4347 29
Department of Health,CT Revenue Funds,09/09/2016,Adhesive Wound Dressings,South East Interdisciplinary Teams,NHS SUPPLY CHAIN,1017105555,9.86,654 4347 29
Department of Health,CT Revenue Funds,20/09/2016,Adhesive Wound Dressings,Ludlow Hospital Minor Injuries Unit,NHS SUPPLY CHAIN,1017110056,0.7,654 4347 29
Department of Health,CT Revenue Funds,20/09/2016,Adhesive Wound Dressings,South East Interdisciplinary Teams,NHS SUPPLY CHAIN,1017110056,5.66,654 4347 29
Department of Health,CT Revenue Funds,20/09/2016,Adhesive Wound Dressings,Telford South Community Nursing,NHS SUPPLY CHAIN,1017110056,-0.02,654 4347 29
Department of Health,CT Revenue Funds,20/09/2016,Adhesive Wound Dressings,Oswestry DAART,NHS SUPPLY CHAIN,1017110056,4.89,654 4347 29
Department of Health,CT Revenue Funds,20/09/2016,Adhesive Wound Dressings,South East Interdisciplinary Teams,NHS SUPPLY CHAIN,1017110056,0.01,654 4347 29
Department of Health,CT Revenue Funds,20/09/2016,Adhesive Wound Dressings,Bridgnorth Hospital Minor Injuries Unit,NHS SUPPLY CHAIN,1017110056,0.42,654 4347 29
Department of Health,CT Revenue Funds,20/09/2016,Adhesive Wound Dressings,Ludlow Hospital Minor Injuries Unit,NHS SUPPLY CHAIN,1017110056,0.14,654 4347 29
Department of Health,CT Revenue Funds,20/09/2016,Adhesive Wound Dressings,South East Interdisciplinary Teams,NHS SUPPLY CHAIN,1017110056,4.76,654 4347 29
Department of Health,CT Revenue Funds,20/09/2016,Adhesive Wound Dressings,South East Interdisciplinary Teams,NHS SUPPLY CHAIN,1017110056,-0.01,654 4347 29
Department of Health,CT Revenue Funds,20/09/2016,Adhesive Wound Dressings,Telford South Community Nursing,NHS SUPPLY CHAIN,1017110056,2.26,654 4347 29
Department of Health,CT Revenue Funds,20/09/2016,Adhesive Wound Dressings,Telford South Community Nursing,NHS SUPPLY CHAIN,1017110056,19.72,654 4347 29
Department of Health,CT Revenue Funds,20/09/2016,Adhesive Wound Dressings,South East Interdisciplinary Teams,NHS SUPPLY CHAIN,1017110056,1.15,654 4347 29
Department of Health,CT Revenue Funds,20/09/2016,Adhesive Wound Dressings,South East Interdisciplinary Teams,NHS SUPPLY CHAIN,1017110056,0.95,654 4347 29
Department of Health,CT Revenue Funds,20/09/2016,Adhesive Wound Dressings,South East Interdisciplinary Teams,NHS SUPPLY CHAIN,1017110056,0.01,654 4347 29
Department of Health,CT Revenue Funds,20/09/2016,Adhesive Wound Dressings,Telford North Community Nursing,NHS SUPPLY CHAIN,1017110056,0.21,654 4347 29
Department of Health,CT Revenue Funds,20/09/2016,Adhesive Wound Dressings,South East Interdisciplinary Teams,NHS SUPPLY CHAIN,1017110056,5.76,654 4347 29
Department of Health,CT Revenue Funds,20/09/2016,Adhesive Wound Dressings,Telford North Community Nursing,NHS SUPPLY CHAIN,1017110056,1.05,654 4347 29
Department of Health,CT Revenue Funds,20/09/2016,Adhesive Wound Dressings,Telford South Community Nursing,NHS SUPPLY CHAIN,1017110056,11.32,654 4347 29
Department of Health,CT Revenue Funds,20/09/2016,Adhesive Wound Dressings,Telford South Community Nursing,NHS SUPPLY CHAIN,1017110056,1.83,654 4347 29
Department of Health,CT Revenue Funds,20/09/2016,Adhesive Wound Dressings,Bridgnorth Hospital Minor Injuries Unit,NHS SUPPLY CHAIN,1017110056,2.1,654 4347 29
Department of Health,CT Revenue Funds,20/09/2016,Adhesive Wound Dressings,Oswestry DAART,NHS SUPPLY CHAIN,1017110056,0.98,654 4347 29
Department of Health,CT Revenue Funds,20/09/2016,Adhesive Wound Dressings,Telford South Community Nursing,NHS SUPPLY CHAIN,1017110056,9.12,654 4347 29
Department of Health,CT Revenue Funds,20/09/2016,Adhesive Wound Dressings,South East Interdisciplinary Teams,NHS SUPPLY CHAIN,1017110056,1.13,654 4347 29
Department of Health,CT Revenue Funds,20/09/2016,Adhesive Wound Dressings,Telford South Community Nursing,NHS SUPPLY CHAIN,1017110056,-0.02,654 4347 29
Department of Health,CT Revenue Funds,20/09/2016,Adhesive Wound Dressings,Telford South Community Nursing,NHS SUPPLY CHAIN,1017110056,0.01,654 4347 29
Department of Health,CT Revenue Funds,20/09/2016,Adhesive Wound Dressings,Telford South Community Nursing,NHS SUPPLY CHAIN,1017110056,3.94,654 4347 29
Department of Health,CT Revenue Funds,20/09/2016,Adhesive Wound Dressings,Bridgnorth Hospital Inpatient Ward,NHS SUPPLY CHAIN,1017114088,0.57,654 4347 29
Department of Health,CT Revenue Funds,20/09/2016,Adhesive Wound Dressings,Telford North Community Nursing,NHS SUPPLY CHAIN,1017114088,2.83,654 4347 29
Department of Health,CT Revenue Funds,20/09/2016,Adhesive Wound Dressings,North East Shropshire Interdisciplinary Teams,NHS SUPPLY CHAIN,1017114088,1.13,654 4347 29
Department of Health,CT Revenue Funds,20/09/2016,Adhesive Wound Dressings,Stoke Heath Prison Healthcare,NHS SUPPLY CHAIN,1017114088,-0.01,654 4347 29
Department of Health,CT Revenue Funds,20/09/2016,Adhesive Wound Dressings,North East Shropshire Interdisciplinary Teams,NHS SUPPLY CHAIN,1017114088,1.37,654 4347 29
Department of Health,CT Revenue Funds,20/09/2016,Adhesive Wound Dressings,South West Interdisciplinary Teams,NHS SUPPLY CHAIN,1017114088,1.37,654 4347 29
Department of Health,CT Revenue Funds,20/09/2016,Adhesive Wound Dressings,Stoke Heath Prison Healthcare,NHS SUPPLY CHAIN,1017114088,-0.03,654 4347 29
Department of Health,CT Revenue Funds,20/09/2016,Adhesive Wound Dressings,South West Interdisciplinary Teams,NHS SUPPLY CHAIN,1017114088,0.01,654 4347 29
Department of Health,CT Revenue Funds,20/09/2016,Adhesive Wound Dressings,Telford North Community Nursing,NHS SUPPLY CHAIN,1017114088,4.56,654 4347 29
Department of Health,CT Revenue Funds,20/09/2016,Adhesive Wound Dressings,North East Shropshire Interdisciplinary Teams,NHS SUPPLY CHAIN,1017114088,5.66,654 4347 29
Department of Health,CT Revenue Funds,20/09/2016,Adhesive Wound Dressings,Telford North Community Nursing,NHS SUPPLY CHAIN,1017114088,0.57,654 4347 29
Department of Health,CT Revenue Funds,20/09/2016,Adhesive Wound Dressings,Telford North Community Nursing,NHS SUPPLY CHAIN,1017114088,0.01,654 4347 29
Department of Health,CT Revenue Funds,20/09/2016,Adhesive Wound Dressings,Telford North Community Nursing,NHS SUPPLY CHAIN,1017114088,-0.01,654 4347 29
Department of Health,CT Revenue Funds,20/09/2016,Adhesive Wound Dressings,North East Shropshire Interdisciplinary Teams,NHS SUPPLY CHAIN,1017114088,-0.01,654 4347 29
Department of Health,CT Revenue Funds,20/09/2016,Adhesive Wound Dressings,Stoke Heath Prison Healthcare,NHS SUPPLY CHAIN,1017114088,8.2,654 4347 29
Department of Health,CT Revenue Funds,20/09/2016,Adhesive Wound Dressings,Telford North Community Nursing,NHS SUPPLY CHAIN,1017114088,0.57,654 4347 29
Department of Health,CT Revenue Funds,20/09/2016,Adhesive Wound Dressings,North East Shropshire Interdisciplinary Teams,NHS SUPPLY CHAIN,1017114088,0.01,654 4347 29
Department of Health,CT Revenue Funds,20/09/2016,Adhesive Wound Dressings,South West Interdisciplinary Teams,NHS SUPPLY CHAIN,1017114088,6.84,654 4347 29
Department of Health,CT Revenue Funds,20/09/2016,Adhesive Wound Dressings,Bridgnorth Hospital Inpatient Ward,NHS SUPPLY CHAIN,1017114088,2.83,654 4347 29
Department of Health,CT Revenue Funds,20/09/2016,Adhesive Wound Dressings,Telford North Community Nursing,NHS SUPPLY CHAIN,1017114088,2.83,654 4347 29
Department of Health,CT Revenue Funds,20/09/2016,Adhesive Wound Dressings,Telford North Community Nursing,NHS SUPPLY CHAIN,1017114088,9.86,654 4347 29
Department of Health,CT Revenue Funds,20/09/2016,Adhesive Wound Dressings,Telford North Community Nursing,NHS SUPPLY CHAIN,1017114088,1.97,654 4347 29
Department of Health,CT Revenue Funds,20/09/2016,Adhesive Wound Dressings,ICS North East,NHS SUPPLY CHAIN,1017114088,0.46,654 4347 29
Department of Health,CT Revenue Funds,20/09/2016,Adhesive Wound Dressings,Stoke Heath Prison Healthcare,NHS SUPPLY CHAIN,1017114088,1.64,654 4347 29
Department of Health,CT Revenue Funds,20/09/2016,Adhesive Wound Dressings,Telford North Community Nursing,NHS SUPPLY CHAIN,1017114088,0.91,654 4347 29
Department of Health,CT Revenue Funds,20/09/2016,Adhesive Wound Dressings,North East Shropshire Interdisciplinary Teams,NHS SUPPLY CHAIN,1017114088,6.84,654 4347 29
Department of Health,CT Revenue Funds,20/09/2016,Adhesive Wound Dressings,ICS North East,NHS SUPPLY CHAIN,1017114088,2.28,654 4347 29
Department of Health,CT Revenue Funds,29/09/2016,Adhesive Wound Dressings,Oswestry Minor Injuries Unit,NHS SUPPLY CHAIN,1017120186,22.64,654 4347 29
Department of Health,CT Revenue Funds,29/09/2016,Adhesive Wound Dressings,Oswestry Minor Injuries Unit,NHS SUPPLY CHAIN,1017120186,4.76,654 4347 29
Department of Health,CT Revenue Funds,29/09/2016,Adhesive Wound Dressings,Oswestry Minor Injuries Unit,NHS SUPPLY CHAIN,1017120186,16.08,654 4347 29
Department of Health,CT Revenue Funds,29/09/2016,Adhesive Wound Dressings,Oswestry Minor Injuries Unit,NHS SUPPLY CHAIN,1017120186,27.84,654 4347 29
Department of Health,CT Revenue Funds,29/09/2016,Adhesive Wound Dressings,Oswestry Minor Injuries Unit,NHS SUPPLY CHAIN,1017120186,-0.04,654 4347 29
Department of Health,CT Revenue Funds,29/09/2016,Adhesive Wound Dressings,Oswestry Minor Injuries Unit,NHS SUPPLY CHAIN,1017120186,-0.01,654 4347 29
Department of Health,CT Revenue Funds,29/09/2016,Adhesive Wound Dressings,Oswestry Minor Injuries Unit,NHS SUPPLY CHAIN,1017120186,4.53,654 4347 29
Department of Health,CT Revenue Funds,29/09/2016,Adhesive Wound Dressings,Bridgnorth Hospital Minor Injuries Unit,NHS SUPPLY CHAIN,1017120186,0.01,654 4347 29
Department of Health,CT Revenue Funds,29/09/2016,Adhesive Wound Dressings,North West Shropshire Interdisciplinary Teams,NHS SUPPLY CHAIN,1017120186,0.99,654 4347 29
Department of Health,CT Revenue Funds,29/09/2016,Adhesive Wound Dressings,North West Shropshire Interdisciplinary Teams,NHS SUPPLY CHAIN,1017120186,0.7,654 4347 29
Department of Health,CT Revenue Funds,29/09/2016,Adhesive Wound Dressings,Bridgnorth Hospital Minor Injuries Unit,NHS SUPPLY CHAIN,1017120186,8.49,654 4347 29
Department of Health,CT Revenue Funds,29/09/2016,Adhesive Wound Dressings,Oswestry Minor Injuries Unit,NHS SUPPLY CHAIN,1017120186,23.76,654 4347 29
Department of Health,CT Revenue Funds,29/09/2016,Adhesive Wound Dressings,Bridgnorth Hospital Minor Injuries Unit,NHS SUPPLY CHAIN,1017120186,0.91,654 4347 29
Department of Health,CT Revenue Funds,29/09/2016,Adhesive Wound Dressings,Bridgnorth Hospital Minor Injuries Unit,NHS SUPPLY CHAIN,1017120186,-0.01,654 4347 29
Department of Health,CT Revenue Funds,29/09/2016,Adhesive Wound Dressings,Telford North Community Nursing,NHS SUPPLY CHAIN,1017120186,0.91,654 4347 29
Department of Health,CT Revenue Funds,29/09/2016,Adhesive Wound Dressings,Ludlow Hospital Minor Injuries Unit,NHS SUPPLY CHAIN,1017120186,2.83,654 4347 29
Department of Health,CT Revenue Funds,29/09/2016,Adhesive Wound Dressings,Occupational Health Stoke,NHS SUPPLY CHAIN,1017120186,2.08,654 4347 29
Department of Health,CT Revenue Funds,29/09/2016,Adhesive Wound Dressings,Occupational Health Stoke,NHS SUPPLY CHAIN,1017120186,-0.01,654 4347 29
Department of Health,CT Revenue Funds,29/09/2016,Adhesive Wound Dressings,MSK Therapy,NHS SUPPLY CHAIN,1017120186,3.5,654 4347 29
Department of Health,CT Revenue Funds,29/09/2016,Adhesive Wound Dressings,Ludlow Hospital Minor Injuries Unit,NHS SUPPLY CHAIN,1017120186,0.57,654 4347 29
Department of Health,CT Revenue Funds,29/09/2016,Adhesive Wound Dressings,Oswestry Minor Injuries Unit,NHS SUPPLY CHAIN,1017120186,-0.03,654 4347 29
Department of Health,CT Revenue Funds,29/09/2016,Adhesive Wound Dressings,North West Shropshire Interdisciplinary Teams,NHS SUPPLY CHAIN,1017120186,0.14,654 4347 29
Department of Health,CT Revenue Funds,29/09/2016,Adhesive Wound Dressings,Bridgnorth Hospital Minor Injuries Unit,NHS SUPPLY CHAIN,1017120186,1.7,654 4347 29
Department of Health,CT Revenue Funds,29/09/2016,Adhesive Wound Dressings,Bridgnorth Hospital Minor Injuries Unit,NHS SUPPLY CHAIN,1017120186,2.02,654 4347 29
Department of Health,CT Revenue Funds,29/09/2016,Adhesive Wound Dressings,Bridgnorth Hospital Minor Injuries Unit,NHS SUPPLY CHAIN,1017120186,4.56,654 4347 29
Department of Health,CT Revenue Funds,29/09/2016,Adhesive Wound Dressings,Telford North Community Nursing,NHS SUPPLY CHAIN,1017120186,4.56,654 4347 29
Department of Health,CT Revenue Funds,29/09/2016,Adhesive Wound Dressings,North West Shropshire Interdisciplinary Teams,NHS SUPPLY CHAIN,1017120186,4.93,654 4347 29
Department of Health,CT Revenue Funds,29/09/2016,Adhesive Wound Dressings,Bridgnorth Hospital Minor Injuries Unit,NHS SUPPLY CHAIN,1017120186,10.08,654 4347 29
Department of Health,CT Revenue Funds,29/09/2016,Adhesive Wound Dressings,Oswestry Minor Injuries Unit,NHS SUPPLY CHAIN,1017120186,3.21,654 4347 29
Department of Health,CT Revenue Funds,29/09/2016,Adhesive Wound Dressings,Occupational Health Stoke,NHS SUPPLY CHAIN,1017120186,0.41,654 4347 29
Department of Health,CT Revenue Funds,29/09/2016,Adhesive Wound Dressings,Telford North Community Nursing,NHS SUPPLY CHAIN,1017120186,0.01,654 4347 29
Department of Health,CT Revenue Funds,29/09/2016,Adhesive Wound Dressings,Oswestry Minor Injuries Unit,NHS SUPPLY CHAIN,1017120186,-0.01,654 4347 29
Department of Health,CT Revenue Funds,29/09/2016,Adhesive Wound Dressings,Oswestry Minor Injuries Unit,NHS SUPPLY CHAIN,1017120186,-0.01,654 4347 29
Department of Health,CT Revenue Funds,29/09/2016,Adhesive Wound Dressings,Oswestry Minor Injuries Unit,NHS SUPPLY CHAIN,1017120186,-0.01,654 4347 29
Department of Health,CT Revenue Funds,29/09/2016,Adhesive Wound Dressings,Oswestry Minor Injuries Unit,NHS SUPPLY CHAIN,1017120186,5.57,654 4347 29
Department of Health,CT Revenue Funds,29/09/2016,Adhesive Wound Dressings,MSK Therapy,NHS SUPPLY CHAIN,1017120186,0.7,654 4347 29
Department of Health,CT Revenue Funds,29/09/2016,Admin & Clerical Band 2,Halesfield Premises,TELFORD AND WREKIN CCG,7020300769,2769.58,
Department of Health,CT Revenue Funds,22/09/2016,Admin & Clerical Band 2,Telford North Cluster Health Visitors,EDENRED UK GROUP LTD,IN134047534,170,
Department of Health,CT Revenue Funds,22/09/2016,Admin & Clerical Band 2,Telford North Cluster Health Visitors,EDENRED UK GROUP LTD,IN134047534,0.1,
Department of Health,CT Revenue Funds,22/09/2016,Admin & Clerical Band 2,Telford North Cluster Health Visitors,EDENRED UK GROUP LTD,IN134047534,0.51,
Department of Health,CT Revenue Funds,29/09/2016,Admin & Clerical Band 4,MSK Rheumatology,ROBERT JONES AND AGNES HUNT NHS FT,20084566,456,654 9380 06
Department of Health,CT Revenue Funds,22/09/2016,Admin & Clerical Band 4,Information,EDENRED UK GROUP LTD,IN134047534,0.72,
Department of Health,CT Revenue Funds,22/09/2016,Admin & Clerical Band 4,Information,EDENRED UK GROUP LTD,IN134047534,243,
Department of Health,CT Revenue Funds,22/09/2016,Admin & Clerical Band 4,Information,EDENRED UK GROUP LTD,IN134047534,0.15,
Department of Health,CT Revenue Funds,22/09/2016,Admin & Clerical Band 5,Information,EDENRED UK GROUP LTD,IN134047534,243,
Department of Health,CT Revenue Funds,22/09/2016,Admin & Clerical Band 5,Information,EDENRED UK GROUP LTD,IN134047534,0.73,
Department of Health,CT Revenue Funds,22/09/2016,Admin & Clerical Band 5,Information,EDENRED UK GROUP LTD,IN134047534,0.14,
Department of Health,CT Revenue Funds,22/09/2016,Admin & Clerical Band 5,HR and Workforce,EARLYWORLD NURSERY,OCT16 CHILDCARE,381.57,
Department of Health,CT Revenue Funds,22/09/2016,Admin & Clerical Band 5,Financial Accounting and Local Systems Support),DAISY CHAIN DAYCARE LTD,OCT16 CHILDCARE,183.52,
Department of Health,CT Revenue Funds,22/09/2016,Admin & Clerical Band 5,Information,DAISY CHAIN DAYCARE LTD,OCT16 CHILDCARE,727,
Department of Health,CT Revenue Funds,22/09/2016,Admin & Clerical Band 7,MSK Management & Admin,EDENRED UK GROUP LTD,IN134047534,0.16,
Department of Health,CT Revenue Funds,22/09/2016,Admin & Clerical Band 7,MSK Management & Admin,EDENRED UK GROUP LTD,IN134047534,0.83,
Department of Health,CT Revenue Funds,22/09/2016,Admin & Clerical Band 7,MSK Management & Admin,EDENRED UK GROUP LTD,IN134047534,243,
Department of Health,CT Revenue Funds,01/09/2016,Agency Admin & Clerical,MSK Management & Admin,PERTEMPS,P721203,71.55,844 2788 00
Department of Health,CT Revenue Funds,01/09/2016,Agency Admin & Clerical,MSK Management & Admin,PERTEMPS,P721203,357.75,844 2788 00
Department of Health,CT Revenue Funds,01/09/2016,Agency Admin & Clerical,MSK Management & Admin,PERTEMPS,P721204,79,844 2788 00
Department of Health,CT Revenue Funds,01/09/2016,Agency Admin & Clerical,MSK Management & Admin,PERTEMPS,P721204,395.01,844 2788 00
Department of Health,CT Revenue Funds,01/09/2016,Agency Admin & Clerical,MSK Management & Admin,PERTEMPS,P721205,359.45,844 2788 00
Department of Health,CT Revenue Funds,01/09/2016,Agency Admin & Clerical,MSK Management & Admin,PERTEMPS,P721205,71.89,844 2788 00
Department of Health,CT Revenue Funds,01/09/2016,Agency Admin & Clerical,MSK Management & Admin,PERTEMPS,P721206,324.6,844 2788 00
Department of Health,CT Revenue Funds,01/09/2016,Agency Admin & Clerical,MSK Management & Admin,PERTEMPS,P721206,64.92,844 2788 00
Department of Health,CT Revenue Funds,01/09/2016,Agency Admin & Clerical,MSK Management & Admin,PERTEMPS,P721207,70.99,844 2788 00
Department of Health,CT Revenue Funds,01/09/2016,Agency Admin & Clerical,MSK Management & Admin,PERTEMPS,P721207,354.96,844 2788 00
Department of Health,CT Revenue Funds,08/09/2016,Agency Admin & Clerical,MSK Management & Admin,PERTEMPS,P721777,357.75,844 2788 00
Department of Health,CT Revenue Funds,08/09/2016,Agency Admin & Clerical,MSK Management & Admin,PERTEMPS,P721777,71.55,844 2788 00
Department of Health,CT Revenue Funds,08/09/2016,Agency Admin & Clerical,MSK Management & Admin,PERTEMPS,P721778,403.92,844 2788 00
Department of Health,CT Revenue Funds,08/09/2016,Agency Admin & Clerical,MSK Management & Admin,PERTEMPS,P721778,80.78,844 2788 00
Department of Health,CT Revenue Funds,08/09/2016,Agency Admin & Clerical,MSK Management & Admin,PERTEMPS,P721779,405.75,844 2788 00
Department of Health,CT Revenue Funds,08/09/2016,Agency Admin & Clerical,MSK Management & Admin,PERTEMPS,P721779,81.15,844 2788 00
Department of Health,CT Revenue Funds,08/09/2016,Agency Admin & Clerical,MSK Management & Admin,PERTEMPS,P721780,54.29,844 2788 00
Department of Health,CT Revenue Funds,08/09/2016,Agency Admin & Clerical,MSK Management & Admin,PERTEMPS,P721780,271.44,844 2788 00
Department of Health,CT Revenue Funds,22/09/2016,Agency Admin & Clerical,CAMHS Admin,PERTEMPS,P721790,66.67,844 2788 00
Department of Health,CT Revenue Funds,22/09/2016,Agency Admin & Clerical,CAMHS Admin,PERTEMPS,P721790,333.35,844 2788 00
Department of Health,CT Revenue Funds,22/09/2016,Agency Admin & Clerical,CAMHS Admin,PERTEMPS,P721791,135.7,844 2788 00
Department of Health,CT Revenue Funds,22/09/2016,Agency Admin & Clerical,CAMHS Admin,PERTEMPS,P721791,27.14,844 2788 00
Department of Health,CT Revenue Funds,22/09/2016,Agency Admin & Clerical,MSK Management & Admin,PERTEMPS,P722810,286.2,844 2788 00
Department of Health,CT Revenue Funds,22/09/2016,Agency Admin & Clerical,MSK Management & Admin,PERTEMPS,P722810,57.24,844 2788 00
Department of Health,CT Revenue Funds,22/09/2016,Agency Admin & Clerical,MSK Management & Admin,PERTEMPS,P722811,160.38,844 2788 00
Department of Health,CT Revenue Funds,22/09/2016,Agency Admin & Clerical,MSK Management & Admin,PERTEMPS,P722811,32.08,844 2788 00
Department of Health,CT Revenue Funds,22/09/2016,Agency Admin & Clerical,MSK Management & Admin,PERTEMPS,P722812,64.92,844 2788 00
Department of Health,CT Revenue Funds,22/09/2016,Agency Admin & Clerical,MSK Management & Admin,PERTEMPS,P722812,324.6,844 2788 00
Department of Health,CT Revenue Funds,22/09/2016,Agency Admin & Clerical,MSK Management & Admin,PERTEMPS,P722813,280.72,844 2788 00
Department of Health,CT Revenue Funds,22/09/2016,Agency Admin & Clerical,MSK Management & Admin,PERTEMPS,P722813,56.14,844 2788 00
Department of Health,CT Revenue Funds,22/09/2016,Agency Admin & Clerical,CAMHS Admin,PERTEMPS,P722821,277.3,844 2788 00
Department of Health,CT Revenue Funds,22/09/2016,Agency Admin & Clerical,CAMHS Admin,PERTEMPS,P722821,55.46,844 2788 00
Department of Health,CT Revenue Funds,22/09/2016,Agency Admin & Clerical,CAMHS Admin,PERTEMPS,P722822,135.7,844 2788 00
Department of Health,CT Revenue Funds,22/09/2016,Agency Admin & Clerical,CAMHS Admin,PERTEMPS,P722822,27.14,844 2788 00
Department of Health,CT Revenue Funds,22/09/2016,Agency Admin & Clerical,CAMHS Admin,PERTEMPS,P723394,330.4,844 2788 00
Department of Health,CT Revenue Funds,22/09/2016,Agency Admin & Clerical,CAMHS Admin,PERTEMPS,P723394,66.08,844 2788 00
Department of Health,CT Revenue Funds,22/09/2016,Agency Admin & Clerical,CAMHS Admin,PERTEMPS,P723395,135.7,844 2788 00
Department of Health,CT Revenue Funds,22/09/2016,Agency Admin & Clerical,CAMHS Admin,PERTEMPS,P723395,27.14,844 2788 00
Department of Health,CT Revenue Funds,28/09/2016,Agency Admin & Clerical,CAMHS Admin,PERTEMPS,P724008,74.93,844 2788 00
Department of Health,CT Revenue Funds,28/09/2016,Agency Admin & Clerical,CAMHS Admin,PERTEMPS,P724008,374.65,844 2788 00
Department of Health,CT Revenue Funds,28/09/2016,Agency Admin & Clerical,CAMHS Admin,PERTEMPS,P724009,271.44,844 2788 00
Department of Health,CT Revenue Funds,28/09/2016,Agency Admin & Clerical,CAMHS Admin,PERTEMPS,P724009,54.29,844 2788 00
Department of Health,CT Revenue Funds,28/09/2016,Agency Admin & Clerical,CAMHS Admin,PERTEMPS,P724010,253.7,844 2788 00
Department of Health,CT Revenue Funds,28/09/2016,Agency Admin & Clerical,CAMHS Admin,PERTEMPS,P724010,50.74,844 2788 00
Department of Health,CT Revenue Funds,28/09/2016,Agency Admin & Clerical,CAMHS Admin,PERTEMPS,P724011,12.73,844 2788 00
Department of Health,CT Revenue Funds,28/09/2016,Agency Admin & Clerical,CAMHS Admin,PERTEMPS,P724011,63.64,844 2788 00
Department of Health,CT Revenue Funds,01/09/2016,Agency Consultants,Telford Child Psychiatry,INTERACT MEDICAL LTD,155793,4399.2,650 7780 24
Department of Health,CT Revenue Funds,01/09/2016,Agency Consultants,Telford Child Psychiatry,INTERACT MEDICAL LTD,155793,879.84,650 7780 24
Department of Health,CT Revenue Funds,01/09/2016,Agency Consultants,Telford Child Psychiatry,INTERACT MEDICAL LTD,155794,4398.4,650 7780 24
Department of Health,CT Revenue Funds,01/09/2016,Agency Consultants,Telford Child Psychiatry,INTERACT MEDICAL LTD,155794,879.68,650 7780 24
Department of Health,CT Revenue Funds,22/09/2016,Agency Consultants,Telford Child Psychiatry,INTERACT MEDICAL LTD,156058,879.83,650 7780 24
Department of Health,CT Revenue Funds,22/09/2016,Agency Consultants,Telford Child Psychiatry,INTERACT MEDICAL LTD,156058,4399.16,650 7780 24
Department of Health,CT Revenue Funds,22/09/2016,Agency Consultants,Telford Child Psychiatry,INTERACT MEDICAL LTD,156059,879.75,650 7780 24
Department of Health,CT Revenue Funds,22/09/2016,Agency Consultants,Telford Child Psychiatry,INTERACT MEDICAL LTD,156059,175.95,650 7780 24
Department of Health,CT Revenue Funds,22/09/2016,Agency Consultants,Telford Child Psychiatry,INTERACT MEDICAL LTD,156550,3519.36,650 7780 24
Department of Health,CT Revenue Funds,22/09/2016,Agency Consultants,Telford Child Psychiatry,INTERACT MEDICAL LTD,156550,703.87,650 7780 24
Department of Health,CT Revenue Funds,22/09/2016,Agency Consultants,Telford Child Psychiatry,INTERACT MEDICAL LTD,157260,747.86,650 7780 24
Department of Health,CT Revenue Funds,22/09/2016,Agency Consultants,Telford Child Psychiatry,INTERACT MEDICAL LTD,157260,3739.32,650 7780 24
Department of Health,CT Revenue Funds,28/09/2016,Agency Consultants,Telford Child Psychiatry,INTERACT MEDICAL LTD,157556,4399.2,650 7780 24
Department of Health,CT Revenue Funds,28/09/2016,Agency Consultants,Telford Child Psychiatry,INTERACT MEDICAL LTD,157556,879.84,650 7780 24
Department of Health,CT Revenue Funds,01/09/2016,Agency Consultants,Shropshire Community Paediatric Medical Staff,HEALTHMEDIX LTD,4465,4000,
Department of Health,CT Revenue Funds,01/09/2016,Agency Consultants,Shropshire Community Paediatric Medical Staff,HEALTHMEDIX LTD,4465,800,
Department of Health,CT Revenue Funds,22/09/2016,Agency Consultants,Shropshire Community Paediatric Medical Staff,HEALTHMEDIX LTD,4495,4000,
Department of Health,CT Revenue Funds,22/09/2016,Agency Consultants,Shropshire Community Paediatric Medical Staff,HEALTHMEDIX LTD,4495,800,
Department of Health,CT Revenue Funds,22/09/2016,Agency Consultants,Shropshire Community Paediatric Medical Staff,HEALTHMEDIX LTD,4496,11.28,
Department of Health,CT Revenue Funds,22/09/2016,Agency Consultants,Shropshire Community Paediatric Medical Staff,HEALTHMEDIX LTD,4496,2.26,
Department of Health,CT Revenue Funds,22/09/2016,Agency Consultants,Shropshire Community Paediatric Medical Staff,HEALTHMEDIX LTD,4510,640,
Department of Health,CT Revenue Funds,22/09/2016,Agency Consultants,Shropshire Community Paediatric Medical Staff,HEALTHMEDIX LTD,4510,3200,
Department of Health,CT Revenue Funds,22/09/2016,Agency Consultants,Shropshire Community Paediatric Medical Staff,HEALTHMEDIX LTD,4511,13.44,
Department of Health,CT Revenue Funds,22/09/2016,Agency Consultants,Shropshire Community Paediatric Medical Staff,HEALTHMEDIX LTD,4511,2.69,
Department of Health,CT Revenue Funds,22/09/2016,Agency Consultants,Shropshire Community Paediatric Medical Staff,HEALTHMEDIX LTD,4552,320,
Department of Health,CT Revenue Funds,22/09/2016,Agency Consultants,Shropshire Community Paediatric Medical Staff,HEALTHMEDIX LTD,4552,1600,
Department of Health,CT Revenue Funds,01/09/2016,Agency Consultants,Shropshire Child Psychiatry,PSYCHIATRY PEOPLE,PP143924,909.2,
Department of Health,CT Revenue Funds,01/09/2016,Agency Consultants,Shropshire Child Psychiatry,PSYCHIATRY PEOPLE,PP143924,4546.02,
Department of Health,CT Revenue Funds,01/09/2016,Agency Consultants,Shropshire Child Psychiatry,PSYCHIATRY PEOPLE,PP143926,2008.56,
Department of Health,CT Revenue Funds,01/09/2016,Agency Consultants,Shropshire Child Psychiatry,PSYCHIATRY PEOPLE,PP143926,401.71,
Department of Health,CT Revenue Funds,01/09/2016,Agency Consultants,Shropshire Child Psychiatry,PSYCHIATRY PEOPLE,PP143928,776.38,
Department of Health,CT Revenue Funds,01/09/2016,Agency Consultants,Shropshire Child Psychiatry,PSYCHIATRY PEOPLE,PP143928,3881.91,
Department of Health,CT Revenue Funds,22/09/2016,Agency Consultants,Shropshire Child Psychiatry,PSYCHIATRY PEOPLE,PP144644,907.95,
Department of Health,CT Revenue Funds,22/09/2016,Agency Consultants,Shropshire Child Psychiatry,PSYCHIATRY PEOPLE,PP144644,4539.77,
Department of Health,CT Revenue Funds,22/09/2016,Agency Consultants,Shropshire Child Psychiatry,PSYCHIATRY PEOPLE,PP144960,4561.81,
Department of Health,CT Revenue Funds,22/09/2016,Agency Consultants,Shropshire Child Psychiatry,PSYCHIATRY PEOPLE,PP144960,912.36,
Department of Health,CT Revenue Funds,22/09/2016,Agency Consultants,Shropshire Child Psychiatry,PSYCHIATRY PEOPLE,PP144961,2650.98,
Department of Health,CT Revenue Funds,22/09/2016,Agency Consultants,Shropshire Child Psychiatry,PSYCHIATRY PEOPLE,PP144961,530.2,
Department of Health,CT Revenue Funds,22/09/2016,Agency Consultants,Shropshire Child Psychiatry,PSYCHIATRY PEOPLE,PP144962,3804.57,
Department of Health,CT Revenue Funds,22/09/2016,Agency Consultants,Shropshire Child Psychiatry,PSYCHIATRY PEOPLE,PP144962,760.91,
Department of Health,CT Revenue Funds,28/09/2016,Agency Consultants,Shropshire Child Psychiatry,PSYCHIATRY PEOPLE,PP145292,1360.31,
Department of Health,CT Revenue Funds,28/09/2016,Agency Consultants,Shropshire Child Psychiatry,PSYCHIATRY PEOPLE,PP145292,6801.54,
Department of Health,CT Revenue Funds,28/09/2016,Agency Consultants,Shropshire Child Psychiatry,PSYCHIATRY PEOPLE,PP145293,913.85,
Department of Health,CT Revenue Funds,28/09/2016,Agency Consultants,Shropshire Child Psychiatry,PSYCHIATRY PEOPLE,PP145293,4569.23,
Department of Health,CT Revenue Funds,22/09/2016,Agency Hlthcare Assistants & Support Staff,Ludlow Hospital Inpatient Wards,MEDBANK HEALTHCARE SOLUTIONS LTD,00018246,20.88,
Department of Health,CT Revenue Funds,22/09/2016,Agency Hlthcare Assistants & Support Staff,Ludlow Hospital Inpatient Wards,MEDBANK HEALTHCARE SOLUTIONS LTD,00018246,104.42,
Department of Health,CT Revenue Funds,01/09/2016,Agency Hlthcare Assistants & Support Staff,Whitchurch Hospital Inpatient Ward,ACTONBANKS HEALTHCARE RECRUITMENT SPECIALISTS,00100611,225,909 8550 90
Department of Health,CT Revenue Funds,01/09/2016,Agency Hlthcare Assistants & Support Staff,Bridgnorth Hospital Inpatient Ward,ACTONBANKS HEALTHCARE RECRUITMENT SPECIALISTS,00101151,136.43,909 8550 90
Department of Health,CT Revenue Funds,01/09/2016,Agency Hlthcare Assistants & Support Staff,Bishops Castle Hospital Inpatient Ward,ACTONBANKS HEALTHCARE RECRUITMENT SPECIALISTS,00101152,225,909 8550 90
Department of Health,CT Revenue Funds,22/09/2016,Agency Hlthcare Assistants & Support Staff,Ludlow Hospital Inpatient Wards,ACTONBANKS HEALTHCARE RECRUITMENT SPECIALISTS,00102209,234,909 8550 90
Department of Health,CT Revenue Funds,28/09/2016,Agency Hlthcare Assistants & Support Staff,Bishops Castle Hospital Inpatient Ward,ACTONBANKS HEALTHCARE RECRUITMENT SPECIALISTS,00103375,225,909 8550 90
Department of Health,CT Revenue Funds,01/09/2016,Agency Hlthcare Assistants & Support Staff,Bridgnorth Hospital Inpatient Ward,MERCO MEDICAL STAFFING LTD,01-66458,301.13,
Department of Health,CT Revenue Funds,01/09/2016,Agency Hlthcare Assistants & Support Staff,Bridgnorth Hospital Inpatient Ward,MERCO MEDICAL STAFFING LTD,01-66458,60.23,
Department of Health,CT Revenue Funds,01/09/2016,Agency Hlthcare Assistants & Support Staff,Bridgnorth Hospital Inpatient Ward,MERCO MEDICAL STAFFING LTD,01-67289,24.09,
Department of Health,CT Revenue Funds,01/09/2016,Agency Hlthcare Assistants & Support Staff,Bridgnorth Hospital Inpatient Ward,MERCO MEDICAL STAFFING LTD,01-67289,120.45,
Department of Health,CT Revenue Funds,01/09/2016,Agency Hlthcare Assistants & Support Staff,Bridgnorth Hospital Inpatient Ward,MERCO MEDICAL STAFFING LTD,01-67290,24.09,
Department of Health,CT Revenue Funds,01/09/2016,Agency Hlthcare Assistants & Support Staff,Bridgnorth Hospital Inpatient Ward,MERCO MEDICAL STAFFING LTD,01-67290,120.45,
Department of Health,CT Revenue Funds,15/09/2016,Agency Hlthcare Assistants & Support Staff,Bishops Castle Hospital Inpatient Ward,MERCO MEDICAL STAFFING LTD,01-67657,120.45,
Department of Health,CT Revenue Funds,15/09/2016,Agency Hlthcare Assistants & Support Staff,Bishops Castle Hospital Inpatient Ward,MERCO MEDICAL STAFFING LTD,01-67657,24.09,
Department of Health,CT Revenue Funds,22/09/2016,Agency Hlthcare Assistants & Support Staff,Bishops Castle Hospital Inpatient Ward,MERCO MEDICAL STAFFING LTD,01-67658,23.61,
Department of Health,CT Revenue Funds,22/09/2016,Agency Hlthcare Assistants & Support Staff,Bishops Castle Hospital Inpatient Ward,MERCO MEDICAL STAFFING LTD,01-67658,-118.03,
Department of Health,CT Revenue Funds,22/09/2016,Agency Hlthcare Assistants & Support Staff,Bishops Castle Hospital Inpatient Ward,MERCO MEDICAL STAFFING LTD,01-67658,-23.61,
Department of Health,CT Revenue Funds,22/09/2016,Agency Hlthcare Assistants & Support Staff,Ludlow Hospital Inpatient Wards,MERCO MEDICAL STAFFING LTD,01-67658,23.61,
Department of Health,CT Revenue Funds,22/09/2016,Agency Hlthcare Assistants & Support Staff,Bishops Castle Hospital Inpatient Ward,MERCO MEDICAL STAFFING LTD,01-67658,118.03,
Department of Health,CT Revenue Funds,22/09/2016,Agency Hlthcare Assistants & Support Staff,Ludlow Hospital Inpatient Wards,MERCO MEDICAL STAFFING LTD,01-67658,118.03,
Department of Health,CT Revenue Funds,28/09/2016,Agency Hlthcare Assistants & Support Staff,Ludlow Hospital Inpatient Wards,CORDANT CARE,014650,31.4,
Department of Health,CT Revenue Funds,08/09/2016,Agency Hlthcare Assistants & Support Staff,Stoke Heath Prison Healthcare,AMG NURSING & CARE SERVICES,10001386,656.56,909 7863 74
Department of Health,CT Revenue Funds,01/09/2016,Agency Hlthcare Assistants & Support Staff,Stoke Heath Prison Healthcare,AMG NURSING & CARE SERVICES,10001459,656.56,909 7863 74
Department of Health,CT Revenue Funds,22/09/2016,Agency Hlthcare Assistants & Support Staff,Stoke Heath Prison Healthcare,AMG NURSING & CARE SERVICES,10001526,656.56,909 7863 74
Department of Health,CT Revenue Funds,22/09/2016,Agency Hlthcare Assistants & Support Staff,Stoke Heath Prison Healthcare,AMG NURSING & CARE SERVICES,10001567,590.9,909 7863 74
Department of Health,CT Revenue Funds,28/09/2016,Agency Hlthcare Assistants & Support Staff,Stoke Heath Prison Healthcare,AMG NURSING & CARE SERVICES,10001610,1969.69,909 7863 74
Department of Health,CT Revenue Funds,01/09/2016,Agency Hlthcare Assistants & Support Staff,Bridgnorth Hospital Inpatient Ward,ID MEDICAL,1191160,-48.45,733 7385 18
Department of Health,CT Revenue Funds,01/09/2016,Agency Hlthcare Assistants & Support Staff,Bridgnorth Hospital Inpatient Ward,ID MEDICAL,1191160,-242.25,733 7385 18
Department of Health,CT Revenue Funds,08/09/2016,Agency Hlthcare Assistants & Support Staff,Bridgnorth Hospital Inpatient Ward,MERIDIAN BUSINESS SUPPORT LIMITED,1610345329,49.78,561 2878 27
Department of Health,CT Revenue Funds,08/09/2016,Agency Hlthcare Assistants & Support Staff,Bridgnorth Hospital Inpatient Ward,MERIDIAN BUSINESS SUPPORT LIMITED,1610345329,248.92,561 2878 27
Department of Health,CT Revenue Funds,15/09/2016,Agency Hlthcare Assistants & Support Staff,Whitchurch Hospital Inpatient Ward,CORDANT CARE,24012,97.62,
Department of Health,CT Revenue Funds,15/09/2016,Agency Hlthcare Assistants & Support Staff,Whitchurch Hospital Inpatient Ward,CORDANT CARE,24012,19.53,
Department of Health,CT Revenue Funds,22/09/2016,Agency Hlthcare Assistants & Support Staff,Whitchurch Hospital Inpatient Ward,CORDANT CARE,24564,124.96,
Department of Health,CT Revenue Funds,01/09/2016,Agency Hlthcare Assistants & Support Staff,Bridgnorth Hospital Inpatient Ward,THORNBURY NURSING SERVICES LTD,3598257,295.35,676 2854 93
Department of Health,CT Revenue Funds,08/09/2016,Agency Hlthcare Assistants & Support Staff,Ludlow Hospital Inpatient Wards,THORNBURY NURSING SERVICES LTD,3610461,297.25,676 2854 93
Department of Health,CT Revenue Funds,28/09/2016,Agency Hlthcare Assistants & Support Staff,Ludlow Hospital Inpatient Wards,THORNBURY NURSING SERVICES LTD,3625595,493.85,676 2854 93
Department of Health,CT Revenue Funds,28/09/2016,Agency Hlthcare Assistants & Support Staff,Bridgnorth Hospital Inpatient Ward,THORNBURY NURSING SERVICES LTD,3626589,417.74,676 2854 93
Department of Health,CT Revenue Funds,08/09/2016,Agency Hlthcare Assistants & Support Staff,Stoke Heath Prison Healthcare,ID MEDICAL,445329,-207.05,733 7385 18
Department of Health,CT Revenue Funds,08/09/2016,Agency Hlthcare Assistants & Support Staff,Stoke Heath Prison Healthcare,ID MEDICAL,445329,1449.54,733 7385 18
Department of Health,CT Revenue Funds,08/09/2016,Agency Hlthcare Assistants & Support Staff,Stoke Heath Prison Healthcare,ID MEDICAL,445329,-1449.54,733 7385 18
Department of Health,CT Revenue Funds,08/09/2016,Agency Hlthcare Assistants & Support Staff,Stoke Heath Prison Healthcare,ID MEDICAL,445329,207.05,733 7385 18
Department of Health,CT Revenue Funds,08/09/2016,Agency Hlthcare Assistants & Support Staff,Stoke Heath Prison Healthcare,ID MEDICAL,445329,1242.29,733 7385 18
Department of Health,CT Revenue Funds,08/09/2016,Agency Hlthcare Assistants & Support Staff,Stoke Heath Prison Healthcare,ID MEDICAL,445330,583.1,733 7385 18
Department of Health,CT Revenue Funds,08/09/2016,Agency Hlthcare Assistants & Support Staff,Stoke Heath Prison Healthcare,ID MEDICAL,445330,2915.49,733 7385 18
Department of Health,CT Revenue Funds,08/09/2016,Agency Hlthcare Assistants & Support Staff,Stoke Heath Prison Healthcare,ID MEDICAL,445331,1284.85,733 7385 18
Department of Health,CT Revenue Funds,08/09/2016,Agency Hlthcare Assistants & Support Staff,Stoke Heath Prison Healthcare,ID MEDICAL,445331,256.97,733 7385 18
Department of Health,CT Revenue Funds,08/09/2016,Agency Hlthcare Assistants & Support Staff,Stoke Heath Prison Healthcare,ID MEDICAL,445332,1454.86,733 7385 18
Department of Health,CT Revenue Funds,08/09/2016,Agency Hlthcare Assistants & Support Staff,Stoke Heath Prison Healthcare,ID MEDICAL,445332,290.97,733 7385 18
Department of Health,CT Revenue Funds,08/09/2016,Agency Hlthcare Assistants & Support Staff,Stoke Heath Prison Healthcare,ID MEDICAL,445333,368.16,733 7385 18
Department of Health,CT Revenue Funds,08/09/2016,Agency Hlthcare Assistants & Support Staff,Stoke Heath Prison Healthcare,ID MEDICAL,445333,1840.79,733 7385 18
Department of Health,CT Revenue Funds,08/09/2016,Agency Hlthcare Assistants & Support Staff,Stoke Heath Prison Healthcare,ID MEDICAL,445334,638.29,733 7385 18
Department of Health,CT Revenue Funds,08/09/2016,Agency Hlthcare Assistants & Support Staff,Stoke Heath Prison Healthcare,ID MEDICAL,445334,127.66,733 7385 18
Department of Health,CT Revenue Funds,08/09/2016,Agency Hlthcare Assistants & Support Staff,Stoke Heath Prison Healthcare,ID MEDICAL,445335,63.75,733 7385 18
Department of Health,CT Revenue Funds,08/09/2016,Agency Hlthcare Assistants & Support Staff,Stoke Heath Prison Healthcare,ID MEDICAL,445335,318.75,733 7385 18
Department of Health,CT Revenue Funds,08/09/2016,Agency Hlthcare Assistants & Support Staff,Stoke Heath Prison Healthcare,ID MEDICAL,445336,461.48,733 7385 18
Department of Health,CT Revenue Funds,08/09/2016,Agency Hlthcare Assistants & Support Staff,Stoke Heath Prison Healthcare,ID MEDICAL,445336,92.3,733 7385 18
Department of Health,CT Revenue Funds,08/09/2016,Agency Hlthcare Assistants & Support Staff,Stoke Heath Prison Healthcare,ID MEDICAL,445337,1064.76,733 7385 18
Department of Health,CT Revenue Funds,08/09/2016,Agency Hlthcare Assistants & Support Staff,Stoke Heath Prison Healthcare,ID MEDICAL,445337,212.95,733 7385 18
Department of Health,CT Revenue Funds,01/09/2016,Agency Hlthcare Assistants & Support Staff,Bishops Castle Hospital Inpatient Ward,ID MEDICAL,447135,41.02,733 7385 18
Department of Health,CT Revenue Funds,01/09/2016,Agency Hlthcare Assistants & Support Staff,Bishops Castle Hospital Inpatient Ward,ID MEDICAL,447135,205.1,733 7385 18
Department of Health,CT Revenue Funds,08/09/2016,Agency Hlthcare Assistants & Support Staff,Stoke Heath Prison Healthcare,ID MEDICAL,447159,244.82,733 7385 18
Department of Health,CT Revenue Funds,08/09/2016,Agency Hlthcare Assistants & Support Staff,Stoke Heath Prison Healthcare,ID MEDICAL,447159,1224.12,733 7385 18
Department of Health,CT Revenue Funds,08/09/2016,Agency Hlthcare Assistants & Support Staff,Stoke Heath Prison Healthcare,ID MEDICAL,447160,261.09,733 7385 18
Department of Health,CT Revenue Funds,08/09/2016,Agency Hlthcare Assistants & Support Staff,Stoke Heath Prison Healthcare,ID MEDICAL,447160,1305.45,733 7385 18
Department of Health,CT Revenue Funds,08/09/2016,Agency Hlthcare Assistants & Support Staff,Stoke Heath Prison Healthcare,ID MEDICAL,447161,993.38,733 7385 18
Department of Health,CT Revenue Funds,08/09/2016,Agency Hlthcare Assistants & Support Staff,Stoke Heath Prison Healthcare,ID MEDICAL,447161,198.68,733 7385 18
Department of Health,CT Revenue Funds,08/09/2016,Agency Hlthcare Assistants & Support Staff,Stoke Heath Prison Healthcare,ID MEDICAL,447162,46.15,733 7385 18
Department of Health,CT Revenue Funds,08/09/2016,Agency Hlthcare Assistants & Support Staff,Stoke Heath Prison Healthcare,ID MEDICAL,447162,230.74,733 7385 18
Department of Health,CT Revenue Funds,08/09/2016,Agency Hlthcare Assistants & Support Staff,Stoke Heath Prison Healthcare,ID MEDICAL,447163,115.34,733 7385 18
Department of Health,CT Revenue Funds,08/09/2016,Agency Hlthcare Assistants & Support Staff,Stoke Heath Prison Healthcare,ID MEDICAL,447163,576.72,733 7385 18
Department of Health,CT Revenue Funds,08/09/2016,Agency Hlthcare Assistants & Support Staff,Stoke Heath Prison Healthcare,ID MEDICAL,447164,461.48,733 7385 18
Department of Health,CT Revenue Funds,08/09/2016,Agency Hlthcare Assistants & Support Staff,Stoke Heath Prison Healthcare,ID MEDICAL,447164,92.3,733 7385 18
Department of Health,CT Revenue Funds,08/09/2016,Agency Hlthcare Assistants & Support Staff,Stoke Heath Prison Healthcare,ID MEDICAL,447165,461.48,733 7385 18
Department of Health,CT Revenue Funds,08/09/2016,Agency Hlthcare Assistants & Support Staff,Stoke Heath Prison Healthcare,ID MEDICAL,447165,92.3,733 7385 18
Department of Health,CT Revenue Funds,08/09/2016,Agency Hlthcare Assistants & Support Staff,Stoke Heath Prison Healthcare,ID MEDICAL,447166,72.28,733 7385 18
Department of Health,CT Revenue Funds,08/09/2016,Agency Hlthcare Assistants & Support Staff,Stoke Heath Prison Healthcare,ID MEDICAL,447166,361.4,733 7385 18
Department of Health,CT Revenue Funds,08/09/2016,Agency Hlthcare Assistants & Support Staff,Stoke Heath Prison Healthcare,ID MEDICAL,447167,123.04,733 7385 18
Department of Health,CT Revenue Funds,08/09/2016,Agency Hlthcare Assistants & Support Staff,Stoke Heath Prison Healthcare,ID MEDICAL,447167,615.22,733 7385 18
Department of Health,CT Revenue Funds,08/09/2016,Agency Hlthcare Assistants & Support Staff,Stoke Heath Prison Healthcare,ID MEDICAL,447168,68.35,733 7385 18
Department of Health,CT Revenue Funds,08/09/2016,Agency Hlthcare Assistants & Support Staff,Stoke Heath Prison Healthcare,ID MEDICAL,447168,341.76,733 7385 18
Department of Health,CT Revenue Funds,08/09/2016,Agency Hlthcare Assistants & Support Staff,Ludlow Hospital Inpatient Wards,ID MEDICAL,448883,205.1,733 7385 18
Department of Health,CT Revenue Funds,08/09/2016,Agency Hlthcare Assistants & Support Staff,Ludlow Hospital Inpatient Wards,ID MEDICAL,448883,41.02,733 7385 18
Department of Health,CT Revenue Funds,08/09/2016,Agency Hlthcare Assistants & Support Staff,Ludlow Hospital Inpatient Wards,ID MEDICAL,448884,41.02,733 7385 18
Department of Health,CT Revenue Funds,08/09/2016,Agency Hlthcare Assistants & Support Staff,Ludlow Hospital Inpatient Wards,ID MEDICAL,448884,205.1,733 7385 18
Department of Health,CT Revenue Funds,08/09/2016,Agency Hlthcare Assistants & Support Staff,Ludlow Hospital Inpatient Wards,ID MEDICAL,448885,205.1,733 7385 18
Department of Health,CT Revenue Funds,08/09/2016,Agency Hlthcare Assistants & Support Staff,Ludlow Hospital Inpatient Wards,ID MEDICAL,448885,41.02,733 7385 18
Department of Health,CT Revenue Funds,08/09/2016,Agency Hlthcare Assistants & Support Staff,Ludlow Hospital Inpatient Wards,ID MEDICAL,448887,41.02,733 7385 18
Department of Health,CT Revenue Funds,08/09/2016,Agency Hlthcare Assistants & Support Staff,Ludlow Hospital Inpatient Wards,ID MEDICAL,448887,205.1,733 7385 18
Department of Health,CT Revenue Funds,01/09/2016,Agency Hlthcare Assistants & Support Staff,Stoke Heath Prison Healthcare,ID MEDICAL,448889,384.48,733 7385 18
Department of Health,CT Revenue Funds,01/09/2016,Agency Hlthcare Assistants & Support Staff,Stoke Heath Prison Healthcare,ID MEDICAL,448889,76.9,733 7385 18
Department of Health,CT Revenue Funds,01/09/2016,Agency Hlthcare Assistants & Support Staff,Stoke Heath Prison Healthcare,ID MEDICAL,448890,216.52,733 7385 18
Department of Health,CT Revenue Funds,01/09/2016,Agency Hlthcare Assistants & Support Staff,Stoke Heath Prison Healthcare,ID MEDICAL,448890,1082.62,733 7385 18
Department of Health,CT Revenue Funds,01/09/2016,Agency Hlthcare Assistants & Support Staff,Stoke Heath Prison Healthcare,ID MEDICAL,448891,692.22,733 7385 18
Department of Health,CT Revenue Funds,01/09/2016,Agency Hlthcare Assistants & Support Staff,Stoke Heath Prison Healthcare,ID MEDICAL,448891,138.44,733 7385 18
Department of Health,CT Revenue Funds,01/09/2016,Agency Hlthcare Assistants & Support Staff,Stoke Heath Prison Healthcare,ID MEDICAL,448892,149.67,733 7385 18
Department of Health,CT Revenue Funds,01/09/2016,Agency Hlthcare Assistants & Support Staff,Stoke Heath Prison Healthcare,ID MEDICAL,448892,748.36,733 7385 18
Department of Health,CT Revenue Funds,01/09/2016,Agency Hlthcare Assistants & Support Staff,Stoke Heath Prison Healthcare,ID MEDICAL,448893,286.88,733 7385 18
Department of Health,CT Revenue Funds,01/09/2016,Agency Hlthcare Assistants & Support Staff,Stoke Heath Prison Healthcare,ID MEDICAL,448893,57.38,733 7385 18
Department of Health,CT Revenue Funds,01/09/2016,Agency Hlthcare Assistants & Support Staff,Stoke Heath Prison Healthcare,ID MEDICAL,448894,576.72,733 7385 18
Department of Health,CT Revenue Funds,01/09/2016,Agency Hlthcare Assistants & Support Staff,Stoke Heath Prison Healthcare,ID MEDICAL,448894,115.34,733 7385 18
Department of Health,CT Revenue Funds,01/09/2016,Agency Hlthcare Assistants & Support Staff,Stoke Heath Prison Healthcare,ID MEDICAL,448895,384.48,733 7385 18
Department of Health,CT Revenue Funds,01/09/2016,Agency Hlthcare Assistants & Support Staff,Stoke Heath Prison Healthcare,ID MEDICAL,448895,76.9,733 7385 18
Department of Health,CT Revenue Funds,01/09/2016,Agency Hlthcare Assistants & Support Staff,Stoke Heath Prison Healthcare,ID MEDICAL,448896,198.57,733 7385 18
Department of Health,CT Revenue Funds,01/09/2016,Agency Hlthcare Assistants & Support Staff,Stoke Heath Prison Healthcare,ID MEDICAL,448896,992.87,733 7385 18
Department of Health,CT Revenue Funds,01/09/2016,Agency Hlthcare Assistants & Support Staff,Stoke Heath Prison Healthcare,ID MEDICAL,448897,149.67,733 7385 18
Department of Health,CT Revenue Funds,01/09/2016,Agency Hlthcare Assistants & Support Staff,Stoke Heath Prison Healthcare,ID MEDICAL,448897,748.36,733 7385 18
Department of Health,CT Revenue Funds,08/09/2016,Agency Hlthcare Assistants & Support Staff,Bishops Castle Hospital Inpatient Ward,ID MEDICAL,450726,255,733 7385 18
Department of Health,CT Revenue Funds,08/09/2016,Agency Hlthcare Assistants & Support Staff,Bishops Castle Hospital Inpatient Ward,ID MEDICAL,450726,51,733 7385 18
Department of Health,CT Revenue Funds,01/09/2016,Agency Hlthcare Assistants & Support Staff,Bridgnorth Hospital Inpatient Ward,ID MEDICAL,450727,615.3,733 7385 18
Department of Health,CT Revenue Funds,01/09/2016,Agency Hlthcare Assistants & Support Staff,Bridgnorth Hospital Inpatient Ward,ID MEDICAL,450727,123.06,733 7385 18
Department of Health,CT Revenue Funds,01/09/2016,Agency Hlthcare Assistants & Support Staff,Bridgnorth Hospital Inpatient Ward,ID MEDICAL,450728,205.1,733 7385 18
Department of Health,CT Revenue Funds,01/09/2016,Agency Hlthcare Assistants & Support Staff,Bridgnorth Hospital Inpatient Ward,ID MEDICAL,450728,41.02,733 7385 18
Department of Health,CT Revenue Funds,01/09/2016,Agency Hlthcare Assistants & Support Staff,Bridgnorth Hospital Inpatient Ward,ID MEDICAL,450729,205.1,733 7385 18
Department of Health,CT Revenue Funds,01/09/2016,Agency Hlthcare Assistants & Support Staff,Bridgnorth Hospital Inpatient Ward,ID MEDICAL,450729,41.02,733 7385 18
Department of Health,CT Revenue Funds,01/09/2016,Agency Hlthcare Assistants & Support Staff,Bridgnorth Hospital Inpatient Ward,ID MEDICAL,450730,119.63,733 7385 18
Department of Health,CT Revenue Funds,01/09/2016,Agency Hlthcare Assistants & Support Staff,Bridgnorth Hospital Inpatient Ward,ID MEDICAL,450730,598.13,733 7385 18
Department of Health,CT Revenue Funds,01/09/2016,Agency Hlthcare Assistants & Support Staff,Bridgnorth Hospital Inpatient Ward,ID MEDICAL,450731,23.88,733 7385 18
Department of Health,CT Revenue Funds,01/09/2016,Agency Hlthcare Assistants & Support Staff,Bridgnorth Hospital Inpatient Ward,ID MEDICAL,450731,119.4,733 7385 18
Department of Health,CT Revenue Funds,01/09/2016,Agency Hlthcare Assistants & Support Staff,Bridgnorth Hospital Inpatient Ward,ID MEDICAL,450733,255,733 7385 18
Department of Health,CT Revenue Funds,01/09/2016,Agency Hlthcare Assistants & Support Staff,Bridgnorth Hospital Inpatient Ward,ID MEDICAL,450733,51,733 7385 18
Department of Health,CT Revenue Funds,08/09/2016,Agency Hlthcare Assistants & Support Staff,Ludlow Hospital Inpatient Wards,ID MEDICAL,450735,41.02,733 7385 18
Department of Health,CT Revenue Funds,08/09/2016,Agency Hlthcare Assistants & Support Staff,Ludlow Hospital Inpatient Wards,ID MEDICAL,450735,205.1,733 7385 18
Department of Health,CT Revenue Funds,08/09/2016,Agency Hlthcare Assistants & Support Staff,Ludlow Hospital Inpatient Wards,ID MEDICAL,450736,390.22,733 7385 18
Department of Health,CT Revenue Funds,08/09/2016,Agency Hlthcare Assistants & Support Staff,Ludlow Hospital Inpatient Wards,ID MEDICAL,450736,78.04,733 7385 18
Department of Health,CT Revenue Funds,01/09/2016,Agency Hlthcare Assistants & Support Staff,Stoke Heath Prison Healthcare,ID MEDICAL,450740,316.47,733 7385 18
Department of Health,CT Revenue Funds,01/09/2016,Agency Hlthcare Assistants & Support Staff,Stoke Heath Prison Healthcare,ID MEDICAL,450740,1582.34,733 7385 18
Department of Health,CT Revenue Funds,01/09/2016,Agency Hlthcare Assistants & Support Staff,Stoke Heath Prison Healthcare,ID MEDICAL,450741,46.15,733 7385 18
Department of Health,CT Revenue Funds,01/09/2016,Agency Hlthcare Assistants & Support Staff,Stoke Heath Prison Healthcare,ID MEDICAL,450741,230.74,733 7385 18
Department of Health,CT Revenue Funds,01/09/2016,Agency Hlthcare Assistants & Support Staff,Stoke Heath Prison Healthcare,ID MEDICAL,450742,92.3,733 7385 18
Department of Health,CT Revenue Funds,01/09/2016,Agency Hlthcare Assistants & Support Staff,Stoke Heath Prison Healthcare,ID MEDICAL,450742,461.48,733 7385 18
Department of Health,CT Revenue Funds,01/09/2016,Agency Hlthcare Assistants & Support Staff,Stoke Heath Prison Healthcare,ID MEDICAL,450743,175.86,733 7385 18
Department of Health,CT Revenue Funds,01/09/2016,Agency Hlthcare Assistants & Support Staff,Stoke Heath Prison Healthcare,ID MEDICAL,450743,879.28,733 7385 18
Department of Health,CT Revenue Funds,01/09/2016,Agency Hlthcare Assistants & Support Staff,Stoke Heath Prison Healthcare,ID MEDICAL,450744,103.52,733 7385 18
Department of Health,CT Revenue Funds,01/09/2016,Agency Hlthcare Assistants & Support Staff,Stoke Heath Prison Healthcare,ID MEDICAL,450744,517.62,733 7385 18
Department of Health,CT Revenue Funds,01/09/2016,Agency Hlthcare Assistants & Support Staff,Stoke Heath Prison Healthcare,ID MEDICAL,450745,46.15,733 7385 18
Department of Health,CT Revenue Funds,01/09/2016,Agency Hlthcare Assistants & Support Staff,Stoke Heath Prison Healthcare,ID MEDICAL,450745,230.74,733 7385 18
Department of Health,CT Revenue Funds,01/09/2016,Agency Hlthcare Assistants & Support Staff,Stoke Heath Prison Healthcare,ID MEDICAL,450746,1384.44,733 7385 18
Department of Health,CT Revenue Funds,01/09/2016,Agency Hlthcare Assistants & Support Staff,Stoke Heath Prison Healthcare,ID MEDICAL,450746,276.89,733 7385 18
Department of Health,CT Revenue Funds,01/09/2016,Agency Hlthcare Assistants & Support Staff,Stoke Heath Prison Healthcare,ID MEDICAL,450747,92.3,733 7385 18
Department of Health,CT Revenue Funds,01/09/2016,Agency Hlthcare Assistants & Support Staff,Stoke Heath Prison Healthcare,ID MEDICAL,450747,461.48,733 7385 18
Department of Health,CT Revenue Funds,01/09/2016,Agency Hlthcare Assistants & Support Staff,Stoke Heath Prison Healthcare,ID MEDICAL,450748,922.96,733 7385 18
Department of Health,CT Revenue Funds,01/09/2016,Agency Hlthcare Assistants & Support Staff,Stoke Heath Prison Healthcare,ID MEDICAL,450748,184.59,733 7385 18
Department of Health,CT Revenue Funds,01/09/2016,Agency Hlthcare Assistants & Support Staff,Stoke Heath Prison Healthcare,ID MEDICAL,450749,576.72,733 7385 18
Department of Health,CT Revenue Funds,01/09/2016,Agency Hlthcare Assistants & Support Staff,Stoke Heath Prison Healthcare,ID MEDICAL,450749,115.34,733 7385 18
Department of Health,CT Revenue Funds,01/09/2016,Agency Hlthcare Assistants & Support Staff,Stoke Heath Prison Healthcare,ID MEDICAL,450750,115.34,733 7385 18
Department of Health,CT Revenue Funds,01/09/2016,Agency Hlthcare Assistants & Support Staff,Stoke Heath Prison Healthcare,ID MEDICAL,450750,576.72,733 7385 18
Department of Health,CT Revenue Funds,01/09/2016,Agency Hlthcare Assistants & Support Staff,Whitchurch Hospital Inpatient Ward,ID MEDICAL,450758,205.1,733 7385 18
Department of Health,CT Revenue Funds,01/09/2016,Agency Hlthcare Assistants & Support Staff,Whitchurch Hospital Inpatient Ward,ID MEDICAL,450758,41.02,733 7385 18
Department of Health,CT Revenue Funds,01/09/2016,Agency Hlthcare Assistants & Support Staff,Whitchurch Hospital Inpatient Ward,ID MEDICAL,450759,255,733 7385 18
Department of Health,CT Revenue Funds,01/09/2016,Agency Hlthcare Assistants & Support Staff,Whitchurch Hospital Inpatient Ward,ID MEDICAL,450759,51,733 7385 18
Department of Health,CT Revenue Funds,01/09/2016,Agency Hlthcare Assistants & Support Staff,Whitchurch Hospital Inpatient Ward,ID MEDICAL,450761,205.1,733 7385 18
Department of Health,CT Revenue Funds,01/09/2016,Agency Hlthcare Assistants & Support Staff,Whitchurch Hospital Inpatient Ward,ID MEDICAL,450761,41.02,733 7385 18
Department of Health,CT Revenue Funds,01/09/2016,Agency Hlthcare Assistants & Support Staff,Bridgnorth Hospital Inpatient Ward,ID MEDICAL,453059,82.04,733 7385 18
Department of Health,CT Revenue Funds,01/09/2016,Agency Hlthcare Assistants & Support Staff,Bridgnorth Hospital Inpatient Ward,ID MEDICAL,453059,410.2,733 7385 18
Department of Health,CT Revenue Funds,01/09/2016,Agency Hlthcare Assistants & Support Staff,Bridgnorth Hospital Inpatient Ward,ID MEDICAL,453060,41.02,733 7385 18
Department of Health,CT Revenue Funds,01/09/2016,Agency Hlthcare Assistants & Support Staff,Bridgnorth Hospital Inpatient Ward,ID MEDICAL,453060,205.1,733 7385 18
Department of Health,CT Revenue Funds,01/09/2016,Agency Hlthcare Assistants & Support Staff,Bridgnorth Hospital Inpatient Ward,ID MEDICAL,453061,205.1,733 7385 18
Department of Health,CT Revenue Funds,01/09/2016,Agency Hlthcare Assistants & Support Staff,Bridgnorth Hospital Inpatient Ward,ID MEDICAL,453061,41.02,733 7385 18
Department of Health,CT Revenue Funds,01/09/2016,Agency Hlthcare Assistants & Support Staff,Bridgnorth Hospital Inpatient Ward,ID MEDICAL,453062,37.02,733 7385 18
Department of Health,CT Revenue Funds,01/09/2016,Agency Hlthcare Assistants & Support Staff,Bridgnorth Hospital Inpatient Ward,ID MEDICAL,453062,185.12,733 7385 18
Department of Health,CT Revenue Funds,01/09/2016,Agency Hlthcare Assistants & Support Staff,Bridgnorth Hospital Inpatient Ward,ID MEDICAL,453063,92.66,733 7385 18
Department of Health,CT Revenue Funds,01/09/2016,Agency Hlthcare Assistants & Support Staff,Bridgnorth Hospital Inpatient Ward,ID MEDICAL,453063,463.28,733 7385 18
Department of Health,CT Revenue Funds,01/09/2016,Agency Hlthcare Assistants & Support Staff,Bridgnorth Hospital Inpatient Ward,ID MEDICAL,453065,41.02,733 7385 18
Department of Health,CT Revenue Funds,01/09/2016,Agency Hlthcare Assistants & Support Staff,Bridgnorth Hospital Inpatient Ward,ID MEDICAL,453065,205.1,733 7385 18
Department of Health,CT Revenue Funds,01/09/2016,Agency Hlthcare Assistants & Support Staff,Bridgnorth Hospital Inpatient Ward,ID MEDICAL,453066,48.19,733 7385 18
Department of Health,CT Revenue Funds,01/09/2016,Agency Hlthcare Assistants & Support Staff,Bridgnorth Hospital Inpatient Ward,ID MEDICAL,453066,240.93,733 7385 18
Department of Health,CT Revenue Funds,01/09/2016,Agency Hlthcare Assistants & Support Staff,Bridgnorth Hospital Inpatient Ward,ID MEDICAL,453067,53.33,733 7385 18
Department of Health,CT Revenue Funds,01/09/2016,Agency Hlthcare Assistants & Support Staff,Bridgnorth Hospital Inpatient Ward,ID MEDICAL,453067,266.63,733 7385 18
Department of Health,CT Revenue Funds,08/09/2016,Agency Hlthcare Assistants & Support Staff,Ludlow Hospital Inpatient Wards,ID MEDICAL,453070,550.08,733 7385 18
Department of Health,CT Revenue Funds,08/09/2016,Agency Hlthcare Assistants & Support Staff,Ludlow Hospital Inpatient Wards,ID MEDICAL,453070,110.02,733 7385 18
Department of Health,CT Revenue Funds,08/09/2016,Agency Hlthcare Assistants & Support Staff,Ludlow Hospital Inpatient Wards,ID MEDICAL,453072,51,733 7385 18
Department of Health,CT Revenue Funds,08/09/2016,Agency Hlthcare Assistants & Support Staff,Ludlow Hospital Inpatient Wards,ID MEDICAL,453072,255,733 7385 18
Department of Health,CT Revenue Funds,08/09/2016,Agency Hlthcare Assistants & Support Staff,Ludlow Hospital Inpatient Wards,ID MEDICAL,453073,805.02,733 7385 18
Department of Health,CT Revenue Funds,08/09/2016,Agency Hlthcare Assistants & Support Staff,Ludlow Hospital Inpatient Wards,ID MEDICAL,453073,161,733 7385 18
Department of Health,CT Revenue Funds,08/09/2016,Agency Hlthcare Assistants & Support Staff,Ludlow Hospital Inpatient Wards,ID MEDICAL,453075,205.1,733 7385 18
Department of Health,CT Revenue Funds,08/09/2016,Agency Hlthcare Assistants & Support Staff,Ludlow Hospital Inpatient Wards,ID MEDICAL,453075,41.02,733 7385 18
Department of Health,CT Revenue Funds,08/09/2016,Agency Hlthcare Assistants & Support Staff,Ludlow Hospital Inpatient Wards,ID MEDICAL,453076,102.05,733 7385 18
Department of Health,CT Revenue Funds,08/09/2016,Agency Hlthcare Assistants & Support Staff,Ludlow Hospital Inpatient Wards,ID MEDICAL,453076,510.25,733 7385 18
Department of Health,CT Revenue Funds,01/09/2016,Agency Hlthcare Assistants & Support Staff,Stoke Heath Prison Healthcare,ID MEDICAL,453081,156.65,733 7385 18
Department of Health,CT Revenue Funds,01/09/2016,Agency Hlthcare Assistants & Support Staff,Stoke Heath Prison Healthcare,ID MEDICAL,453081,783.25,733 7385 18
Department of Health,CT Revenue Funds,01/09/2016,Agency Hlthcare Assistants & Support Staff,Stoke Heath Prison Healthcare,ID MEDICAL,453082,461.48,733 7385 18
Department of Health,CT Revenue Funds,01/09/2016,Agency Hlthcare Assistants & Support Staff,Stoke Heath Prison Healthcare,ID MEDICAL,453082,92.3,733 7385 18
Department of Health,CT Revenue Funds,01/09/2016,Agency Hlthcare Assistants & Support Staff,Stoke Heath Prison Healthcare,ID MEDICAL,453083,748.36,733 7385 18
Department of Health,CT Revenue Funds,01/09/2016,Agency Hlthcare Assistants & Support Staff,Stoke Heath Prison Healthcare,ID MEDICAL,453083,149.67,733 7385 18
Department of Health,CT Revenue Funds,01/09/2016,Agency Hlthcare Assistants & Support Staff,Stoke Heath Prison Healthcare,ID MEDICAL,453084,621.14,733 7385 18
Department of Health,CT Revenue Funds,01/09/2016,Agency Hlthcare Assistants & Support Staff,Stoke Heath Prison Healthcare,ID MEDICAL,453084,124.23,733 7385 18
Department of Health,CT Revenue Funds,01/09/2016,Agency Hlthcare Assistants & Support Staff,Stoke Heath Prison Healthcare,ID MEDICAL,453085,149.67,733 7385 18
Department of Health,CT Revenue Funds,01/09/2016,Agency Hlthcare Assistants & Support Staff,Stoke Heath Prison Healthcare,ID MEDICAL,453085,748.36,733 7385 18
Department of Health,CT Revenue Funds,01/09/2016,Agency Hlthcare Assistants & Support Staff,Stoke Heath Prison Healthcare,ID MEDICAL,453086,46.15,733 7385 18
Department of Health,CT Revenue Funds,01/09/2016,Agency Hlthcare Assistants & Support Staff,Stoke Heath Prison Healthcare,ID MEDICAL,453086,230.74,733 7385 18
Department of Health,CT Revenue Funds,01/09/2016,Agency Hlthcare Assistants & Support Staff,Stoke Heath Prison Healthcare,ID MEDICAL,453087,979.1,733 7385 18
Department of Health,CT Revenue Funds,01/09/2016,Agency Hlthcare Assistants & Support Staff,Stoke Heath Prison Healthcare,ID MEDICAL,453087,195.82,733 7385 18
Department of Health,CT Revenue Funds,01/09/2016,Agency Hlthcare Assistants & Support Staff,Stoke Heath Prison Healthcare,ID MEDICAL,453088,115.34,733 7385 18
Department of Health,CT Revenue Funds,01/09/2016,Agency Hlthcare Assistants & Support Staff,Stoke Heath Prison Healthcare,ID MEDICAL,453088,576.72,733 7385 18
Department of Health,CT Revenue Funds,01/09/2016,Agency Hlthcare Assistants & Support Staff,Stoke Heath Prison Healthcare,ID MEDICAL,453089,192.24,733 7385 18
Department of Health,CT Revenue Funds,01/09/2016,Agency Hlthcare Assistants & Support Staff,Stoke Heath Prison Healthcare,ID MEDICAL,453089,38.45,733 7385 18
Department of Health,CT Revenue Funds,01/09/2016,Agency Hlthcare Assistants & Support Staff,Stoke Heath Prison Healthcare,ID MEDICAL,453090,115.34,733 7385 18
Department of Health,CT Revenue Funds,01/09/2016,Agency Hlthcare Assistants & Support Staff,Stoke Heath Prison Healthcare,ID MEDICAL,453090,576.72,733 7385 18
Department of Health,CT Revenue Funds,01/09/2016,Agency Hlthcare Assistants & Support Staff,Whitchurch Hospital Inpatient Ward,ID MEDICAL,453091,41.02,733 7385 18
Department of Health,CT Revenue Funds,01/09/2016,Agency Hlthcare Assistants & Support Staff,Whitchurch Hospital Inpatient Ward,ID MEDICAL,453091,205.1,733 7385 18
Department of Health,CT Revenue Funds,08/09/2016,Agency Hlthcare Assistants & Support Staff,Bishops Castle Hospital Inpatient Ward,ID MEDICAL,454637,41.02,733 7385 18
Department of Health,CT Revenue Funds,08/09/2016,Agency Hlthcare Assistants & Support Staff,Bishops Castle Hospital Inpatient Ward,ID MEDICAL,454637,205.1,733 7385 18
Department of Health,CT Revenue Funds,08/09/2016,Agency Hlthcare Assistants & Support Staff,Ludlow Hospital Inpatient Wards,ID MEDICAL,454638,38.25,733 7385 18
Department of Health,CT Revenue Funds,08/09/2016,Agency Hlthcare Assistants & Support Staff,Ludlow Hospital Inpatient Wards,ID MEDICAL,454638,191.25,733 7385 18
Department of Health,CT Revenue Funds,08/09/2016,Agency Hlthcare Assistants & Support Staff,Ludlow Hospital Inpatient Wards,ID MEDICAL,454639,41.02,733 7385 18
Department of Health,CT Revenue Funds,08/09/2016,Agency Hlthcare Assistants & Support Staff,Ludlow Hospital Inpatient Wards,ID MEDICAL,454639,205.1,733 7385 18
Department of Health,CT Revenue Funds,08/09/2016,Agency Hlthcare Assistants & Support Staff,Ludlow Hospital Inpatient Wards,ID MEDICAL,454640,131.26,733 7385 18
Department of Health,CT Revenue Funds,08/09/2016,Agency Hlthcare Assistants & Support Staff,Ludlow Hospital Inpatient Wards,ID MEDICAL,454640,656.32,733 7385 18
Department of Health,CT Revenue Funds,08/09/2016,Agency Hlthcare Assistants & Support Staff,Ludlow Hospital Inpatient Wards,ID MEDICAL,454641,205.1,733 7385 18
Department of Health,CT Revenue Funds,08/09/2016,Agency Hlthcare Assistants & Support Staff,Ludlow Hospital Inpatient Wards,ID MEDICAL,454641,41.02,733 7385 18
Department of Health,CT Revenue Funds,08/09/2016,Agency Hlthcare Assistants & Support Staff,Ludlow Hospital Inpatient Wards,ID MEDICAL,454642,88.69,733 7385 18
Department of Health,CT Revenue Funds,08/09/2016,Agency Hlthcare Assistants & Support Staff,Ludlow Hospital Inpatient Wards,ID MEDICAL,454642,443.43,733 7385 18
Department of Health,CT Revenue Funds,08/09/2016,Agency Hlthcare Assistants & Support Staff,Ludlow Hospital Inpatient Wards,ID MEDICAL,454643,410.2,733 7385 18
Department of Health,CT Revenue Funds,08/09/2016,Agency Hlthcare Assistants & Support Staff,Ludlow Hospital Inpatient Wards,ID MEDICAL,454643,82.04,733 7385 18
Department of Health,CT Revenue Funds,08/09/2016,Agency Hlthcare Assistants & Support Staff,Ludlow Hospital Inpatient Wards,ID MEDICAL,454644,255,733 7385 18
Department of Health,CT Revenue Funds,08/09/2016,Agency Hlthcare Assistants & Support Staff,Ludlow Hospital Inpatient Wards,ID MEDICAL,454644,51,733 7385 18
Department of Health,CT Revenue Funds,08/09/2016,Agency Hlthcare Assistants & Support Staff,Ludlow Hospital Inpatient Wards,ID MEDICAL,454645,81.73,733 7385 18
Department of Health,CT Revenue Funds,08/09/2016,Agency Hlthcare Assistants & Support Staff,Ludlow Hospital Inpatient Wards,ID MEDICAL,454645,408.67,733 7385 18
Department of Health,CT Revenue Funds,08/09/2016,Agency Hlthcare Assistants & Support Staff,Ludlow Hospital Inpatient Wards,ID MEDICAL,454647,119.63,733 7385 18
Department of Health,CT Revenue Funds,08/09/2016,Agency Hlthcare Assistants & Support Staff,Ludlow Hospital Inpatient Wards,ID MEDICAL,454647,598.13,733 7385 18
Department of Health,CT Revenue Funds,08/09/2016,Agency Hlthcare Assistants & Support Staff,Ludlow Hospital Inpatient Wards,ID MEDICAL,454649,41.02,733 7385 18
Department of Health,CT Revenue Funds,08/09/2016,Agency Hlthcare Assistants & Support Staff,Ludlow Hospital Inpatient Wards,ID MEDICAL,454649,205.1,733 7385 18
Department of Health,CT Revenue Funds,01/09/2016,Agency Hlthcare Assistants & Support Staff,Stoke Heath Prison Healthcare,ID MEDICAL,454651,992.87,733 7385 18
Department of Health,CT Revenue Funds,01/09/2016,Agency Hlthcare Assistants & Support Staff,Stoke Heath Prison Healthcare,ID MEDICAL,454651,198.57,733 7385 18
Department of Health,CT Revenue Funds,01/09/2016,Agency Hlthcare Assistants & Support Staff,Stoke Heath Prison Healthcare,ID MEDICAL,454653,922.96,733 7385 18
Department of Health,CT Revenue Funds,01/09/2016,Agency Hlthcare Assistants & Support Staff,Stoke Heath Prison Healthcare,ID MEDICAL,454653,184.59,733 7385 18
Department of Health,CT Revenue Funds,01/09/2016,Agency Hlthcare Assistants & Support Staff,Stoke Heath Prison Healthcare,ID MEDICAL,454654,124.23,733 7385 18
Department of Health,CT Revenue Funds,01/09/2016,Agency Hlthcare Assistants & Support Staff,Stoke Heath Prison Healthcare,ID MEDICAL,454654,621.14,733 7385 18
Department of Health,CT Revenue Funds,01/09/2016,Agency Hlthcare Assistants & Support Staff,Stoke Heath Prison Healthcare,ID MEDICAL,454655,46.15,733 7385 18
Department of Health,CT Revenue Funds,01/09/2016,Agency Hlthcare Assistants & Support Staff,Stoke Heath Prison Healthcare,ID MEDICAL,454655,230.74,733 7385 18
Department of Health,CT Revenue Funds,01/09/2016,Agency Hlthcare Assistants & Support Staff,Stoke Heath Prison Healthcare,ID MEDICAL,454657,517.62,733 7385 18
Department of Health,CT Revenue Funds,01/09/2016,Agency Hlthcare Assistants & Support Staff,Stoke Heath Prison Healthcare,ID MEDICAL,454657,103.52,733 7385 18
Department of Health,CT Revenue Funds,01/09/2016,Agency Hlthcare Assistants & Support Staff,Stoke Heath Prison Healthcare,ID MEDICAL,454658,748.36,733 7385 18
Department of Health,CT Revenue Funds,01/09/2016,Agency Hlthcare Assistants & Support Staff,Stoke Heath Prison Healthcare,ID MEDICAL,454658,149.67,733 7385 18
Department of Health,CT Revenue Funds,01/09/2016,Agency Hlthcare Assistants & Support Staff,Stoke Heath Prison Healthcare,ID MEDICAL,454659,1153.44,733 7385 18
Department of Health,CT Revenue Funds,01/09/2016,Agency Hlthcare Assistants & Support Staff,Stoke Heath Prison Healthcare,ID MEDICAL,454659,230.69,733 7385 18
Department of Health,CT Revenue Funds,01/09/2016,Agency Hlthcare Assistants & Support Staff,Stoke Heath Prison Healthcare,ID MEDICAL,454660,576.72,733 7385 18
Department of Health,CT Revenue Funds,01/09/2016,Agency Hlthcare Assistants & Support Staff,Stoke Heath Prison Healthcare,ID MEDICAL,454660,115.34,733 7385 18
Department of Health,CT Revenue Funds,01/09/2016,Agency Hlthcare Assistants & Support Staff,Stoke Heath Prison Healthcare,ID MEDICAL,454661,92.3,733 7385 18
Department of Health,CT Revenue Funds,01/09/2016,Agency Hlthcare Assistants & Support Staff,Stoke Heath Prison Healthcare,ID MEDICAL,454661,461.48,733 7385 18
Department of Health,CT Revenue Funds,01/09/2016,Agency Hlthcare Assistants & Support Staff,Bridgnorth Hospital Inpatient Ward,ID MEDICAL,454678,460.1,733 7385 18
Department of Health,CT Revenue Funds,01/09/2016,Agency Hlthcare Assistants & Support Staff,Bridgnorth Hospital Inpatient Ward,ID MEDICAL,454678,92.02,733 7385 18
Department of Health,CT Revenue Funds,01/09/2016,Agency Hlthcare Assistants & Support Staff,Bridgnorth Hospital Inpatient Ward,ID MEDICAL,454679,205.1,733 7385 18
Department of Health,CT Revenue Funds,01/09/2016,Agency Hlthcare Assistants & Support Staff,Bridgnorth Hospital Inpatient Ward,ID MEDICAL,454679,41.02,733 7385 18
Department of Health,CT Revenue Funds,01/09/2016,Agency Hlthcare Assistants & Support Staff,Bridgnorth Hospital Inpatient Ward,ID MEDICAL,454680,82.04,733 7385 18
Department of Health,CT Revenue Funds,01/09/2016,Agency Hlthcare Assistants & Support Staff,Bridgnorth Hospital Inpatient Ward,ID MEDICAL,454680,410.2,733 7385 18
Department of Health,CT Revenue Funds,01/09/2016,Agency Hlthcare Assistants & Support Staff,Bridgnorth Hospital Inpatient Ward,ID MEDICAL,454681,119.63,733 7385 18
Department of Health,CT Revenue Funds,01/09/2016,Agency Hlthcare Assistants & Support Staff,Bridgnorth Hospital Inpatient Ward,ID MEDICAL,454681,598.13,733 7385 18
Department of Health,CT Revenue Funds,01/09/2016,Agency Hlthcare Assistants & Support Staff,Bridgnorth Hospital Inpatient Ward,ID MEDICAL,454682,477.6,733 7385 18
Department of Health,CT Revenue Funds,01/09/2016,Agency Hlthcare Assistants & Support Staff,Bridgnorth Hospital Inpatient Ward,ID MEDICAL,454682,95.52,733 7385 18
Department of Health,CT Revenue Funds,01/09/2016,Agency Hlthcare Assistants & Support Staff,Bridgnorth Hospital Inpatient Ward,ID MEDICAL,454683,41.02,733 7385 18
Department of Health,CT Revenue Funds,01/09/2016,Agency Hlthcare Assistants & Support Staff,Bridgnorth Hospital Inpatient Ward,ID MEDICAL,454683,205.1,733 7385 18
Department of Health,CT Revenue Funds,01/09/2016,Agency Hlthcare Assistants & Support Staff,Bridgnorth Hospital Inpatient Ward,ID MEDICAL,454684,41.02,733 7385 18
Department of Health,CT Revenue Funds,01/09/2016,Agency Hlthcare Assistants & Support Staff,Bridgnorth Hospital Inpatient Ward,ID MEDICAL,454684,205.1,733 7385 18
Department of Health,CT Revenue Funds,08/09/2016,Agency Hlthcare Assistants & Support Staff,Bishops Castle Hospital Inpatient Ward,ID MEDICAL,455579,51,733 7385 18
Department of Health,CT Revenue Funds,08/09/2016,Agency Hlthcare Assistants & Support Staff,Bishops Castle Hospital Inpatient Ward,ID MEDICAL,455579,255,733 7385 18
Department of Health,CT Revenue Funds,01/09/2016,Agency Hlthcare Assistants & Support Staff,Bridgnorth Hospital Inpatient Ward,ID MEDICAL,456258,123.06,733 7385 18
Department of Health,CT Revenue Funds,01/09/2016,Agency Hlthcare Assistants & Support Staff,Bridgnorth Hospital Inpatient Ward,ID MEDICAL,456258,615.3,733 7385 18
Department of Health,CT Revenue Funds,01/09/2016,Agency Hlthcare Assistants & Support Staff,Bridgnorth Hospital Inpatient Ward,ID MEDICAL,456259,41.02,733 7385 18
Department of Health,CT Revenue Funds,01/09/2016,Agency Hlthcare Assistants & Support Staff,Bridgnorth Hospital Inpatient Ward,ID MEDICAL,456259,205.1,733 7385 18
Department of Health,CT Revenue Funds,01/09/2016,Agency Hlthcare Assistants & Support Staff,Bridgnorth Hospital Inpatient Ward,ID MEDICAL,456260,133.04,733 7385 18
Department of Health,CT Revenue Funds,01/09/2016,Agency Hlthcare Assistants & Support Staff,Bridgnorth Hospital Inpatient Ward,ID MEDICAL,456260,665.2,733 7385 18
Department of Health,CT Revenue Funds,01/09/2016,Agency Hlthcare Assistants & Support Staff,Bridgnorth Hospital Inpatient Ward,ID MEDICAL,456261,665.2,733 7385 18
Department of Health,CT Revenue Funds,01/09/2016,Agency Hlthcare Assistants & Support Staff,Bridgnorth Hospital Inpatient Ward,ID MEDICAL,456261,133.04,733 7385 18
Department of Health,CT Revenue Funds,01/09/2016,Agency Hlthcare Assistants & Support Staff,Bridgnorth Hospital Inpatient Ward,ID MEDICAL,456262,41.02,733 7385 18
Department of Health,CT Revenue Funds,01/09/2016,Agency Hlthcare Assistants & Support Staff,Bridgnorth Hospital Inpatient Ward,ID MEDICAL,456262,205.1,733 7385 18
Department of Health,CT Revenue Funds,01/09/2016,Agency Hlthcare Assistants & Support Staff,Bridgnorth Hospital Inpatient Ward,ID MEDICAL,456263,783.25,733 7385 18
Department of Health,CT Revenue Funds,01/09/2016,Agency Hlthcare Assistants & Support Staff,Bridgnorth Hospital Inpatient Ward,ID MEDICAL,456263,156.65,733 7385 18
Department of Health,CT Revenue Funds,01/09/2016,Agency Hlthcare Assistants & Support Staff,Bridgnorth Hospital Inpatient Ward,ID MEDICAL,456264,888.3,733 7385 18
Department of Health,CT Revenue Funds,01/09/2016,Agency Hlthcare Assistants & Support Staff,Bridgnorth Hospital Inpatient Ward,ID MEDICAL,456264,177.66,733 7385 18
Department of Health,CT Revenue Funds,01/09/2016,Agency Hlthcare Assistants & Support Staff,Bridgnorth Hospital Inpatient Ward,ID MEDICAL,456265,278.7,733 7385 18
Department of Health,CT Revenue Funds,01/09/2016,Agency Hlthcare Assistants & Support Staff,Bridgnorth Hospital Inpatient Ward,ID MEDICAL,456265,55.74,733 7385 18
Department of Health,CT Revenue Funds,01/09/2016,Agency Hlthcare Assistants & Support Staff,Bridgnorth Hospital Inpatient Ward,ID MEDICAL,456266,224.48,733 7385 18
Department of Health,CT Revenue Funds,01/09/2016,Agency Hlthcare Assistants & Support Staff,Bridgnorth Hospital Inpatient Ward,ID MEDICAL,456266,44.9,733 7385 18
Department of Health,CT Revenue Funds,01/09/2016,Agency Hlthcare Assistants & Support Staff,Bridgnorth Hospital Inpatient Ward,ID MEDICAL,456267,37.02,733 7385 18
Department of Health,CT Revenue Funds,01/09/2016,Agency Hlthcare Assistants & Support Staff,Bridgnorth Hospital Inpatient Ward,ID MEDICAL,456267,185.12,733 7385 18
Department of Health,CT Revenue Funds,15/09/2016,Agency Hlthcare Assistants & Support Staff,Whitchurch Hospital Inpatient Ward,ID MEDICAL,461745,113.92,733 7385 18
Department of Health,CT Revenue Funds,15/09/2016,Agency Hlthcare Assistants & Support Staff,Whitchurch Hospital Inpatient Ward,ID MEDICAL,461745,22.78,733 7385 18
Department of Health,CT Revenue Funds,15/09/2016,Agency Hlthcare Assistants & Support Staff,Whitchurch Hospital Inpatient Ward,ID MEDICAL,461748,41.02,733 7385 18
Department of Health,CT Revenue Funds,15/09/2016,Agency Hlthcare Assistants & Support Staff,Whitchurch Hospital Inpatient Ward,ID MEDICAL,461748,205.1,733 7385 18
Department of Health,CT Revenue Funds,15/09/2016,Agency Hlthcare Assistants & Support Staff,Stoke Heath Prison Healthcare,ID MEDICAL,461762,469.13,733 7385 18
Department of Health,CT Revenue Funds,15/09/2016,Agency Hlthcare Assistants & Support Staff,Stoke Heath Prison Healthcare,ID MEDICAL,461762,93.83,733 7385 18
Department of Health,CT Revenue Funds,15/09/2016,Agency Hlthcare Assistants & Support Staff,Stoke Heath Prison Healthcare,ID MEDICAL,461764,152.53,733 7385 18
Department of Health,CT Revenue Funds,15/09/2016,Agency Hlthcare Assistants & Support Staff,Stoke Heath Prison Healthcare,ID MEDICAL,461764,762.64,733 7385 18
Department of Health,CT Revenue Funds,15/09/2016,Agency Hlthcare Assistants & Support Staff,Stoke Heath Prison Healthcare,ID MEDICAL,461765,63.75,733 7385 18
Department of Health,CT Revenue Funds,15/09/2016,Agency Hlthcare Assistants & Support Staff,Stoke Heath Prison Healthcare,ID MEDICAL,461765,318.75,733 7385 18
Department of Health,CT Revenue Funds,15/09/2016,Agency Hlthcare Assistants & Support Staff,Stoke Heath Prison Healthcare,ID MEDICAL,461766,149.67,733 7385 18
Department of Health,CT Revenue Funds,15/09/2016,Agency Hlthcare Assistants & Support Staff,Stoke Heath Prison Healthcare,ID MEDICAL,461766,748.36,733 7385 18
Department of Health,CT Revenue Funds,15/09/2016,Agency Hlthcare Assistants & Support Staff,Stoke Heath Prison Healthcare,ID MEDICAL,461767,192.24,733 7385 18
Department of Health,CT Revenue Funds,15/09/2016,Agency Hlthcare Assistants & Support Staff,Stoke Heath Prison Healthcare,ID MEDICAL,461767,38.45,733 7385 18
Department of Health,CT Revenue Funds,15/09/2016,Agency Hlthcare Assistants & Support Staff,Stoke Heath Prison Healthcare,ID MEDICAL,461768,92.3,733 7385 18
Department of Health,CT Revenue Funds,15/09/2016,Agency Hlthcare Assistants & Support Staff,Stoke Heath Prison Healthcare,ID MEDICAL,461768,461.48,733 7385 18
Department of Health,CT Revenue Funds,15/09/2016,Agency Hlthcare Assistants & Support Staff,Stoke Heath Prison Healthcare,ID MEDICAL,461769,230.74,733 7385 18
Department of Health,CT Revenue Funds,15/09/2016,Agency Hlthcare Assistants & Support Staff,Stoke Heath Prison Healthcare,ID MEDICAL,461769,1153.7,733 7385 18
Department of Health,CT Revenue Funds,15/09/2016,Agency Hlthcare Assistants & Support Staff,Stoke Heath Prison Healthcare,ID MEDICAL,461770,192.24,733 7385 18
Department of Health,CT Revenue Funds,15/09/2016,Agency Hlthcare Assistants & Support Staff,Stoke Heath Prison Healthcare,ID MEDICAL,461770,38.45,733 7385 18
Department of Health,CT Revenue Funds,15/09/2016,Agency Hlthcare Assistants & Support Staff,Stoke Heath Prison Healthcare,ID MEDICAL,461771,813.38,733 7385 18
Department of Health,CT Revenue Funds,15/09/2016,Agency Hlthcare Assistants & Support Staff,Stoke Heath Prison Healthcare,ID MEDICAL,461771,162.68,733 7385 18
Department of Health,CT Revenue Funds,15/09/2016,Agency Hlthcare Assistants & Support Staff,Stoke Heath Prison Healthcare,ID MEDICAL,461772,46.15,733 7385 18
Department of Health,CT Revenue Funds,15/09/2016,Agency Hlthcare Assistants & Support Staff,Stoke Heath Prison Healthcare,ID MEDICAL,461772,230.74,733 7385 18
Department of Health,CT Revenue Funds,15/09/2016,Agency Hlthcare Assistants & Support Staff,Stoke Heath Prison Healthcare,ID MEDICAL,461773,192.24,733 7385 18
Department of Health,CT Revenue Funds,15/09/2016,Agency Hlthcare Assistants & Support Staff,Stoke Heath Prison Healthcare,ID MEDICAL,461773,38.45,733 7385 18
Department of Health,CT Revenue Funds,15/09/2016,Agency Hlthcare Assistants & Support Staff,Stoke Heath Prison Healthcare,ID MEDICAL,461774,192.24,733 7385 18
Department of Health,CT Revenue Funds,15/09/2016,Agency Hlthcare Assistants & Support Staff,Stoke Heath Prison Healthcare,ID MEDICAL,461774,38.45,733 7385 18
Department of Health,CT Revenue Funds,15/09/2016,Agency Hlthcare Assistants & Support Staff,Stoke Heath Prison Healthcare,ID MEDICAL,461775,38.45,733 7385 18
Department of Health,CT Revenue Funds,15/09/2016,Agency Hlthcare Assistants & Support Staff,Stoke Heath Prison Healthcare,ID MEDICAL,461775,192.24,733 7385 18
Department of Health,CT Revenue Funds,15/09/2016,Agency Hlthcare Assistants & Support Staff,Stoke Heath Prison Healthcare,ID MEDICAL,461777,413.82,733 7385 18
Department of Health,CT Revenue Funds,15/09/2016,Agency Hlthcare Assistants & Support Staff,Stoke Heath Prison Healthcare,ID MEDICAL,461777,82.76,733 7385 18
Department of Health,CT Revenue Funds,15/09/2016,Agency Hlthcare Assistants & Support Staff,Stoke Heath Prison Healthcare,ID MEDICAL,461778,38.45,733 7385 18
Department of Health,CT Revenue Funds,15/09/2016,Agency Hlthcare Assistants & Support Staff,Stoke Heath Prison Healthcare,ID MEDICAL,461778,192.24,733 7385 18
Department of Health,CT Revenue Funds,15/09/2016,Agency Hlthcare Assistants & Support Staff,Stoke Heath Prison Healthcare,ID MEDICAL,461779,195.82,733 7385 18
Department of Health,CT Revenue Funds,15/09/2016,Agency Hlthcare Assistants & Support Staff,Stoke Heath Prison Healthcare,ID MEDICAL,461779,979.1,733 7385 18
Department of Health,CT Revenue Funds,15/09/2016,Agency Hlthcare Assistants & Support Staff,Stoke Heath Prison Healthcare,ID MEDICAL,461780,286.88,733 7385 18
Department of Health,CT Revenue Funds,15/09/2016,Agency Hlthcare Assistants & Support Staff,Stoke Heath Prison Healthcare,ID MEDICAL,461780,57.38,733 7385 18
Department of Health,CT Revenue Funds,15/09/2016,Agency Hlthcare Assistants & Support Staff,Stoke Heath Prison Healthcare,ID MEDICAL,461781,748.36,733 7385 18
Department of Health,CT Revenue Funds,15/09/2016,Agency Hlthcare Assistants & Support Staff,Stoke Heath Prison Healthcare,ID MEDICAL,461781,149.67,733 7385 18
Department of Health,CT Revenue Funds,15/09/2016,Agency Hlthcare Assistants & Support Staff,Stoke Heath Prison Healthcare,ID MEDICAL,461782,621.14,733 7385 18
Department of Health,CT Revenue Funds,15/09/2016,Agency Hlthcare Assistants & Support Staff,Stoke Heath Prison Healthcare,ID MEDICAL,461782,124.23,733 7385 18
Department of Health,CT Revenue Funds,15/09/2016,Agency Hlthcare Assistants & Support Staff,Stoke Heath Prison Healthcare,ID MEDICAL,461783,621.14,733 7385 18
Department of Health,CT Revenue Funds,15/09/2016,Agency Hlthcare Assistants & Support Staff,Stoke Heath Prison Healthcare,ID MEDICAL,461783,124.23,733 7385 18
Department of Health,CT Revenue Funds,15/09/2016,Agency Hlthcare Assistants & Support Staff,Stoke Heath Prison Healthcare,ID MEDICAL,461785,461.48,733 7385 18
Department of Health,CT Revenue Funds,15/09/2016,Agency Hlthcare Assistants & Support Staff,Stoke Heath Prison Healthcare,ID MEDICAL,461785,92.3,733 7385 18
Department of Health,CT Revenue Funds,15/09/2016,Agency Hlthcare Assistants & Support Staff,Stoke Heath Prison Healthcare,ID MEDICAL,461786,348.88,733 7385 18
Department of Health,CT Revenue Funds,15/09/2016,Agency Hlthcare Assistants & Support Staff,Stoke Heath Prison Healthcare,ID MEDICAL,461786,69.78,733 7385 18
Department of Health,CT Revenue Funds,15/09/2016,Agency Hlthcare Assistants & Support Staff,Stoke Heath Prison Healthcare,ID MEDICAL,461787,192.24,733 7385 18
Department of Health,CT Revenue Funds,15/09/2016,Agency Hlthcare Assistants & Support Staff,Stoke Heath Prison Healthcare,ID MEDICAL,461787,38.45,733 7385 18
Department of Health,CT Revenue Funds,15/09/2016,Agency Hlthcare Assistants & Support Staff,Stoke Heath Prison Healthcare,ID MEDICAL,461788,384.48,733 7385 18
Department of Health,CT Revenue Funds,15/09/2016,Agency Hlthcare Assistants & Support Staff,Stoke Heath Prison Healthcare,ID MEDICAL,461788,76.9,733 7385 18
Department of Health,CT Revenue Funds,15/09/2016,Agency Hlthcare Assistants & Support Staff,Stoke Heath Prison Healthcare,ID MEDICAL,461790,922.96,733 7385 18
Department of Health,CT Revenue Funds,15/09/2016,Agency Hlthcare Assistants & Support Staff,Stoke Heath Prison Healthcare,ID MEDICAL,461790,184.59,733 7385 18
Department of Health,CT Revenue Funds,15/09/2016,Agency Hlthcare Assistants & Support Staff,Stoke Heath Prison Healthcare,ID MEDICAL,461791,198.68,733 7385 18
Department of Health,CT Revenue Funds,15/09/2016,Agency Hlthcare Assistants & Support Staff,Stoke Heath Prison Healthcare,ID MEDICAL,461791,993.38,733 7385 18
Department of Health,CT Revenue Funds,15/09/2016,Agency Hlthcare Assistants & Support Staff,Stoke Heath Prison Healthcare,ID MEDICAL,461792,38.45,733 7385 18
Department of Health,CT Revenue Funds,15/09/2016,Agency Hlthcare Assistants & Support Staff,Stoke Heath Prison Healthcare,ID MEDICAL,461792,192.24,733 7385 18
Department of Health,CT Revenue Funds,15/09/2016,Agency Hlthcare Assistants & Support Staff,Stoke Heath Prison Healthcare,ID MEDICAL,461793,92.3,733 7385 18
Department of Health,CT Revenue Funds,15/09/2016,Agency Hlthcare Assistants & Support Staff,Stoke Heath Prison Healthcare,ID MEDICAL,461793,461.48,733 7385 18
Department of Health,CT Revenue Funds,15/09/2016,Agency Hlthcare Assistants & Support Staff,Stoke Heath Prison Healthcare,ID MEDICAL,461794,238.39,733 7385 18
Department of Health,CT Revenue Funds,15/09/2016,Agency Hlthcare Assistants & Support Staff,Stoke Heath Prison Healthcare,ID MEDICAL,461794,1191.93,733 7385 18
Department of Health,CT Revenue Funds,15/09/2016,Agency Hlthcare Assistants & Support Staff,Stoke Heath Prison Healthcare,ID MEDICAL,461795,276.89,733 7385 18
Department of Health,CT Revenue Funds,15/09/2016,Agency Hlthcare Assistants & Support Staff,Stoke Heath Prison Healthcare,ID MEDICAL,461795,55.38,733 7385 18
Department of Health,CT Revenue Funds,15/09/2016,Agency Hlthcare Assistants & Support Staff,Stoke Heath Prison Healthcare,ID MEDICAL,461796,212.76,733 7385 18
Department of Health,CT Revenue Funds,15/09/2016,Agency Hlthcare Assistants & Support Staff,Stoke Heath Prison Healthcare,ID MEDICAL,461796,1063.8,733 7385 18
Department of Health,CT Revenue Funds,15/09/2016,Agency Hlthcare Assistants & Support Staff,Stoke Heath Prison Healthcare,ID MEDICAL,461798,688.5,733 7385 18
Department of Health,CT Revenue Funds,15/09/2016,Agency Hlthcare Assistants & Support Staff,Stoke Heath Prison Healthcare,ID MEDICAL,461798,137.7,733 7385 18
Department of Health,CT Revenue Funds,15/09/2016,Agency Hlthcare Assistants & Support Staff,Ludlow Hospital Inpatient Wards,ID MEDICAL,462213,41.02,733 7385 18
Department of Health,CT Revenue Funds,15/09/2016,Agency Hlthcare Assistants & Support Staff,Ludlow Hospital Inpatient Wards,ID MEDICAL,462213,205.1,733 7385 18
Department of Health,CT Revenue Funds,15/09/2016,Agency Hlthcare Assistants & Support Staff,Ludlow Hospital Inpatient Wards,ID MEDICAL,462214,205.1,733 7385 18
Department of Health,CT Revenue Funds,15/09/2016,Agency Hlthcare Assistants & Support Staff,Ludlow Hospital Inpatient Wards,ID MEDICAL,462214,41.02,733 7385 18
Department of Health,CT Revenue Funds,15/09/2016,Agency Hlthcare Assistants & Support Staff,Ludlow Hospital Inpatient Wards,ID MEDICAL,462215,206.96,733 7385 18
Department of Health,CT Revenue Funds,15/09/2016,Agency Hlthcare Assistants & Support Staff,Ludlow Hospital Inpatient Wards,ID MEDICAL,462215,41.39,733 7385 18
Department of Health,CT Revenue Funds,15/09/2016,Agency Hlthcare Assistants & Support Staff,Ludlow Hospital Inpatient Wards,ID MEDICAL,462217,82.04,733 7385 18
Department of Health,CT Revenue Funds,15/09/2016,Agency Hlthcare Assistants & Support Staff,Ludlow Hospital Inpatient Wards,ID MEDICAL,462217,410.2,733 7385 18
Department of Health,CT Revenue Funds,15/09/2016,Agency Hlthcare Assistants & Support Staff,Bishops Castle Hospital Inpatient Ward,ID MEDICAL,462277,266.63,733 7385 18
Department of Health,CT Revenue Funds,15/09/2016,Agency Hlthcare Assistants & Support Staff,Bishops Castle Hospital Inpatient Ward,ID MEDICAL,462277,53.33,733 7385 18
Department of Health,CT Revenue Funds,15/09/2016,Agency Hlthcare Assistants & Support Staff,Bridgnorth Hospital Inpatient Ward,ID MEDICAL,462278,205.1,733 7385 18
Department of Health,CT Revenue Funds,15/09/2016,Agency Hlthcare Assistants & Support Staff,Bridgnorth Hospital Inpatient Ward,ID MEDICAL,462278,41.02,733 7385 18
Department of Health,CT Revenue Funds,15/09/2016,Agency Hlthcare Assistants & Support Staff,Bridgnorth Hospital Inpatient Ward,ID MEDICAL,462279,1075.4,733 7385 18
Department of Health,CT Revenue Funds,15/09/2016,Agency Hlthcare Assistants & Support Staff,Bridgnorth Hospital Inpatient Ward,ID MEDICAL,462279,215.08,733 7385 18
Department of Health,CT Revenue Funds,15/09/2016,Agency Hlthcare Assistants & Support Staff,Bridgnorth Hospital Inpatient Ward,ID MEDICAL,462280,82.04,733 7385 18
Department of Health,CT Revenue Funds,15/09/2016,Agency Hlthcare Assistants & Support Staff,Bridgnorth Hospital Inpatient Ward,ID MEDICAL,462280,410.2,733 7385 18
Department of Health,CT Revenue Funds,15/09/2016,Agency Hlthcare Assistants & Support Staff,Bridgnorth Hospital Inpatient Ward,ID MEDICAL,462281,133.04,733 7385 18
Department of Health,CT Revenue Funds,15/09/2016,Agency Hlthcare Assistants & Support Staff,Bridgnorth Hospital Inpatient Ward,ID MEDICAL,462281,665.2,733 7385 18
Department of Health,CT Revenue Funds,15/09/2016,Agency Hlthcare Assistants & Support Staff,Bridgnorth Hospital Inpatient Ward,ID MEDICAL,462282,370.24,733 7385 18
Department of Health,CT Revenue Funds,15/09/2016,Agency Hlthcare Assistants & Support Staff,Bridgnorth Hospital Inpatient Ward,ID MEDICAL,462282,74.05,733 7385 18
Department of Health,CT Revenue Funds,15/09/2016,Agency Hlthcare Assistants & Support Staff,Bridgnorth Hospital Inpatient Ward,ID MEDICAL,462283,410.2,733 7385 18
Department of Health,CT Revenue Funds,15/09/2016,Agency Hlthcare Assistants & Support Staff,Bridgnorth Hospital Inpatient Ward,ID MEDICAL,462283,82.04,733 7385 18
Department of Health,CT Revenue Funds,15/09/2016,Agency Hlthcare Assistants & Support Staff,Bridgnorth Hospital Inpatient Ward,ID MEDICAL,462284,205.1,733 7385 18
Department of Health,CT Revenue Funds,15/09/2016,Agency Hlthcare Assistants & Support Staff,Bridgnorth Hospital Inpatient Ward,ID MEDICAL,462284,41.02,733 7385 18
Department of Health,CT Revenue Funds,15/09/2016,Agency Hlthcare Assistants & Support Staff,Bridgnorth Hospital Inpatient Ward,ID MEDICAL,462285,223.28,733 7385 18
Department of Health,CT Revenue Funds,15/09/2016,Agency Hlthcare Assistants & Support Staff,Bridgnorth Hospital Inpatient Ward,ID MEDICAL,462285,1116.42,733 7385 18
Department of Health,CT Revenue Funds,15/09/2016,Agency Hlthcare Assistants & Support Staff,Bridgnorth Hospital Inpatient Ward,ID MEDICAL,462286,410.2,733 7385 18
Department of Health,CT Revenue Funds,15/09/2016,Agency Hlthcare Assistants & Support Staff,Bridgnorth Hospital Inpatient Ward,ID MEDICAL,462286,82.04,733 7385 18
Department of Health,CT Revenue Funds,15/09/2016,Agency Hlthcare Assistants & Support Staff,Bridgnorth Hospital Inpatient Ward,ID MEDICAL,462287,104.54,733 7385 18
Department of Health,CT Revenue Funds,15/09/2016,Agency Hlthcare Assistants & Support Staff,Bridgnorth Hospital Inpatient Ward,ID MEDICAL,462287,522.7,733 7385 18
Department of Health,CT Revenue Funds,15/09/2016,Agency Hlthcare Assistants & Support Staff,Bridgnorth Hospital Inpatient Ward,ID MEDICAL,462288,2328.84,733 7385 18
Department of Health,CT Revenue Funds,15/09/2016,Agency Hlthcare Assistants & Support Staff,Bridgnorth Hospital Inpatient Ward,ID MEDICAL,462288,465.77,733 7385 18
Department of Health,CT Revenue Funds,15/09/2016,Agency Hlthcare Assistants & Support Staff,Bridgnorth Hospital Inpatient Ward,ID MEDICAL,462289,861.41,733 7385 18
Department of Health,CT Revenue Funds,15/09/2016,Agency Hlthcare Assistants & Support Staff,Bridgnorth Hospital Inpatient Ward,ID MEDICAL,462289,172.28,733 7385 18
Department of Health,CT Revenue Funds,15/09/2016,Agency Hlthcare Assistants & Support Staff,Bridgnorth Hospital Inpatient Ward,ID MEDICAL,462290,41.02,733 7385 18
Department of Health,CT Revenue Funds,15/09/2016,Agency Hlthcare Assistants & Support Staff,Bridgnorth Hospital Inpatient Ward,ID MEDICAL,462290,205.1,733 7385 18
Department of Health,CT Revenue Funds,15/09/2016,Agency Hlthcare Assistants & Support Staff,Bridgnorth Hospital Inpatient Ward,ID MEDICAL,462291,80.97,733 7385 18
Department of Health,CT Revenue Funds,15/09/2016,Agency Hlthcare Assistants & Support Staff,Bridgnorth Hospital Inpatient Ward,ID MEDICAL,462291,404.85,733 7385 18
Department of Health,CT Revenue Funds,15/09/2016,Agency Hlthcare Assistants & Support Staff,Bridgnorth Hospital Inpatient Ward,ID MEDICAL,462292,41.39,733 7385 18
Department of Health,CT Revenue Funds,15/09/2016,Agency Hlthcare Assistants & Support Staff,Bridgnorth Hospital Inpatient Ward,ID MEDICAL,462292,206.96,733 7385 18
Department of Health,CT Revenue Funds,15/09/2016,Agency Hlthcare Assistants & Support Staff,Bridgnorth Hospital Inpatient Ward,ID MEDICAL,462293,460.1,733 7385 18
Department of Health,CT Revenue Funds,15/09/2016,Agency Hlthcare Assistants & Support Staff,Bridgnorth Hospital Inpatient Ward,ID MEDICAL,462293,92.02,733 7385 18
Department of Health,CT Revenue Funds,15/09/2016,Agency Hlthcare Assistants & Support Staff,Bridgnorth Hospital Inpatient Ward,ID MEDICAL,462294,185.12,733 7385 18
Department of Health,CT Revenue Funds,15/09/2016,Agency Hlthcare Assistants & Support Staff,Bridgnorth Hospital Inpatient Ward,ID MEDICAL,462294,37.02,733 7385 18
Department of Health,CT Revenue Funds,15/09/2016,Agency Hlthcare Assistants & Support Staff,Bridgnorth Hospital Inpatient Ward,ID MEDICAL,462295,56.8,733 7385 18
Department of Health,CT Revenue Funds,15/09/2016,Agency Hlthcare Assistants & Support Staff,Bridgnorth Hospital Inpatient Ward,ID MEDICAL,462295,284.02,733 7385 18
Department of Health,CT Revenue Funds,15/09/2016,Agency Hlthcare Assistants & Support Staff,Ludlow Hospital Inpatient Wards,ID MEDICAL,462297,21.36,733 7385 18
Department of Health,CT Revenue Funds,15/09/2016,Agency Hlthcare Assistants & Support Staff,Ludlow Hospital Inpatient Wards,ID MEDICAL,462297,106.8,733 7385 18
Department of Health,CT Revenue Funds,15/09/2016,Agency Hlthcare Assistants & Support Staff,Ludlow Hospital Inpatient Wards,ID MEDICAL,462300,39.8,733 7385 18
Department of Health,CT Revenue Funds,15/09/2016,Agency Hlthcare Assistants & Support Staff,Ludlow Hospital Inpatient Wards,ID MEDICAL,462300,199,733 7385 18
Department of Health,CT Revenue Funds,15/09/2016,Agency Hlthcare Assistants & Support Staff,Ludlow Hospital Inpatient Wards,ID MEDICAL,462301,41.02,733 7385 18
Department of Health,CT Revenue Funds,15/09/2016,Agency Hlthcare Assistants & Support Staff,Ludlow Hospital Inpatient Wards,ID MEDICAL,462301,205.1,733 7385 18
Department of Health,CT Revenue Funds,15/09/2016,Agency Hlthcare Assistants & Support Staff,Ludlow Hospital Inpatient Wards,ID MEDICAL,462302,41.02,733 7385 18
Department of Health,CT Revenue Funds,15/09/2016,Agency Hlthcare Assistants & Support Staff,Ludlow Hospital Inpatient Wards,ID MEDICAL,462302,205.1,733 7385 18
Department of Health,CT Revenue Funds,15/09/2016,Agency Hlthcare Assistants & Support Staff,Ludlow Hospital Inpatient Wards,ID MEDICAL,462303,205.1,733 7385 18
Department of Health,CT Revenue Funds,15/09/2016,Agency Hlthcare Assistants & Support Staff,Ludlow Hospital Inpatient Wards,ID MEDICAL,462303,41.02,733 7385 18
Department of Health,CT Revenue Funds,15/09/2016,Agency Hlthcare Assistants & Support Staff,Ludlow Hospital Inpatient Wards,ID MEDICAL,462304,41.02,733 7385 18
Department of Health,CT Revenue Funds,15/09/2016,Agency Hlthcare Assistants & Support Staff,Ludlow Hospital Inpatient Wards,ID MEDICAL,462304,205.1,733 7385 18
Department of Health,CT Revenue Funds,15/09/2016,Agency Hlthcare Assistants & Support Staff,Ludlow Hospital Inpatient Wards,ID MEDICAL,462305,53.33,733 7385 18
Department of Health,CT Revenue Funds,15/09/2016,Agency Hlthcare Assistants & Support Staff,Ludlow Hospital Inpatient Wards,ID MEDICAL,462305,266.63,733 7385 18
Department of Health,CT Revenue Funds,15/09/2016,Agency Hlthcare Assistants & Support Staff,Ludlow Hospital Inpatient Wards,ID MEDICAL,462306,261.5,733 7385 18
Department of Health,CT Revenue Funds,15/09/2016,Agency Hlthcare Assistants & Support Staff,Ludlow Hospital Inpatient Wards,ID MEDICAL,462306,52.3,733 7385 18
Department of Health,CT Revenue Funds,15/09/2016,Agency Hlthcare Assistants & Support Staff,Bridgnorth Hospital Inpatient Ward,ID MEDICAL,463140,41.02,733 7385 18
Department of Health,CT Revenue Funds,15/09/2016,Agency Hlthcare Assistants & Support Staff,Bridgnorth Hospital Inpatient Ward,ID MEDICAL,463140,205.1,733 7385 18
Department of Health,CT Revenue Funds,15/09/2016,Agency Hlthcare Assistants & Support Staff,Bridgnorth Hospital Inpatient Ward,ID MEDICAL,463422,205.1,733 7385 18
Department of Health,CT Revenue Funds,15/09/2016,Agency Hlthcare Assistants & Support Staff,Bridgnorth Hospital Inpatient Ward,ID MEDICAL,463422,41.02,733 7385 18
Department of Health,CT Revenue Funds,15/09/2016,Agency Hlthcare Assistants & Support Staff,Bridgnorth Hospital Inpatient Ward,ID MEDICAL,463423,156.09,733 7385 18
Department of Health,CT Revenue Funds,15/09/2016,Agency Hlthcare Assistants & Support Staff,Bridgnorth Hospital Inpatient Ward,ID MEDICAL,463423,780.44,733 7385 18
Department of Health,CT Revenue Funds,15/09/2016,Agency Hlthcare Assistants & Support Staff,Stoke Heath Prison Healthcare,ID MEDICAL,463782,184.59,733 7385 18
Department of Health,CT Revenue Funds,15/09/2016,Agency Hlthcare Assistants & Support Staff,Stoke Heath Prison Healthcare,ID MEDICAL,463782,922.96,733 7385 18
Department of Health,CT Revenue Funds,28/09/2016,Agency Hlthcare Assistants & Support Staff,Bishops Castle Hospital Inpatient Ward,ID MEDICAL,466276,209.6,733 7385 18
Department of Health,CT Revenue Funds,28/09/2016,Agency Hlthcare Assistants & Support Staff,Bishops Castle Hospital Inpatient Ward,ID MEDICAL,466277,256.5,733 7385 18
Department of Health,CT Revenue Funds,28/09/2016,Agency Hlthcare Assistants & Support Staff,Bishops Castle Hospital Inpatient Ward,ID MEDICAL,466278,596.05,733 7385 18
Department of Health,CT Revenue Funds,28/09/2016,Agency Hlthcare Assistants & Support Staff,Bridgnorth Hospital Minor Injuries Unit,ID MEDICAL,466288,164.62,733 7385 18
Department of Health,CT Revenue Funds,28/09/2016,Agency Hlthcare Assistants & Support Staff,Bridgnorth Hospital Minor Injuries Unit,ID MEDICAL,466289,-106.8,733 7385 18
Department of Health,CT Revenue Funds,28/09/2016,Agency Hlthcare Assistants & Support Staff,Bridgnorth Hospital Inpatient Ward,ID MEDICAL,466289,106.8,733 7385 18
Department of Health,CT Revenue Funds,28/09/2016,Agency Hlthcare Assistants & Support Staff,Bridgnorth Hospital Minor Injuries Unit,ID MEDICAL,466289,106.8,733 7385 18
Department of Health,CT Revenue Funds,28/09/2016,Agency Hlthcare Assistants & Support Staff,Bridgnorth Hospital Minor Injuries Unit,ID MEDICAL,466290,656.32,733 7385 18
Department of Health,CT Revenue Funds,28/09/2016,Agency Hlthcare Assistants & Support Staff,Bridgnorth Hospital Inpatient Ward,ID MEDICAL,466290,656.32,733 7385 18
Department of Health,CT Revenue Funds,28/09/2016,Agency Hlthcare Assistants & Support Staff,Bridgnorth Hospital Minor Injuries Unit,ID MEDICAL,466290,-656.32,733 7385 18
Department of Health,CT Revenue Funds,28/09/2016,Agency Hlthcare Assistants & Support Staff,Bridgnorth Hospital Minor Injuries Unit,ID MEDICAL,466291,-1244.11,733 7385 18
Department of Health,CT Revenue Funds,28/09/2016,Agency Hlthcare Assistants & Support Staff,Bridgnorth Hospital Inpatient Ward,ID MEDICAL,466291,1244.11,733 7385 18
Department of Health,CT Revenue Funds,28/09/2016,Agency Hlthcare Assistants & Support Staff,Bridgnorth Hospital Minor Injuries Unit,ID MEDICAL,466291,1244.11,733 7385 18
Department of Health,CT Revenue Funds,28/09/2016,Agency Hlthcare Assistants & Support Staff,Bridgnorth Hospital Minor Injuries Unit,ID MEDICAL,466292,205.1,733 7385 18
Department of Health,CT Revenue Funds,28/09/2016,Agency Hlthcare Assistants & Support Staff,Bridgnorth Hospital Inpatient Ward,ID MEDICAL,466292,205.1,733 7385 18
Department of Health,CT Revenue Funds,28/09/2016,Agency Hlthcare Assistants & Support Staff,Bridgnorth Hospital Minor Injuries Unit,ID MEDICAL,466292,-205.1,733 7385 18
Department of Health,CT Revenue Funds,28/09/2016,Agency Hlthcare Assistants & Support Staff,Bridgnorth Hospital Minor Injuries Unit,ID MEDICAL,466293,-183.08,733 7385 18
Department of Health,CT Revenue Funds,28/09/2016,Agency Hlthcare Assistants & Support Staff,Bridgnorth Hospital Inpatient Ward,ID MEDICAL,466293,183.08,733 7385 18
Department of Health,CT Revenue Funds,28/09/2016,Agency Hlthcare Assistants & Support Staff,Bridgnorth Hospital Minor Injuries Unit,ID MEDICAL,466293,183.08,733 7385 18
Department of Health,CT Revenue Funds,28/09/2016,Agency Hlthcare Assistants & Support Staff,Bridgnorth Hospital Minor Injuries Unit,ID MEDICAL,466294,613.47,733 7385 18
Department of Health,CT Revenue Funds,28/09/2016,Agency Hlthcare Assistants & Support Staff,Bridgnorth Hospital Minor Injuries Unit,ID MEDICAL,466294,-613.47,733 7385 18
Department of Health,CT Revenue Funds,28/09/2016,Agency Hlthcare Assistants & Support Staff,Bridgnorth Hospital Inpatient Ward,ID MEDICAL,466294,613.47,733 7385 18
Department of Health,CT Revenue Funds,28/09/2016,Agency Hlthcare Assistants & Support Staff,Bridgnorth Hospital Minor Injuries Unit,ID MEDICAL,466295,1160.3,733 7385 18
Department of Health,CT Revenue Funds,28/09/2016,Agency Hlthcare Assistants & Support Staff,Bridgnorth Hospital Minor Injuries Unit,ID MEDICAL,466303,-225.61,733 7385 18
Department of Health,CT Revenue Funds,28/09/2016,Agency Hlthcare Assistants & Support Staff,Bridgnorth Hospital Inpatient Ward,ID MEDICAL,466303,225.61,733 7385 18
Department of Health,CT Revenue Funds,28/09/2016,Agency Hlthcare Assistants & Support Staff,Bridgnorth Hospital Minor Injuries Unit,ID MEDICAL,466303,225.61,733 7385 18
Department of Health,CT Revenue Funds,28/09/2016,Agency Hlthcare Assistants & Support Staff,Bridgnorth Hospital Minor Injuries Unit,ID MEDICAL,466304,205.1,733 7385 18
Department of Health,CT Revenue Funds,28/09/2016,Agency Hlthcare Assistants & Support Staff,Bridgnorth Hospital Inpatient Ward,ID MEDICAL,466304,205.1,733 7385 18
Department of Health,CT Revenue Funds,28/09/2016,Agency Hlthcare Assistants & Support Staff,Bridgnorth Hospital Minor Injuries Unit,ID MEDICAL,466304,-205.1,733 7385 18
Department of Health,CT Revenue Funds,28/09/2016,Agency Hlthcare Assistants & Support Staff,Ludlow Hospital Inpatient Wards,ID MEDICAL,466309,379.44,733 7385 18
Department of Health,CT Revenue Funds,28/09/2016,Agency Hlthcare Assistants & Support Staff,Ludlow Hospital Inpatient Wards,ID MEDICAL,466310,546.63,733 7385 18
Department of Health,CT Revenue Funds,28/09/2016,Agency Hlthcare Assistants & Support Staff,Ludlow Hospital Inpatient Wards,ID MEDICAL,466311,404.73,733 7385 18
Department of Health,CT Revenue Funds,28/09/2016,Agency Hlthcare Assistants & Support Staff,Ludlow Hospital Inpatient Wards,ID MEDICAL,466312,1088.1,733 7385 18
Department of Health,CT Revenue Funds,28/09/2016,Agency Hlthcare Assistants & Support Staff,Ludlow Hospital Inpatient Wards,ID MEDICAL,466313,434.3,733 7385 18
Department of Health,CT Revenue Funds,28/09/2016,Agency Hlthcare Assistants & Support Staff,Ludlow Hospital Inpatient Wards,ID MEDICAL,466314,267.7,733 7385 18
Department of Health,CT Revenue Funds,28/09/2016,Agency Hlthcare Assistants & Support Staff,Ludlow Hospital Inpatient Wards,ID MEDICAL,466315,205.1,733 7385 18
Department of Health,CT Revenue Funds,28/09/2016,Agency Hlthcare Assistants & Support Staff,Ludlow Hospital Inpatient Wards,ID MEDICAL,466316,178,733 7385 18
Department of Health,CT Revenue Funds,28/09/2016,Agency Hlthcare Assistants & Support Staff,Ludlow Hospital Inpatient Wards,ID MEDICAL,466317,410.2,733 7385 18
Department of Health,CT Revenue Funds,28/09/2016,Agency Hlthcare Assistants & Support Staff,Stoke Heath Prison Healthcare,ID MEDICAL,466355,979.1,733 7385 18
Department of Health,CT Revenue Funds,28/09/2016,Agency Hlthcare Assistants & Support Staff,Stoke Heath Prison Healthcare,ID MEDICAL,466356,192.24,733 7385 18
Department of Health,CT Revenue Funds,28/09/2016,Agency Hlthcare Assistants & Support Staff,Stoke Heath Prison Healthcare,ID MEDICAL,466357,475.22,733 7385 18
Department of Health,CT Revenue Funds,28/09/2016,Agency Hlthcare Assistants & Support Staff,Stoke Heath Prison Healthcare,ID MEDICAL,466358,576.72,733 7385 18
Department of Health,CT Revenue Funds,28/09/2016,Agency Hlthcare Assistants & Support Staff,Stoke Heath Prison Healthcare,ID MEDICAL,466359,1128.06,733 7385 18
Department of Health,CT Revenue Funds,28/09/2016,Agency Hlthcare Assistants & Support Staff,Stoke Heath Prison Healthcare,ID MEDICAL,466360,846.49,733 7385 18
Department of Health,CT Revenue Funds,28/09/2016,Agency Hlthcare Assistants & Support Staff,Stoke Heath Prison Healthcare,ID MEDICAL,466361,1153.7,733 7385 18
Department of Health,CT Revenue Funds,28/09/2016,Agency Hlthcare Assistants & Support Staff,Stoke Heath Prison Healthcare,ID MEDICAL,466362,748.36,733 7385 18
Department of Health,CT Revenue Funds,28/09/2016,Agency Hlthcare Assistants & Support Staff,Stoke Heath Prison Healthcare,ID MEDICAL,466363,192.24,733 7385 18
Department of Health,CT Revenue Funds,28/09/2016,Agency Hlthcare Assistants & Support Staff,Stoke Heath Prison Healthcare,ID MEDICAL,466364,1197.86,733 7385 18
Department of Health,CT Revenue Funds,28/09/2016,Agency Hlthcare Assistants & Support Staff,Stoke Heath Prison Healthcare,ID MEDICAL,466365,531.9,733 7385 18
Department of Health,CT Revenue Funds,28/09/2016,Agency Hlthcare Assistants & Support Staff,Stoke Heath Prison Healthcare,ID MEDICAL,466366,553.64,733 7385 18
Department of Health,CT Revenue Funds,28/09/2016,Agency Hlthcare Assistants & Support Staff,Bridgnorth Hospital Inpatient Ward,ID MEDICAL,468127,338.95,733 7385 18
Department of Health,CT Revenue Funds,28/09/2016,Agency Hlthcare Assistants & Support Staff,Bridgnorth Hospital Inpatient Ward,ID MEDICAL,468128,472.8,733 7385 18
Department of Health,CT Revenue Funds,28/09/2016,Agency Hlthcare Assistants & Support Staff,Bridgnorth Hospital Inpatient Ward,ID MEDICAL,468129,410.2,733 7385 18
Department of Health,CT Revenue Funds,28/09/2016,Agency Hlthcare Assistants & Support Staff,Bridgnorth Hospital Inpatient Ward,ID MEDICAL,468130,205.1,733 7385 18
Department of Health,CT Revenue Funds,28/09/2016,Agency Hlthcare Assistants & Support Staff,Bridgnorth Hospital Inpatient Ward,ID MEDICAL,468131,1075.4,733 7385 18
Department of Health,CT Revenue Funds,28/09/2016,Agency Hlthcare Assistants & Support Staff,Bridgnorth Hospital Inpatient Ward,ID MEDICAL,468132,615.3,733 7385 18
Department of Health,CT Revenue Funds,28/09/2016,Agency Hlthcare Assistants & Support Staff,Bridgnorth Hospital Inpatient Ward,ID MEDICAL,468133,205.1,733 7385 18
Department of Health,CT Revenue Funds,28/09/2016,Agency Hlthcare Assistants & Support Staff,Bridgnorth Hospital Inpatient Ward,ID MEDICAL,468134,205.1,733 7385 18
Department of Health,CT Revenue Funds,28/09/2016,Agency Hlthcare Assistants & Support Staff,Bridgnorth Hospital Inpatient Ward,ID MEDICAL,468135,205.1,733 7385 18
Department of Health,CT Revenue Funds,28/09/2016,Agency Hlthcare Assistants & Support Staff,Ludlow Hospital Inpatient Wards,ID MEDICAL,468137,205.1,733 7385 18
Department of Health,CT Revenue Funds,28/09/2016,Agency Hlthcare Assistants & Support Staff,Ludlow Hospital Inpatient Wards,ID MEDICAL,468138,154.62,733 7385 18
Department of Health,CT Revenue Funds,28/09/2016,Agency Hlthcare Assistants & Support Staff,Ludlow Hospital Inpatient Wards,ID MEDICAL,468139,410.2,733 7385 18
Department of Health,CT Revenue Funds,28/09/2016,Agency Hlthcare Assistants & Support Staff,Ludlow Hospital Inpatient Wards,ID MEDICAL,468140,410.2,733 7385 18
Department of Health,CT Revenue Funds,28/09/2016,Agency Hlthcare Assistants & Support Staff,Ludlow Hospital Inpatient Wards,ID MEDICAL,468141,267.7,733 7385 18
Department of Health,CT Revenue Funds,28/09/2016,Agency Hlthcare Assistants & Support Staff,Ludlow Hospital Inpatient Wards,ID MEDICAL,468142,205.1,733 7385 18
Department of Health,CT Revenue Funds,28/09/2016,Agency Hlthcare Assistants & Support Staff,Ludlow Hospital Inpatient Wards,ID MEDICAL,468143,711.88,733 7385 18
Department of Health,CT Revenue Funds,28/09/2016,Agency Hlthcare Assistants & Support Staff,Stoke Heath Prison Healthcare,ID MEDICAL,468144,384.48,733 7385 18
Department of Health,CT Revenue Funds,28/09/2016,Agency Hlthcare Assistants & Support Staff,Stoke Heath Prison Healthcare,ID MEDICAL,468145,461.48,733 7385 18
Department of Health,CT Revenue Funds,28/09/2016,Agency Hlthcare Assistants & Support Staff,Stoke Heath Prison Healthcare,ID MEDICAL,468146,230.74,733 7385 18
Department of Health,CT Revenue Funds,28/09/2016,Agency Hlthcare Assistants & Support Staff,Stoke Heath Prison Healthcare,ID MEDICAL,468147,230.74,733 7385 18
Department of Health,CT Revenue Funds,28/09/2016,Agency Hlthcare Assistants & Support Staff,Stoke Heath Prison Healthcare,ID MEDICAL,468148,1453.22,733 7385 18
Department of Health,CT Revenue Funds,28/09/2016,Agency Hlthcare Assistants & Support Staff,Stoke Heath Prison Healthcare,ID MEDICAL,468149,461.48,733 7385 18
Department of Health,CT Revenue Funds,28/09/2016,Agency Hlthcare Assistants & Support Staff,Stoke Heath Prison Healthcare,ID MEDICAL,468150,301.16,733 7385 18
Department of Health,CT Revenue Funds,28/09/2016,Agency Hlthcare Assistants & Support Staff,Stoke Heath Prison Healthcare,ID MEDICAL,468151,1005.62,733 7385 18
Department of Health,CT Revenue Funds,28/09/2016,Agency Hlthcare Assistants & Support Staff,Stoke Heath Prison Healthcare,ID MEDICAL,468152,461.48,733 7385 18
Department of Health,CT Revenue Funds,28/09/2016,Agency Hlthcare Assistants & Support Staff,Stoke Heath Prison Healthcare,ID MEDICAL,468153,762.64,733 7385 18
Department of Health,CT Revenue Funds,28/09/2016,Agency Hlthcare Assistants & Support Staff,Stoke Heath Prison Healthcare,ID MEDICAL,468154,638.29,733 7385 18
Department of Health,CT Revenue Funds,01/09/2016,Agency Hlthcare Assistants & Support Staff,Bridgnorth Hospital Inpatient Ward,THE CARE BUREAU,523891,194.53,
Department of Health,CT Revenue Funds,01/09/2016,Agency Hlthcare Assistants & Support Staff,Whitchurch Hospital Inpatient Ward,THE CARE BUREAU,523892,116.21,
Department of Health,CT Revenue Funds,01/09/2016,Agency Hlthcare Assistants & Support Staff,Bridgnorth Hospital Inpatient Ward,THE CARE BUREAU,523892,116.21,
Department of Health,CT Revenue Funds,01/09/2016,Agency Hlthcare Assistants & Support Staff,Bridgnorth Hospital Inpatient Ward,THE CARE BUREAU,523892,-116.21,
Department of Health,CT Revenue Funds,15/09/2016,Agency Hlthcare Assistants & Support Staff,Bridgnorth Hospital Inpatient Ward,THE CARE BUREAU,524046,495.11,
Department of Health,CT Revenue Funds,15/09/2016,Agency Hlthcare Assistants & Support Staff,Bridgnorth Hospital Inpatient Ward,THE CARE BUREAU,524046,7,
Department of Health,CT Revenue Funds,15/09/2016,Agency Hlthcare Assistants & Support Staff,Bridgnorth Hospital Inpatient Ward,THE CARE BUREAU,524046,1.4,
Department of Health,CT Revenue Funds,28/09/2016,Agency Hlthcare Assistants & Support Staff,Ludlow Hospital Inpatient Wards,THE CARE BUREAU,524108,25,
Department of Health,CT Revenue Funds,28/09/2016,Agency Hlthcare Assistants & Support Staff,Ludlow Hospital Inpatient Wards,THE CARE BUREAU,524108,294.21,
Department of Health,CT Revenue Funds,28/09/2016,Agency Hlthcare Assistants & Support Staff,Ludlow Hospital Inpatient Wards,THE CARE BUREAU,524108,5,
Department of Health,CT Revenue Funds,28/09/2016,Agency Hlthcare Assistants & Support Staff,Ludlow Hospital Inpatient Wards,MEDACS HEALTHCARE SERVICES PLC,604-906429,208.8,745 7310 30
Department of Health,CT Revenue Funds,15/09/2016,Agency Hlthcare Assistants & Support Staff,Bridgnorth Hospital Inpatient Ward,TTM HEALTHCARE,TTM38563,128.4,
Department of Health,CT Revenue Funds,15/09/2016,Agency Hlthcare Assistants & Support Staff,Bridgnorth Hospital Inpatient Ward,TTM HEALTHCARE,TTM38563,25.68,
Department of Health,CT Revenue Funds,15/09/2016,Agency Hlthcare Assistants & Support Staff,Ludlow Hospital Inpatient Wards,TTM HEALTHCARE,TTM38566,119.97,
Department of Health,CT Revenue Funds,08/09/2016,Agency Nursing,Ludlow Hospital Inpatient Wards,ACTONBANKS HEALTHCARE RECRUITMENT SPECIALISTS,00101666,371.25,909 8550 90
Department of Health,CT Revenue Funds,08/09/2016,Agency Nursing,Ludlow Hospital Inpatient Wards,ACTONBANKS HEALTHCARE RECRUITMENT SPECIALISTS,00101667,743.75,909 8550 90
Department of Health,CT Revenue Funds,15/09/2016,Agency Nursing,Bishops Castle Hospital Inpatient Ward,ACTONBANKS HEALTHCARE RECRUITMENT SPECIALISTS,00102210,595,909 8550 90
Department of Health,CT Revenue Funds,22/09/2016,Agency Nursing,Oswestry Minor Injuries Unit,ACTONBANKS HEALTHCARE RECRUITMENT SPECIALISTS,00102683,348.18,909 8550 90
Department of Health,CT Revenue Funds,22/09/2016,Agency Nursing,Whitchurch Hospital Inpatient Ward,ACTONBANKS HEALTHCARE RECRUITMENT SPECIALISTS,00102787,604.5,909 8550 90
Department of Health,CT Revenue Funds,28/09/2016,Agency Nursing,Bishops Castle Hospital Inpatient Ward,ACTONBANKS HEALTHCARE RECRUITMENT SPECIALISTS,00102788,495,909 8550 90
Department of Health,CT Revenue Funds,28/09/2016,Agency Nursing,Oswestry Minor Injuries Unit,ACTONBANKS HEALTHCARE RECRUITMENT SPECIALISTS,00103273,1044.54,909 8550 90
Department of Health,CT Revenue Funds,28/09/2016,Agency Nursing,Ludlow Hospital Inpatient Wards,ACTONBANKS HEALTHCARE RECRUITMENT SPECIALISTS,00103372,495,909 8550 90
Department of Health,CT Revenue Funds,28/09/2016,Agency Nursing,Bishops Castle Hospital Inpatient Ward,ACTONBANKS HEALTHCARE RECRUITMENT SPECIALISTS,00103373,565,909 8550 90
Department of Health,CT Revenue Funds,28/09/2016,Agency Nursing,Bishops Castle Hospital Inpatient Ward,ACTONBANKS HEALTHCARE RECRUITMENT SPECIALISTS,00103374,495,909 8550 90
Department of Health,CT Revenue Funds,01/09/2016,Agency Nursing,Bridgnorth Hospital Inpatient Ward,MERCO MEDICAL STAFFING LTD,01-66457,147.75,
Department of Health,CT Revenue Funds,08/09/2016,Agency Nursing,Stoke Heath Prison Healthcare,AMG NURSING & CARE SERVICES,10001386,1241.67,909 7863 74
Department of Health,CT Revenue Funds,08/09/2016,Agency Nursing,Stoke Heath Prison Healthcare,AMG NURSING & CARE SERVICES,10001425,1241.67,909 7863 74
Department of Health,CT Revenue Funds,01/09/2016,Agency Nursing,Stoke Heath Prison Healthcare,AMG NURSING & CARE SERVICES,10001459,413.89,909 7863 74
Department of Health,CT Revenue Funds,08/09/2016,Agency Nursing,Stoke Heath Prison Healthcare,AMG NURSING & CARE SERVICES,10001490,1241.67,909 7863 74
Department of Health,CT Revenue Funds,22/09/2016,Agency Nursing,Stoke Heath Prison Healthcare,AMG NURSING & CARE SERVICES,10001526,1241.67,909 7863 74
Department of Health,CT Revenue Funds,22/09/2016,Agency Nursing,Stoke Heath Prison Healthcare,AMG NURSING & CARE SERVICES,10001567,827.78,909 7863 74
Department of Health,CT Revenue Funds,28/09/2016,Agency Nursing,Stoke Heath Prison Healthcare,AMG NURSING & CARE SERVICES,10001610,2069.45,909 7863 74
Department of Health,CT Revenue Funds,01/09/2016,Agency Nursing,Oswestry Minor Injuries Unit,MSI RECRUITMENT LTD,188518,795.53,933 2976 04
Department of Health,CT Revenue Funds,22/09/2016,Agency Nursing,Oswestry Minor Injuries Unit,MSI RECRUITMENT LTD,191530,1382.73,933 2976 04
Department of Health,CT Revenue Funds,15/09/2016,Agency Nursing,Oswestry Minor Injuries Unit,MSI RECRUITMENT LTD,193342,397.77,933 2976 04
Department of Health,CT Revenue Funds,22/09/2016,Agency Nursing,Oswestry Minor Injuries Unit,MSI RECRUITMENT LTD,195303,376.83,933 2976 04
Department of Health,CT Revenue Funds,22/09/2016,Agency Nursing,Oswestry Minor Injuries Unit,MSI RECRUITMENT LTD,195304,257.45,933 2976 04
Department of Health,CT Revenue Funds,22/09/2016,Agency Nursing,Oswestry Minor Injuries Unit,MSI RECRUITMENT LTD,195305,293.6,933 2976 04
Department of Health,CT Revenue Funds,22/09/2016,Agency Nursing,Oswestry Minor Injuries Unit,MSI RECRUITMENT LTD,195306,587.2,933 2976 04
Department of Health,CT Revenue Funds,22/09/2016,Agency Nursing,Oswestry Minor Injuries Unit,MSI RECRUITMENT LTD,195307,397.77,933 2976 04
Department of Health,CT Revenue Funds,22/09/2016,Agency Nursing,Oswestry Minor Injuries Unit,MSI RECRUITMENT LTD,197184,1193.3,933 2976 04
Department of Health,CT Revenue Funds,22/09/2016,Agency Nursing,Whitchurch Hospital Inpatient Ward,CORDANT CARE,24564,548.18,
Department of Health,CT Revenue Funds,01/09/2016,Agency Nursing,Oswestry Minor Injuries Unit,PULSE,3585523,522.73,676 2854 93
Department of Health,CT Revenue Funds,01/09/2016,Agency Nursing,Oswestry Minor Injuries Unit,PULSE,3585524,496.6,676 2854 93
Department of Health,CT Revenue Funds,01/09/2016,Agency Nursing,Oswestry Minor Injuries Unit,PULSE,3589717,365.76,676 2854 93
Department of Health,CT Revenue Funds,01/09/2016,Agency Nursing,Oswestry Minor Injuries Unit,PULSE,3589718,365.76,676 2854 93
Department of Health,CT Revenue Funds,01/09/2016,Agency Nursing,Oswestry Minor Injuries Unit,PULSE,3590892,365.76,676 2854 93
Department of Health,CT Revenue Funds,01/09/2016,Agency Nursing,Oswestry Minor Injuries Unit,PULSE,3590893,365.76,676 2854 93
Department of Health,CT Revenue Funds,01/09/2016,Agency Nursing,Oswestry Minor Injuries Unit,PULSE,3593317,226.49,676 2854 93
Department of Health,CT Revenue Funds,01/09/2016,Agency Nursing,Oswestry Minor Injuries Unit,PULSE,3597635,385.01,676 2854 93
Department of Health,CT Revenue Funds,01/09/2016,Agency Nursing,Ludlow Hospital Inpatient Wards,THORNBURY NURSING SERVICES LTD,3598558,733.5,676 2854 93
Department of Health,CT Revenue Funds,01/09/2016,Agency Nursing,Oswestry Minor Injuries Unit,THORNBURY NURSING SERVICES LTD,3602326,592.81,676 2854 93
Department of Health,CT Revenue Funds,01/09/2016,Agency Nursing,Oswestry Minor Injuries Unit,PULSE,3602565,592.25,676 2854 93
Department of Health,CT Revenue Funds,08/09/2016,Agency Nursing,Ludlow Hospital Minor Injuries Unit,THORNBURY NURSING SERVICES LTD,3607096,758.16,676 2854 93
Department of Health,CT Revenue Funds,15/09/2016,Agency Nursing,Oswestry Minor Injuries Unit,PULSE,3609498,365.76,676 2854 93
Department of Health,CT Revenue Funds,15/09/2016,Agency Nursing,Oswestry Minor Injuries Unit,PULSE,3609499,540.2,676 2854 93
Department of Health,CT Revenue Funds,22/09/2016,Agency Nursing,Oswestry Minor Injuries Unit,PULSE,3616690,284.32,676 2854 93
Department of Health,CT Revenue Funds,22/09/2016,Agency Nursing,Oswestry Minor Injuries Unit,PULSE,3618693,365.76,676 2854 93
Department of Health,CT Revenue Funds,22/09/2016,Agency Nursing,Oswestry Minor Injuries Unit,PULSE,3618694,270.1,676 2854 93
Department of Health,CT Revenue Funds,28/09/2016,Agency Nursing,Bishops Castle Hospital Inpatient Ward,THORNBURY NURSING SERVICES LTD,3626587,697.58,676 2854 93
Department of Health,CT Revenue Funds,28/09/2016,Agency Nursing,Bishops Castle Hospital Inpatient Ward,THORNBURY NURSING SERVICES LTD,3626589,-417.74,676 2854 93
Department of Health,CT Revenue Funds,28/09/2016,Agency Nursing,Bishops Castle Hospital Inpatient Ward,THORNBURY NURSING SERVICES LTD,3626589,417.74,676 2854 93
Department of Health,CT Revenue Funds,22/09/2016,Agency Nursing,Ludlow Hospital Inpatient Wards,THORNBURY NURSING SERVICES LTD,3626706,1103.08,676 2854 93
Department of Health,CT Revenue Funds,22/09/2016,Agency Nursing,Oswestry Minor Injuries Unit,PULSE,3627788,226.49,676 2854 93
Department of Health,CT Revenue Funds,28/09/2016,Agency Nursing,Ludlow Hospital Inpatient Wards,THORNBURY NURSING SERVICES LTD,3628679,551.82,676 2854 93
Department of Health,CT Revenue Funds,22/09/2016,Agency Nursing,Oswestry Minor Injuries Unit,PULSE,3631258,270.1,676 2854 93
Department of Health,CT Revenue Funds,28/09/2016,Agency Nursing,Bishops Castle Hospital Inpatient Ward,THORNBURY NURSING SERVICES LTD,3634782,271.64,676 2854 93
Department of Health,CT Revenue Funds,28/09/2016,Agency Nursing,Ludlow Hospital Minor Injuries Unit,THORNBURY NURSING SERVICES LTD,3635086,673.79,676 2854 93
Department of Health,CT Revenue Funds,28/09/2016,Agency Nursing,Oswestry Minor Injuries Unit,THORNBURY NURSING SERVICES LTD,3635160,861.47,676 2854 93
Department of Health,CT Revenue Funds,28/09/2016,Agency Nursing,Oswestry Minor Injuries Unit,PULSE,3636106,385.01,676 2854 93
Department of Health,CT Revenue Funds,08/09/2016,Agency Nursing,Stoke Heath Prison Healthcare,ID MEDICAL,445328,652.15,733 7385 18
Department of Health,CT Revenue Funds,08/09/2016,Agency Nursing,Whitchurch Hospital Inpatient Ward,ID MEDICAL,447157,4337.13,733 7385 18
Department of Health,CT Revenue Funds,08/09/2016,Agency Nursing,Whitchurch Hospital Inpatient Ward,ID MEDICAL,447157,-4337.13,733 7385 18
Department of Health,CT Revenue Funds,08/09/2016,Agency Nursing,Stoke Heath Prison Healthcare,ID MEDICAL,447157,4337.13,733 7385 18
Department of Health,CT Revenue Funds,08/09/2016,Agency Nursing,Stoke Heath Prison Healthcare,ID MEDICAL,447158,329.74,733 7385 18
Department of Health,CT Revenue Funds,08/09/2016,Agency Nursing,Bishops Castle Hospital Inpatient Ward,ID MEDICAL,448872,327.6,733 7385 18
Department of Health,CT Revenue Funds,08/09/2016,Agency Nursing,Ludlow Hospital Inpatient Wards,ID MEDICAL,448882,730.9,733 7385 18
Department of Health,CT Revenue Funds,08/09/2016,Agency Nursing,Ludlow Hospital Inpatient Wards,ID MEDICAL,448886,655.2,733 7385 18
Department of Health,CT Revenue Funds,01/09/2016,Agency Nursing,Stoke Heath Prison Healthcare,ID MEDICAL,448888,2008.82,733 7385 18
Department of Health,CT Revenue Funds,08/09/2016,Agency Nursing,Ludlow Hospital Inpatient Wards,ID MEDICAL,450737,957.68,733 7385 18
Department of Health,CT Revenue Funds,01/09/2016,Agency Nursing,Stoke Heath Prison Healthcare,ID MEDICAL,450739,1364,733 7385 18
Department of Health,CT Revenue Funds,01/09/2016,Agency Nursing,Whitchurch Hospital Inpatient Ward,ID MEDICAL,450756,327.6,733 7385 18
Department of Health,CT Revenue Funds,01/09/2016,Agency Nursing,Whitchurch Hospital Inpatient Ward,ID MEDICAL,450757,802.7,733 7385 18
Department of Health,CT Revenue Funds,15/09/2016,Agency Nursing,Whitchurch Hospital Inpatient Ward,ID MEDICAL,450760,1425.19,733 7385 18
Department of Health,CT Revenue Funds,08/09/2016,Agency Nursing,Ludlow Hospital Inpatient Wards,ID MEDICAL,452245,403.3,733 7385 18
Department of Health,CT Revenue Funds,08/09/2016,Agency Nursing,Ludlow Hospital Inpatient Wards,ID MEDICAL,452246,189,733 7385 18
Department of Health,CT Revenue Funds,08/09/2016,Agency Nursing,Ludlow Hospital Inpatient Wards,ID MEDICAL,452246,225.8,733 7385 18
Department of Health,CT Revenue Funds,08/09/2016,Agency Nursing,Ludlow Hospital Inpatient Wards,ID MEDICAL,452246,-225.8,733 7385 18
Department of Health,CT Revenue Funds,08/09/2016,Agency Nursing,Bishops Castle Hospital Inpatient Ward,ID MEDICAL,453057,135.3,733 7385 18
Department of Health,CT Revenue Funds,08/09/2016,Agency Nursing,Bishops Castle Hospital Inpatient Ward,ID MEDICAL,453058,189,733 7385 18
Department of Health,CT Revenue Funds,08/09/2016,Agency Nursing,Ludlow Hospital Inpatient Wards,ID MEDICAL,453071,374.4,733 7385 18
Department of Health,CT Revenue Funds,08/09/2016,Agency Nursing,Ludlow Hospital Inpatient Wards,ID MEDICAL,453074,202.95,733 7385 18
Department of Health,CT Revenue Funds,08/09/2016,Agency Nursing,Ludlow Hospital Inpatient Wards,ID MEDICAL,453077,189,733 7385 18
Department of Health,CT Revenue Funds,01/09/2016,Agency Nursing,Stoke Heath Prison Healthcare,ID MEDICAL,453080,1364,733 7385 18
Department of Health,CT Revenue Funds,08/09/2016,Agency Nursing,Ludlow Hospital Inpatient Wards,ID MEDICAL,454646,327.6,733 7385 18
Department of Health,CT Revenue Funds,01/09/2016,Agency Nursing,Ludlow Hospital Inpatient Wards,ID MEDICAL,454648,1139.17,733 7385 18
Department of Health,CT Revenue Funds,01/09/2016,Agency Nursing,Stoke Heath Prison Healthcare,ID MEDICAL,454650,1041.59,733 7385 18
Department of Health,CT Revenue Funds,01/09/2016,Agency Nursing,Whitchurch Hospital Inpatient Ward,ID MEDICAL,454652,189,733 7385 18
Department of Health,CT Revenue Funds,15/09/2016,Agency Nursing,Whitchurch Hospital Inpatient Ward,ID MEDICAL,454656,477.36,733 7385 18
Department of Health,CT Revenue Funds,01/09/2016,Agency Nursing,Whitchurch Hospital Inpatient Ward,ID MEDICAL,454662,293.1,733 7385 18
Department of Health,CT Revenue Funds,01/09/2016,Agency Nursing,Whitchurch Hospital Inpatient Ward,ID MEDICAL,454663,345.68,733 7385 18
Department of Health,CT Revenue Funds,01/09/2016,Agency Nursing,Whitchurch Hospital Inpatient Ward,ID MEDICAL,454664,368,733 7385 18
Department of Health,CT Revenue Funds,15/09/2016,Agency Nursing,Whitchurch Hospital Inpatient Ward,ID MEDICAL,461744,189,733 7385 18
Department of Health,CT Revenue Funds,15/09/2016,Agency Nursing,Whitchurch Hospital Inpatient Ward,ID MEDICAL,461746,327.6,733 7385 18
Department of Health,CT Revenue Funds,15/09/2016,Agency Nursing,Whitchurch Hospital Inpatient Ward,ID MEDICAL,461747,403.3,733 7385 18
Department of Health,CT Revenue Funds,15/09/2016,Agency Nursing,Whitchurch Hospital Inpatient Ward,ID MEDICAL,461747,80.66,733 7385 18
Department of Health,CT Revenue Funds,15/09/2016,Agency Nursing,Whitchurch Hospital Inpatient Ward,ID MEDICAL,461749,176.4,733 7385 18
Department of Health,CT Revenue Funds,15/09/2016,Agency Nursing,Whitchurch Hospital Inpatient Ward,ID MEDICAL,461750,548.18,733 7385 18
Department of Health,CT Revenue Funds,15/09/2016,Agency Nursing,Whitchurch Hospital Inpatient Ward,ID MEDICAL,461751,460.9,733 7385 18
Department of Health,CT Revenue Funds,15/09/2016,Agency Nursing,Whitchurch Hospital Inpatient Ward,ID MEDICAL,461752,302.48,733 7385 18
Department of Health,CT Revenue Funds,15/09/2016,Agency Nursing,Whitchurch Hospital Inpatient Ward,ID MEDICAL,461753,630.08,733 7385 18
Department of Health,CT Revenue Funds,15/09/2016,Agency Nursing,Stoke Heath Prison Healthcare,ID MEDICAL,461761,405.79,733 7385 18
Department of Health,CT Revenue Funds,15/09/2016,Agency Nursing,Stoke Heath Prison Healthcare,ID MEDICAL,461776,329.74,733 7385 18
Department of Health,CT Revenue Funds,15/09/2016,Agency Nursing,Stoke Heath Prison Healthcare,ID MEDICAL,461784,1065.27,733 7385 18
Department of Health,CT Revenue Funds,15/09/2016,Agency Nursing,Stoke Heath Prison Healthcare,ID MEDICAL,461789,329.74,733 7385 18
Department of Health,CT Revenue Funds,15/09/2016,Agency Nursing,Stoke Heath Prison Healthcare,ID MEDICAL,461797,1471.06,733 7385 18
Department of Health,CT Revenue Funds,15/09/2016,Agency Nursing,Whitchurch Hospital Inpatient Ward,ID MEDICAL,461799,302.48,733 7385 18
Department of Health,CT Revenue Funds,22/09/2016,Agency Nursing,Ludlow Hospital Inpatient Wards,ID MEDICAL,462216,189,733 7385 18
Department of Health,CT Revenue Funds,22/09/2016,Agency Nursing,Ludlow Hospital Inpatient Wards,ID MEDICAL,462296,327.6,733 7385 18
Department of Health,CT Revenue Funds,22/09/2016,Agency Nursing,Ludlow Hospital Inpatient Wards,ID MEDICAL,462298,748.8,733 7385 18
Department of Health,CT Revenue Funds,22/09/2016,Agency Nursing,Ludlow Hospital Inpatient Wards,ID MEDICAL,462299,655.2,733 7385 18
Department of Health,CT Revenue Funds,22/09/2016,Agency Nursing,Whitchurch Hospital Inpatient Ward,ID MEDICAL,463784,403.3,733 7385 18
Department of Health,CT Revenue Funds,28/09/2016,Agency Nursing,Bishops Castle Hospital Inpatient Ward,ID MEDICAL,466274,1647.47,733 7385 18
Department of Health,CT Revenue Funds,28/09/2016,Agency Nursing,Bishops Castle Hospital Inpatient Ward,ID MEDICAL,466275,655.2,733 7385 18
Department of Health,CT Revenue Funds,28/09/2016,Agency Nursing,Bridgnorth Hospital Inpatient Ward,ID MEDICAL,466287,327.6,733 7385 18
Department of Health,CT Revenue Funds,28/09/2016,Agency Nursing,Bridgnorth Hospital Inpatient Ward,ID MEDICAL,466302,327.6,733 7385 18
Department of Health,CT Revenue Funds,28/09/2016,Agency Nursing,Ludlow Hospital Inpatient Wards,ID MEDICAL,466307,1095.23,733 7385 18
Department of Health,CT Revenue Funds,28/09/2016,Agency Nursing,Ludlow Hospital Inpatient Wards,ID MEDICAL,466308,1584.1,733 7385 18
Department of Health,CT Revenue Funds,28/09/2016,Agency Nursing,Stoke Heath Prison Healthcare,ID MEDICAL,466354,1065.27,733 7385 18
Department of Health,CT Revenue Funds,28/09/2016,Agency Nursing,Whitchurch Hospital Inpatient Ward,ID MEDICAL,466370,327.6,733 7385 18
Department of Health,CT Revenue Funds,28/09/2016,Agency Nursing,Whitchurch Hospital Inpatient Ward,ID MEDICAL,466371,1080.2,733 7385 18
Department of Health,CT Revenue Funds,28/09/2016,Agency Nursing,Bishops Castle Hospital Inpatient Ward,ID MEDICAL,468125,346.32,733 7385 18
Department of Health,CT Revenue Funds,28/09/2016,Agency Nursing,Bishops Castle Hospital Inpatient Ward,ID MEDICAL,468126,327.6,733 7385 18
Department of Health,CT Revenue Funds,28/09/2016,Agency Nursing,Ludlow Hospital Inpatient Wards,ID MEDICAL,468136,718.28,733 7385 18
Department of Health,CT Revenue Funds,28/09/2016,Agency Nursing,Whitchurch Hospital Inpatient Ward,ID MEDICAL,468155,403.3,733 7385 18
Department of Health,CT Revenue Funds,01/09/2016,Agency Nursing,Oswestry Minor Injuries Unit,MEDACS HEALTHCARE SERVICES PLC,604-927953,249.55,745 7310 30
Department of Health,CT Revenue Funds,08/09/2016,Agency Nursing,Bridgnorth Hospital Minor Injuries Unit,MEDACS HEALTHCARE SERVICES PLC,604-931093,249.52,745 7310 30
Department of Health,CT Revenue Funds,22/09/2016,Agency Nursing,Oswestry Minor Injuries Unit,MEDACS HEALTHCARE SERVICES PLC,604-932806,296.31,745 7310 30
Department of Health,CT Revenue Funds,22/09/2016,Agency Nursing,Whitchurch Hospital Inpatient Ward,MEDACS HEALTHCARE SERVICES PLC,604-934069,181.13,745 7310 30
Department of Health,CT Revenue Funds,15/09/2016,Agency Nursing,Bridgnorth Hospital Minor Injuries Unit,MEDACS HEALTHCARE SERVICES PLC,604-934070,249.52,745 7310 30
Department of Health,CT Revenue Funds,15/09/2016,Agency Nursing,Bridgnorth Hospital Minor Injuries Unit,MEDACS HEALTHCARE SERVICES PLC,604-934071,374.28,745 7310 30
Department of Health,CT Revenue Funds,15/09/2016,Agency Nursing,Bridgnorth Hospital Minor Injuries Unit,MEDACS HEALTHCARE SERVICES PLC,604-934071C,-374.28,745 7310 30
Department of Health,CT Revenue Funds,22/09/2016,Agency Nursing,Bridgnorth Hospital Minor Injuries Unit,MEDACS HEALTHCARE SERVICES PLC,604-937088,265.12,745 7310 30
Department of Health,CT Revenue Funds,01/09/2016,Agency Nursing,Oswestry Minor Injuries Unit,HALLAM MEDICAL,87944,268.99,
Department of Health,CT Revenue Funds,22/09/2016,Agency Nursing,Ludlow Hospital Minor Injuries Unit,HALLAM MEDICAL,89944,592.44,
Department of Health,CT Revenue Funds,22/09/2016,Agency Nursing,Ludlow Hospital Minor Injuries Unit,HALLAM MEDICAL,89945,651.25,
Department of Health,CT Revenue Funds,22/09/2016,Agency Nursing,Oswestry Minor Injuries Unit,HALLAM MEDICAL,89946,303.43,
Department of Health,CT Revenue Funds,01/09/2016,Agency Nursing,CAMHS Team (T&W),HCL SOCIAL CARE,HSOC5596194,6.7,
Department of Health,CT Revenue Funds,01/09/2016,Agency Nursing,CAMHS Team (T&W),HCL SOCIAL CARE,HSOC5596194,1.34,
Department of Health,CT Revenue Funds,01/09/2016,Agency Nursing,CAMHS Team (T&W),HCL SOCIAL CARE,HSOC5596196,1.34,
Department of Health,CT Revenue Funds,01/09/2016,Agency Nursing,CAMHS Team (T&W),HCL SOCIAL CARE,HSOC5596196,6.7,
Department of Health,CT Revenue Funds,01/09/2016,Agency Nursing,CAMHS Team (T&W),HCL SOCIAL CARE,HSOC5596477,6.7,
Department of Health,CT Revenue Funds,01/09/2016,Agency Nursing,CAMHS Team (T&W),HCL SOCIAL CARE,HSOC5596477,1.34,
Department of Health,CT Revenue Funds,08/09/2016,Agency Nursing,Shropshire CAMHS Team,HCL SOCIAL CARE,HSOC5596479,5.16,
Department of Health,CT Revenue Funds,08/09/2016,Agency Nursing,Shropshire CAMHS Team,HCL SOCIAL CARE,HSOC5596479,25.82,
Department of Health,CT Revenue Funds,01/09/2016,Agency Nursing,CAMHS Team (T&W),HCL SOCIAL CARE,HSOC5597205,1055.97,
Department of Health,CT Revenue Funds,01/09/2016,Agency Nursing,CAMHS Team (T&W),HCL SOCIAL CARE,HSOC5597205,211.19,
Department of Health,CT Revenue Funds,15/09/2016,Agency Nursing,CAMHS Team (T&W),HCL SOCIAL CARE,HSOC5597206,4.69,
Department of Health,CT Revenue Funds,15/09/2016,Agency Nursing,CAMHS Team (T&W),HCL SOCIAL CARE,HSOC5597206,23.45,
Department of Health,CT Revenue Funds,01/09/2016,Agency Nursing,Shropshire CAMHS Team,HCL SOCIAL CARE,HSOC5597207,1116.28,
Department of Health,CT Revenue Funds,15/09/2016,Agency Nursing,Shropshire CAMHS Team,HCL SOCIAL CARE,HSOC5597208,3.15,
Department of Health,CT Revenue Funds,15/09/2016,Agency Nursing,Shropshire CAMHS Team,HCL SOCIAL CARE,HSOC5597208,15.74,
Department of Health,CT Revenue Funds,01/09/2016,Agency Nursing,Shropshire Primary CAMHS Service,HCL SOCIAL CARE,HSOC5597648,1474.45,
Department of Health,CT Revenue Funds,01/09/2016,Agency Nursing,Shropshire Primary CAMHS Service,HCL SOCIAL CARE,HSOC5597648,294.89,
Department of Health,CT Revenue Funds,15/09/2016,Agency Nursing,Shropshire CAMHS Team,HCL SOCIAL CARE,HSOC5598887,1324.4,
Department of Health,CT Revenue Funds,15/09/2016,Agency Nursing,Shropshire CAMHS Team,HCL SOCIAL CARE,HSOC5598888,15.74,
Department of Health,CT Revenue Funds,15/09/2016,Agency Nursing,Shropshire CAMHS Team,HCL SOCIAL CARE,HSOC5598888,3.15,
Department of Health,CT Revenue Funds,15/09/2016,Agency Nursing,CAMHS Team (T&W),HCL SOCIAL CARE,HSOC5599147,743.09,
Department of Health,CT Revenue Funds,15/09/2016,Agency Nursing,CAMHS Team (T&W),HCL SOCIAL CARE,HSOC5599147,148.62,
Department of Health,CT Revenue Funds,15/09/2016,Agency Nursing,CAMHS Team (T&W),HCL SOCIAL CARE,HSOC5599148,2.68,
Department of Health,CT Revenue Funds,15/09/2016,Agency Nursing,CAMHS Team (T&W),HCL SOCIAL CARE,HSOC5599148,0.54,
Department of Health,CT Revenue Funds,15/09/2016,Agency Nursing,Shropshire Primary CAMHS Service,HCL SOCIAL CARE,HSOC5599149,1494.38,
Department of Health,CT Revenue Funds,15/09/2016,Agency Nursing,Shropshire Primary CAMHS Service,HCL SOCIAL CARE,HSOC5599149,298.88,
Department of Health,CT Revenue Funds,22/09/2016,Agency Nursing,CAMHS Team (T&W),HCL SOCIAL CARE,HSOC5600101,211.19,
Department of Health,CT Revenue Funds,22/09/2016,Agency Nursing,CAMHS Team (T&W),HCL SOCIAL CARE,HSOC5600101,1055.97,
Department of Health,CT Revenue Funds,15/09/2016,Agency Nursing,CAMHS Team (T&W),HCL SOCIAL CARE,HSOC5600102,9.25,
Department of Health,CT Revenue Funds,15/09/2016,Agency Nursing,CAMHS Team (T&W),HCL SOCIAL CARE,HSOC5600102,46.23,
Department of Health,CT Revenue Funds,22/09/2016,Agency Nursing,Shropshire CAMHS Team,HCL SOCIAL CARE,HSOC5600103,1419,
Department of Health,CT Revenue Funds,15/09/2016,Agency Nursing,Shropshire CAMHS Team,HCL SOCIAL CARE,HSOC5600104,15.74,
Department of Health,CT Revenue Funds,15/09/2016,Agency Nursing,Shropshire CAMHS Team,HCL SOCIAL CARE,HSOC5600104,3.15,
Department of Health,CT Revenue Funds,22/09/2016,Agency Nursing,Shropshire Primary CAMHS Service,HCL SOCIAL CARE,HSOC5600105,1494.38,
Department of Health,CT Revenue Funds,22/09/2016,Agency Nursing,Shropshire Primary CAMHS Service,HCL SOCIAL CARE,HSOC5600105,298.88,
Department of Health,CT Revenue Funds,15/09/2016,Agency Nursing,CAMHS Team (T&W),HCL SOCIAL CARE,HSOC5600342,6,
Department of Health,CT Revenue Funds,15/09/2016,Agency Nursing,CAMHS Team (T&W),HCL SOCIAL CARE,HSOC5600342,1.2,
Department of Health,CT Revenue Funds,22/09/2016,Agency Nursing,CAMHS Team (T&W),HCL SOCIAL CARE,HSOC5601428,1055.97,
Department of Health,CT Revenue Funds,22/09/2016,Agency Nursing,CAMHS Team (T&W),HCL SOCIAL CARE,HSOC5601428,211.19,
Department of Health,CT Revenue Funds,22/09/2016,Agency Nursing,Shropshire CAMHS Team,HCL SOCIAL CARE,HSOC5601429,1419,
Department of Health,CT Revenue Funds,22/09/2016,Agency Nursing,Shropshire CAMHS Team,HCL SOCIAL CARE,HSOC5601430,15.74,
Department of Health,CT Revenue Funds,22/09/2016,Agency Nursing,Shropshire CAMHS Team,HCL SOCIAL CARE,HSOC5601430,3.15,
Department of Health,CT Revenue Funds,22/09/2016,Agency Nursing,Shropshire Primary CAMHS Service,HCL SOCIAL CARE,HSOC5601431,1494.38,
Department of Health,CT Revenue Funds,22/09/2016,Agency Nursing,Shropshire Primary CAMHS Service,HCL SOCIAL CARE,HSOC5601431,298.88,
Department of Health,CT Revenue Funds,01/09/2016,Agency Nursing,Stoke Heath Prison Healthcare,IMPERIAL MEDICAL STAFFING LTD,IMP125280,1073.26,810 3150 89
Department of Health,CT Revenue Funds,01/09/2016,Agency Nursing,Stoke Heath Prison Healthcare,IMPERIAL MEDICAL STAFFING LTD,IMP125281,1073.26,810 3150 89
Department of Health,CT Revenue Funds,01/09/2016,Agency Nursing,Stoke Heath Prison Healthcare,IMPERIAL MEDICAL STAFFING LTD,IMP125282,418.57,810 3150 89
Department of Health,CT Revenue Funds,01/09/2016,Agency Nursing,Stoke Heath Prison Healthcare,IMPERIAL MEDICAL STAFFING LTD,IMP125282,536.63,810 3150 89
Department of Health,CT Revenue Funds,01/09/2016,Agency Nursing,Stoke Heath Prison Healthcare,IMPERIAL MEDICAL STAFFING LTD,IMP125283,482.96,810 3150 89
Department of Health,CT Revenue Funds,01/09/2016,Agency Nursing,Stoke Heath Prison Healthcare,IMPERIAL MEDICAL STAFFING LTD,IMP127397,1159.12,810 3150 89
Department of Health,CT Revenue Funds,01/09/2016,Agency Nursing,Stoke Heath Prison Healthcare,IMPERIAL MEDICAL STAFFING LTD,IMP127398,1159.12,810 3150 89
Department of Health,CT Revenue Funds,01/09/2016,Agency Nursing,Stoke Heath Prison Healthcare,IMPERIAL MEDICAL STAFFING LTD,IMP127399,987.4,810 3150 89
Department of Health,CT Revenue Funds,08/09/2016,Agency Nursing,Stoke Heath Prison Healthcare,IMPERIAL MEDICAL STAFFING LTD,IMP129276,1030.33,810 3150 89
Department of Health,CT Revenue Funds,08/09/2016,Agency Nursing,Stoke Heath Prison Healthcare,IMPERIAL MEDICAL STAFFING LTD,IMP129936,1116.18,810 3150 89
Department of Health,CT Revenue Funds,08/09/2016,Agency Nursing,Stoke Heath Prison Healthcare,IMPERIAL MEDICAL STAFFING LTD,IMP129937,558.09,810 3150 89
Department of Health,CT Revenue Funds,15/09/2016,Agency Nursing,Stoke Heath Prison Healthcare,IMPERIAL MEDICAL STAFFING LTD,IMP131452,482.97,810 3150 89
Department of Health,CT Revenue Funds,28/09/2016,Agency Nursing,Stoke Heath Prison Healthcare,IMPERIAL MEDICAL STAFFING LTD,IMP132199,536.62,810 3150 89
Department of Health,CT Revenue Funds,28/09/2016,Agency Nursing,Stoke Heath Prison Healthcare,IMPERIAL MEDICAL STAFFING LTD,IMP132200,482.96,810 3150 89
Department of Health,CT Revenue Funds,28/09/2016,Agency Nursing,Stoke Heath Prison Healthcare,IMPERIAL MEDICAL STAFFING LTD,IMP133565,515.16,810 3150 89
Department of Health,CT Revenue Funds,28/09/2016,Agency Nursing,Stoke Heath Prison Healthcare,IMPERIAL MEDICAL STAFFING LTD,IMP133566,482.97,810 3150 89
Department of Health,CT Revenue Funds,28/09/2016,Agency Nursing,Stoke Heath Prison Healthcare,IMPERIAL MEDICAL STAFFING LTD,IMP135622,482.96,810 3150 89
Department of Health,CT Revenue Funds,28/09/2016,Agency Nursing,Stoke Heath Prison Healthcare,IMPERIAL MEDICAL STAFFING LTD,IMP135623,482.96,810 3150 89
Department of Health,CT Revenue Funds,28/09/2016,Agency Nursing,Stoke Heath Prison Healthcare,IMPERIAL MEDICAL STAFFING LTD,IMP135624,482.97,810 3150 89
Department of Health,CT Revenue Funds,28/09/2016,Agency Nursing,Stoke Heath Prison Healthcare,IMPERIAL MEDICAL STAFFING LTD,IMP135625,482.97,810 3150 89
Department of Health,CT Revenue Funds,28/09/2016,Agency Nursing,Stoke Heath Prison Healthcare,IMPERIAL MEDICAL STAFFING LTD,IMP135626,482.96,810 3150 89
Department of Health,CT Revenue Funds,28/09/2016,Agency Nursing,Stoke Heath Prison Healthcare,IMPERIAL MEDICAL STAFFING LTD,IMP135627,482.96,810 3150 89
Department of Health,CT Revenue Funds,28/09/2016,Agency Nursing,Stoke Heath Prison Healthcare,IMPERIAL MEDICAL STAFFING LTD,IMP135628,482.97,810 3150 89
Department of Health,CT Revenue Funds,28/09/2016,Agency Nursing,Stoke Heath Prison Healthcare,IMPERIAL MEDICAL STAFFING LTD,IMP135629,579.56,810 3150 89
Department of Health,CT Revenue Funds,28/09/2016,Agency Nursing,Stoke Heath Prison Healthcare,IMPERIAL MEDICAL STAFFING LTD,IMP135630,579.56,810 3150 89
Department of Health,CT Revenue Funds,28/09/2016,Agency Nursing,Stoke Heath Prison Healthcare,IMPERIAL MEDICAL STAFFING LTD,IMP135631,579.56,810 3150 89
Department of Health,CT Revenue Funds,28/09/2016,Agency Nursing,Stoke Heath Prison Healthcare,IMPERIAL MEDICAL STAFFING LTD,IMP135632,579.56,810 3150 89
Department of Health,CT Revenue Funds,22/09/2016,Agency Nursing,CAMHS Learning Disabilities,REMEDY RECRUITMENT GROUP LTD,RP127124,1550.7,
Department of Health,CT Revenue Funds,22/09/2016,Agency Nursing,CAMHS Learning Disabilities,REMEDY RECRUITMENT GROUP LTD,RP127124,310.14,
Department of Health,CT Revenue Funds,22/09/2016,Agency Nursing,CAMHS Learning Disabilities,REMEDY RECRUITMENT GROUP LTD,RP127417,1267.65,
Department of Health,CT Revenue Funds,22/09/2016,Agency Nursing,CAMHS Learning Disabilities,REMEDY RECRUITMENT GROUP LTD,RP127417,253.53,
Department of Health,CT Revenue Funds,28/09/2016,Agency Nursing,CAMHS Learning Disabilities,REMEDY RECRUITMENT GROUP LTD,RP127837,313.92,
Department of Health,CT Revenue Funds,28/09/2016,Agency Nursing,CAMHS Learning Disabilities,REMEDY RECRUITMENT GROUP LTD,RP127837,1569.6,
Department of Health,CT Revenue Funds,28/09/2016,Agency Nursing,CAMHS Learning Disabilities,REMEDY RECRUITMENT GROUP LTD,RP128299,308.43,
Department of Health,CT Revenue Funds,28/09/2016,Agency Nursing,CAMHS Learning Disabilities,REMEDY RECRUITMENT GROUP LTD,RP128299,1542.15,
Department of Health,CT Revenue Funds,01/09/2016,Agency Nursing,Shropshire CAMHS Team,JCJ LTD,SWP5597225,300,
Department of Health,CT Revenue Funds,01/09/2016,Agency Nursing,Shropshire CAMHS Team,JCJ LTD,SWP5597225,1500,
Department of Health,CT Revenue Funds,15/09/2016,Agency Nursing,Shropshire CAMHS Team,JCJ LTD,SWP5599164,229.36,
Department of Health,CT Revenue Funds,15/09/2016,Agency Nursing,Shropshire CAMHS Team,JCJ LTD,SWP5599164,1146.8,
Department of Health,CT Revenue Funds,22/09/2016,Agency Nursing,Shropshire CAMHS Team,JCJ LTD,SWP5600146,296,
Department of Health,CT Revenue Funds,22/09/2016,Agency Nursing,Shropshire CAMHS Team,JCJ LTD,SWP5600146,1480,
Department of Health,CT Revenue Funds,22/09/2016,Agency Nursing,Shropshire CAMHS Team,JCJ LTD,SWP56011461,300,
Department of Health,CT Revenue Funds,22/09/2016,Agency Nursing,Shropshire CAMHS Team,JCJ LTD,SWP56011461,1500,
Department of Health,CT Revenue Funds,15/09/2016,Agency PAMs,ICS South East,RIG MEDICAL RECRUIT LTD,3004040,-260.75,928 2047 24
Department of Health,CT Revenue Funds,15/09/2016,Agency PAMs,ICS South East,RIG MEDICAL RECRUIT LTD,3004040,-1303.74,928 2047 24
Department of Health,CT Revenue Funds,15/09/2016,Agency PAMs,Shropshire CAMHS Team,PULSE,3600836,1417.88,676 2854 93
Department of Health,CT Revenue Funds,15/09/2016,Agency PAMs,Shropshire CAMHS Team,PULSE,3600836,283.58,676 2854 93
Department of Health,CT Revenue Funds,22/09/2016,Agency PAMs,Shropshire CAMHS Team,PULSE,3609497,1342.26,676 2854 93
Department of Health,CT Revenue Funds,22/09/2016,Agency PAMs,Shropshire CAMHS Team,PULSE,3609497,268.45,676 2854 93
Department of Health,CT Revenue Funds,15/09/2016,Agency PAMs,ICS South East,RIG MEDICAL RECRUIT LTD,5100160,260.75,928 2047 24
Department of Health,CT Revenue Funds,15/09/2016,Agency PAMs,ICS South East,RIG MEDICAL RECRUIT LTD,5100160,1303.74,928 2047 24
Department of Health,CT Revenue Funds,15/09/2016,Agency PAMs,ICS South East,RIG MEDICAL RECRUIT LTD,5100235,1326.07,928 2047 24
Department of Health,CT Revenue Funds,15/09/2016,Agency PAMs,ICS South East,RIG MEDICAL RECRUIT LTD,5100235,265.22,928 2047 24
Department of Health,CT Revenue Funds,15/09/2016,Agency PAMs,ICS North West,LONDON TEACHING POOL LTD,549384,167.4,
Department of Health,CT Revenue Funds,15/09/2016,Agency PAMs,ICS North West,LONDON TEACHING POOL LTD,549384,837,
Department of Health,CT Revenue Funds,15/09/2016,Agency PAMs,ICS Central,PIERS MEADOWS RECRUITMENT,6050541,3440.87,946 2606 12
Department of Health,CT Revenue Funds,15/09/2016,Agency PAMs,ICS Central,PIERS MEADOWS RECRUITMENT,6050541,688.17,946 2606 12
Department of Health,CT Revenue Funds,15/09/2016,Agency PAMs,ICS Central,PIERS MEADOWS RECRUITMENT,6051938,289.92,946 2606 12
Department of Health,CT Revenue Funds,15/09/2016,Agency PAMs,ICS Central,PIERS MEADOWS RECRUITMENT,6051938,1449.62,946 2606 12
Department of Health,CT Revenue Funds,15/09/2016,Agency PAMs,ICS Central,PIERS MEADOWS RECRUITMENT,6052636,774.67,946 2606 12
Department of Health,CT Revenue Funds,15/09/2016,Agency PAMs,ICS Central,PIERS MEADOWS RECRUITMENT,6052636,154.93,946 2606 12
Department of Health,CT Revenue Funds,15/09/2016,Agency PAMs,ICS Central,PIERS MEADOWS RECRUITMENT,6060243,244.06,946 2606 12
Department of Health,CT Revenue Funds,15/09/2016,Agency PAMs,ICS Central,PIERS MEADOWS RECRUITMENT,6060243,1220.27,946 2606 12
Department of Health,CT Revenue Funds,15/09/2016,Agency PAMs,ICS Central,PIERS MEADOWS RECRUITMENT,6060942,371.46,946 2606 12
Department of Health,CT Revenue Funds,15/09/2016,Agency PAMs,ICS Central,PIERS MEADOWS RECRUITMENT,6060942,1857.28,946 2606 12
Department of Health,CT Revenue Funds,15/09/2016,Agency PAMs,ICS Central,PIERS MEADOWS RECRUITMENT,6061641,259.5,946 2606 12
Department of Health,CT Revenue Funds,15/09/2016,Agency PAMs,ICS Central,PIERS MEADOWS RECRUITMENT,6061641,1297.48,946 2606 12
Department of Health,CT Revenue Funds,15/09/2016,Agency PAMs,ICS Central,PIERS MEADOWS RECRUITMENT,6062340,1290.95,946 2606 12
Department of Health,CT Revenue Funds,15/09/2016,Agency PAMs,ICS Central,PIERS MEADOWS RECRUITMENT,6062340,258.19,946 2606 12
Department of Health,CT Revenue Funds,15/09/2016,Agency PAMs,ICS Central,PIERS MEADOWS RECRUITMENT,6063037,251.82,946 2606 12
Department of Health,CT Revenue Funds,15/09/2016,Agency PAMs,ICS Central,PIERS MEADOWS RECRUITMENT,6063037,1259.11,946 2606 12
Department of Health,CT Revenue Funds,15/09/2016,Agency PAMs,ICS Central,PIERS MEADOWS RECRUITMENT,6070738,1229.14,946 2606 12
Department of Health,CT Revenue Funds,15/09/2016,Agency PAMs,ICS Central,PIERS MEADOWS RECRUITMENT,6070738,245.83,946 2606 12
Department of Health,CT Revenue Funds,15/09/2016,Agency PAMs,ICS Central,PIERS MEADOWS RECRUITMENT,6071433,246.95,946 2606 12
Department of Health,CT Revenue Funds,15/09/2016,Agency PAMs,ICS Central,PIERS MEADOWS RECRUITMENT,6071433,1234.74,946 2606 12
Department of Health,CT Revenue Funds,15/09/2016,Agency PAMs,ICS Central,PIERS MEADOWS RECRUITMENT,6072136,206.98,946 2606 12
Department of Health,CT Revenue Funds,15/09/2016,Agency PAMs,ICS Central,PIERS MEADOWS RECRUITMENT,6072136,1034.9,946 2606 12
Department of Health,CT Revenue Funds,15/09/2016,Agency PAMs,ICS Central,PIERS MEADOWS RECRUITMENT,6072835,1709.37,946 2606 12
Department of Health,CT Revenue Funds,15/09/2016,Agency PAMs,ICS Central,PIERS MEADOWS RECRUITMENT,6072835,341.88,946 2606 12
Department of Health,CT Revenue Funds,15/09/2016,Agency PAMs,ICS Central,PIERS MEADOWS RECRUITMENT,6080431,208.94,946 2606 12
Department of Health,CT Revenue Funds,15/09/2016,Agency PAMs,ICS Central,PIERS MEADOWS RECRUITMENT,6080431,1044.7,946 2606 12
Department of Health,CT Revenue Funds,15/09/2016,Agency PAMs,ICS Central,PIERS MEADOWS RECRUITMENT,6081129,342.06,946 2606 12
Department of Health,CT Revenue Funds,15/09/2016,Agency PAMs,ICS Central,PIERS MEADOWS RECRUITMENT,6081129,1710.31,946 2606 12
Department of Health,CT Revenue Funds,15/09/2016,Agency PAMs,ICS Central,PIERS MEADOWS RECRUITMENT,6081828,1239.41,946 2606 12
Department of Health,CT Revenue Funds,15/09/2016,Agency PAMs,ICS Central,PIERS MEADOWS RECRUITMENT,6081828,247.88,946 2606 12
Department of Health,CT Revenue Funds,15/09/2016,Agency PAMs,ICS Central,PIERS MEADOWS RECRUITMENT,6082527,258.84,946 2606 12
Department of Health,CT Revenue Funds,15/09/2016,Agency PAMs,ICS Central,PIERS MEADOWS RECRUITMENT,6082527,1294.22,946 2606 12
Department of Health,CT Revenue Funds,15/09/2016,Agency PAMs,ICS Central,PIERS MEADOWS RECRUITMENT,6090126,1067.67,946 2606 12
Department of Health,CT Revenue Funds,15/09/2016,Agency PAMs,ICS Central,PIERS MEADOWS RECRUITMENT,6090126,213.53,946 2606 12
Department of Health,CT Revenue Funds,28/09/2016,Agency PAMs,ICS Central,PIERS MEADOWS RECRUITMENT,6092227,194.28,946 2606 12
Department of Health,CT Revenue Funds,28/09/2016,Agency PAMs,ICS Central,PIERS MEADOWS RECRUITMENT,6092227,971.4,946 2606 12
Department of Health,CT Revenue Funds,15/09/2016,Agency PAMs,ICS Central,CAREPROVIDERS HEALTHCARE,CPR278712,867,
Department of Health,CT Revenue Funds,15/09/2016,Agency PAMs,ICS Central,CAREPROVIDERS HEALTHCARE,CPR278712,173.4,
Department of Health,CT Revenue Funds,22/09/2016,Agency PAMs,ICS North East,DAYWEBSTER GROUP,DW102650,161.5,
Department of Health,CT Revenue Funds,22/09/2016,Agency PAMs,ICS North East,DAYWEBSTER GROUP,DW102650,807.5,
Department of Health,CT Revenue Funds,15/09/2016,Agency PAMs,ICS Central,SUGARMAN GROUP LTD,TM380970,112.28,
Department of Health,CT Revenue Funds,15/09/2016,Agency PAMs,ICS Central,SUGARMAN GROUP LTD,TM380970,561.4,
Department of Health,CT Revenue Funds,01/09/2016,Agency PAMs,ICS South West,YOUR WORLD RECRUITMENT LTD,YWR20097,1755.61,
Department of Health,CT Revenue Funds,01/09/2016,Agency PAMs,ICS South West,YOUR WORLD RECRUITMENT LTD,YWR20097,351.12,
Department of Health,CT Revenue Funds,22/09/2016,Agency PAMs,ICS South West,YOUR WORLD RECRUITMENT LTD,YWR21003,133.34,
Department of Health,CT Revenue Funds,22/09/2016,Agency PAMs,ICS South West,YOUR WORLD RECRUITMENT LTD,YWR21003,666.68,
Department of Health,CT Revenue Funds,22/09/2016,Agency PAMs,ICS South West,YOUR WORLD RECRUITMENT LTD,YWR22268,177.78,
Department of Health,CT Revenue Funds,22/09/2016,Agency PAMs,ICS South West,YOUR WORLD RECRUITMENT LTD,YWR22268,888.9,
Department of Health,CT Revenue Funds,08/09/2016,ANAES : Accessories & Equipment,Community Childrens Nurses,GB UK HEALTHCARE LTD,0000070460,19.6,933 1964 16
Department of Health,CT Revenue Funds,08/09/2016,ANAES : Accessories & Equipment,Community Childrens Nurses,GB UK HEALTHCARE LTD,0000070460,98,933 1964 16
Department of Health,CT Revenue Funds,08/09/2016,ANAES : Accessories & Equipment,Community Childrens Nurses,GB UK HEALTHCARE LTD,0000070486,98,933 1964 16
Department of Health,CT Revenue Funds,08/09/2016,ANAES : Accessories & Equipment,Community Childrens Nurses,GB UK HEALTHCARE LTD,0000070486,19.6,933 1964 16
Department of Health,CT Revenue Funds,08/09/2016,ANAES : Accessories & Equipment,Community Childrens Nurses,GB UK HEALTHCARE LTD,0000070546,19.6,933 1964 16
Department of Health,CT Revenue Funds,08/09/2016,ANAES : Accessories & Equipment,Community Childrens Nurses,GB UK HEALTHCARE LTD,0000070546,98,933 1964 16
Department of Health,CT Revenue Funds,08/09/2016,ANAES : Accessories & Equipment,Community Childrens Nurses,GB UK HEALTHCARE LTD,0000070548,85,933 1964 16
Department of Health,CT Revenue Funds,08/09/2016,ANAES : Accessories & Equipment,Community Childrens Nurses,GB UK HEALTHCARE LTD,0000070548,17,933 1964 16
Department of Health,CT Revenue Funds,08/09/2016,ANAES : Accessories & Equipment,Community Childrens Nurses,GB UK HEALTHCARE LTD,0000070909,98,933 1964 16
Department of Health,CT Revenue Funds,08/09/2016,ANAES : Accessories & Equipment,Community Childrens Nurses,GB UK HEALTHCARE LTD,0000070909,19.6,933 1964 16
Department of Health,CT Revenue Funds,08/09/2016,ANAES : Accessories & Equipment,Community Childrens Nurses,GB UK HEALTHCARE LTD,0000070948,19.6,933 1964 16
Department of Health,CT Revenue Funds,08/09/2016,ANAES : Accessories & Equipment,Community Childrens Nurses,GB UK HEALTHCARE LTD,0000070948,98,933 1964 16
Department of Health,CT Revenue Funds,09/09/2016,ANAES : Accessories & Equipment,Community Childrens Nurses,NHS SUPPLY CHAIN,1017105555,9.45,654 4347 29
Department of Health,CT Revenue Funds,09/09/2016,ANAES : Accessories & Equipment,Telford North Community Nursing,NHS SUPPLY CHAIN,1017105555,1.74,654 4347 29
Department of Health,CT Revenue Funds,09/09/2016,ANAES : Accessories & Equipment,Telford North Community Nursing,NHS SUPPLY CHAIN,1017105555,8.7,654 4347 29
Department of Health,CT Revenue Funds,09/09/2016,ANAES : Accessories & Equipment,Respiratory Liaison Nurses (T&W),NHS SUPPLY CHAIN,1017105555,69.25,654 4347 29
Department of Health,CT Revenue Funds,09/09/2016,ANAES : Accessories & Equipment,Respiratory Liaison Nurses (T&W),NHS SUPPLY CHAIN,1017105555,66.38,654 4347 29
Department of Health,CT Revenue Funds,09/09/2016,ANAES : Accessories & Equipment,Community Childrens Nurses,NHS SUPPLY CHAIN,1017105555,48.72,654 4347 29
Department of Health,CT Revenue Funds,09/09/2016,ANAES : Accessories & Equipment,Community Childrens Nurses,NHS SUPPLY CHAIN,1017105555,80.61,654 4347 29
Department of Health,CT Revenue Funds,09/09/2016,ANAES : Accessories & Equipment,Telford North Community Nursing,NHS SUPPLY CHAIN,1017105555,0.01,654 4347 29
Department of Health,CT Revenue Funds,09/09/2016,ANAES : Accessories & Equipment,Respiratory Liaison Nurses (T&W),NHS SUPPLY CHAIN,1017105555,13.28,654 4347 29
Department of Health,CT Revenue Funds,09/09/2016,ANAES : Accessories & Equipment,Community Childrens Nurses,NHS SUPPLY CHAIN,1017105555,243.6,654 4347 29
Department of Health,CT Revenue Funds,09/09/2016,ANAES : Accessories & Equipment,Community Childrens Nurses,NHS SUPPLY CHAIN,1017105555,0.4,654 4347 29
Department of Health,CT Revenue Funds,09/09/2016,ANAES : Accessories & Equipment,Community Childrens Nurses,NHS SUPPLY CHAIN,1017105555,16.12,654 4347 29
Department of Health,CT Revenue Funds,09/09/2016,ANAES : Accessories & Equipment,Respiratory Liaison Nurses (T&W),NHS SUPPLY CHAIN,1017105555,13.85,654 4347 29
Department of Health,CT Revenue Funds,09/09/2016,ANAES : Accessories & Equipment,Community Childrens Nurses,NHS SUPPLY CHAIN,1017105555,47.23,654 4347 29
Department of Health,CT Revenue Funds,09/09/2016,ANAES : Accessories & Equipment,Community Childrens Nurses,NHS SUPPLY CHAIN,1017105555,0.08,654 4347 29
Department of Health,CT Revenue Funds,20/09/2016,ANAES : Accessories & Equipment,Community Childrens Nurses,NHS SUPPLY CHAIN,1017110056,57.78,654 4347 29
Department of Health,CT Revenue Funds,20/09/2016,ANAES : Accessories & Equipment,Community Childrens Nurses,NHS SUPPLY CHAIN,1017110056,243.6,654 4347 29
Department of Health,CT Revenue Funds,20/09/2016,ANAES : Accessories & Equipment,Community Childrens Nurses,NHS SUPPLY CHAIN,1017110056,0.08,654 4347 29
Department of Health,CT Revenue Funds,20/09/2016,ANAES : Accessories & Equipment,Community Childrens Nurses,NHS SUPPLY CHAIN,1017110056,0.4,654 4347 29
Department of Health,CT Revenue Funds,20/09/2016,ANAES : Accessories & Equipment,Community Childrens Nurses,NHS SUPPLY CHAIN,1017110056,48.72,654 4347 29
Department of Health,CT Revenue Funds,20/09/2016,ANAES : Accessories & Equipment,Community Childrens Nurses,NHS SUPPLY CHAIN,1017110056,11.56,654 4347 29
Department of Health,CT Revenue Funds,20/09/2016,ANAES : Accessories & Equipment,Community Childrens Nurses,NHS SUPPLY CHAIN,1017114088,31.29,654 4347 29
Department of Health,CT Revenue Funds,20/09/2016,ANAES : Accessories & Equipment,Community Childrens Nurses,NHS SUPPLY CHAIN,1017114088,59.89,654 4347 29
Department of Health,CT Revenue Funds,20/09/2016,ANAES : Accessories & Equipment,Community Childrens Nurses,NHS SUPPLY CHAIN,1017114088,6.26,654 4347 29
Department of Health,CT Revenue Funds,20/09/2016,ANAES : Accessories & Equipment,Special Care and Access,NHS SUPPLY CHAIN,1017114088,6.4,654 4347 29
Department of Health,CT Revenue Funds,20/09/2016,ANAES : Accessories & Equipment,Community Childrens Nurses,NHS SUPPLY CHAIN,1017114088,59.89,654 4347 29
Department of Health,CT Revenue Funds,20/09/2016,ANAES : Accessories & Equipment,Community Childrens Nurses,NHS SUPPLY CHAIN,1017114088,11.98,654 4347 29
Department of Health,CT Revenue Funds,20/09/2016,ANAES : Accessories & Equipment,Community Childrens Nurses,NHS SUPPLY CHAIN,1017114088,85.26,654 4347 29
Department of Health,CT Revenue Funds,20/09/2016,ANAES : Accessories & Equipment,Ludlow Hospital Minor Injuries Unit,NHS SUPPLY CHAIN,1017114088,7.1,654 4347 29
Department of Health,CT Revenue Funds,20/09/2016,ANAES : Accessories & Equipment,Special Care and Access,NHS SUPPLY CHAIN,1017114088,32,654 4347 29
Department of Health,CT Revenue Funds,20/09/2016,ANAES : Accessories & Equipment,Community Childrens Nurses,NHS SUPPLY CHAIN,1017114088,0.14,654 4347 29
Department of Health,CT Revenue Funds,20/09/2016,ANAES : Accessories & Equipment,Community Childrens Nurses,NHS SUPPLY CHAIN,1017114088,9.45,654 4347 29
Department of Health,CT Revenue Funds,20/09/2016,ANAES : Accessories & Equipment,Community Childrens Nurses,NHS SUPPLY CHAIN,1017114088,11.98,654 4347 29
Department of Health,CT Revenue Funds,20/09/2016,ANAES : Accessories & Equipment,Ludlow Hospital Minor Injuries Unit,NHS SUPPLY CHAIN,1017114088,1.42,654 4347 29
Department of Health,CT Revenue Funds,20/09/2016,ANAES : Accessories & Equipment,Community Childrens Nurses,NHS SUPPLY CHAIN,1017114088,-0.01,654 4347 29
Department of Health,CT Revenue Funds,20/09/2016,ANAES : Accessories & Equipment,Community Childrens Nurses,NHS SUPPLY CHAIN,1017114088,90,654 4347 29
Department of Health,CT Revenue Funds,20/09/2016,ANAES : Accessories & Equipment,Community Childrens Nurses,NHS SUPPLY CHAIN,1017114088,426.3,654 4347 29
Department of Health,CT Revenue Funds,20/09/2016,ANAES : Accessories & Equipment,Community Childrens Nurses,NHS SUPPLY CHAIN,1017114088,47.23,654 4347 29
Department of Health,CT Revenue Funds,20/09/2016,ANAES : Accessories & Equipment,Community Childrens Nurses,NHS SUPPLY CHAIN,1017114088,94.46,654 4347 29
Department of Health,CT Revenue Funds,20/09/2016,ANAES : Accessories & Equipment,Community Childrens Nurses,NHS SUPPLY CHAIN,1017114088,18,654 4347 29
Department of Health,CT Revenue Funds,20/09/2016,ANAES : Accessories & Equipment,Community Childrens Nurses,NHS SUPPLY CHAIN,1017114088,18.89,654 4347 29
Department of Health,CT Revenue Funds,20/09/2016,ANAES : Accessories & Equipment,Community Childrens Nurses,NHS SUPPLY CHAIN,1017114088,0.7,654 4347 29
Department of Health,CT Revenue Funds,20/09/2016,ANAES : Accessories & Equipment,Ludlow Hospital Minor Injuries Unit,NHS SUPPLY CHAIN,1017114088,-0.02,654 4347 29
Department of Health,CT Revenue Funds,29/09/2016,ANAES : Accessories & Equipment,Community Childrens Nurses,NHS SUPPLY CHAIN,1017120186,0.98,654 4347 29
Department of Health,CT Revenue Funds,29/09/2016,ANAES : Accessories & Equipment,Community Childrens Nurses,NHS SUPPLY CHAIN,1017120186,6.54,654 4347 29
Department of Health,CT Revenue Funds,29/09/2016,ANAES : Accessories & Equipment,Community Childrens Nurses,NHS SUPPLY CHAIN,1017120186,0.08,654 4347 29
Department of Health,CT Revenue Funds,29/09/2016,ANAES : Accessories & Equipment,Ludlow Hospital Minor Injuries Unit,NHS SUPPLY CHAIN,1017120186,-1.82,654 4347 29
Department of Health,CT Revenue Funds,29/09/2016,ANAES : Accessories & Equipment,Community Childrens Nurses,NHS SUPPLY CHAIN,1017120186,243.6,654 4347 29
Department of Health,CT Revenue Funds,29/09/2016,ANAES : Accessories & Equipment,Ludlow Hospital Minor Injuries Unit,NHS SUPPLY CHAIN,1017120186,-0.36,654 4347 29
Department of Health,CT Revenue Funds,29/09/2016,ANAES : Accessories & Equipment,Ludlow Hospital Minor Injuries Unit,NHS SUPPLY CHAIN,1017120186,10.9,654 4347 29
Department of Health,CT Revenue Funds,29/09/2016,ANAES : Accessories & Equipment,Community Childrens Nurses,NHS SUPPLY CHAIN,1017120186,0.4,654 4347 29
Department of Health,CT Revenue Funds,29/09/2016,ANAES : Accessories & Equipment,Community Childrens Nurses,NHS SUPPLY CHAIN,1017120186,0.2,654 4347 29
Department of Health,CT Revenue Funds,29/09/2016,ANAES : Accessories & Equipment,Community Childrens Nurses,NHS SUPPLY CHAIN,1017120186,48.72,654 4347 29
Department of Health,CT Revenue Funds,29/09/2016,ANAES : Accessories & Equipment,Community Childrens Nurses,NHS SUPPLY CHAIN,1017120186,32.69,654 4347 29
Department of Health,CT Revenue Funds,29/09/2016,ANAES : Accessories & Equipment,Ludlow Hospital Minor Injuries Unit,NHS SUPPLY CHAIN,1017120186,2.18,654 4347 29
Department of Health,CT Revenue Funds,08/09/2016,ANAES : Accessories & Equipment,Community Childrens Nurses,VYGON (UK) LTD,116054192,4282.5,484 9305 15
Department of Health,CT Revenue Funds,08/09/2016,ANAES : Accessories & Equipment,Community Childrens Nurses,VYGON (UK) LTD,116054192,856.5,484 9305 15
Department of Health,CT Revenue Funds,08/09/2016,ANAES : Accessories & Equipment,Community Childrens Nurses,VYGON (UK) LTD,116054192,-856.5,484 9305 15
Department of Health,CT Revenue Funds,22/09/2016,ANAES : Accessories & Equipment,North East Shropshire Interdisciplinary Teams,B&D ELECTROMEDICAL LTD,54214,30,551 3055 73
Department of Health,CT Revenue Funds,22/09/2016,ANAES : Accessories & Equipment,North East Shropshire Interdisciplinary Teams,B&D ELECTROMEDICAL LTD,54214,150,551 3055 73
Department of Health,CT Revenue Funds,22/09/2016,ANAES : Accessories & Equipment,North East Shropshire Interdisciplinary Teams,B&D ELECTROMEDICAL LTD,54214,30,551 3055 73
Department of Health,CT Revenue Funds,22/09/2016,ANAES : Accessories & Equipment,North East Shropshire Interdisciplinary Teams,B&D ELECTROMEDICAL LTD,54214,6,551 3055 73
Department of Health,CT Revenue Funds,01/09/2016,ANAES : Accessories & Equipment,Community Childrens Nurses,ATOS MEDICAL,89258,26.88,
Department of Health,CT Revenue Funds,01/09/2016,ANAES : Accessories & Equipment,Community Childrens Nurses,ATOS MEDICAL,89258,134.4,
Department of Health,CT Revenue Funds,01/09/2016,ANAES : Accessories & Equipment,Community Childrens Nurses,ATOS MEDICAL,89285,174,
Department of Health,CT Revenue Funds,01/09/2016,ANAES : Accessories & Equipment,Community Childrens Nurses,ATOS MEDICAL,89285,34.8,
Department of Health,CT Revenue Funds,08/09/2016,ANAES : Accessories & Equipment,Community Childrens Nurses,VYGON (UK) LTD,916001135,-2,484 9305 15
Department of Health,CT Revenue Funds,08/09/2016,ANAES : Accessories & Equipment,Community Childrens Nurses,VYGON (UK) LTD,916001135,2,484 9305 15
Department of Health,CT Revenue Funds,08/09/2016,ANAES : Accessories & Equipment,Community Childrens Nurses,VYGON (UK) LTD,916001135,-2,484 9305 15
Department of Health,CT Revenue Funds,08/09/2016,ANAES : Accessories & Equipment,Community Childrens Nurses,VYGON (UK) LTD,916001135,2,484 9305 15
Department of Health,CT Revenue Funds,08/09/2016,ANAES : Accessories & Equipment,Community Childrens Nurses,VYGON (UK) LTD,916001135,-10,484 9305 15
Department of Health,CT Revenue Funds,09/09/2016,Analysers,South West Interdisciplinary Teams,NHS SUPPLY CHAIN,1017105555,20.76,654 4347 29
Department of Health,CT Revenue Funds,09/09/2016,Analysers,South West Interdisciplinary Teams,NHS SUPPLY CHAIN,1017105555,0.01,654 4347 29
Department of Health,CT Revenue Funds,09/09/2016,Analysers,South West Interdisciplinary Teams,NHS SUPPLY CHAIN,1017105555,4.15,654 4347 29
Department of Health,CT Revenue Funds,09/09/2016,Analysers,South West Interdisciplinary Teams,NHS SUPPLY CHAIN,1017105555,6.23,654 4347 29
Department of Health,CT Revenue Funds,09/09/2016,Analysers,South West Interdisciplinary Teams,NHS SUPPLY CHAIN,1017105555,31.14,654 4347 29
Department of Health,CT Revenue Funds,09/09/2016,Analysers,South West Interdisciplinary Teams,NHS SUPPLY CHAIN,1017105555,9.88,654 4347 29
Department of Health,CT Revenue Funds,09/09/2016,Analysers,South West Interdisciplinary Teams,NHS SUPPLY CHAIN,1017105555,0.01,654 4347 29
Department of Health,CT Revenue Funds,09/09/2016,Analysers,South West Interdisciplinary Teams,NHS SUPPLY CHAIN,1017105555,1.98,654 4347 29
Department of Health,CT Revenue Funds,20/09/2016,Analysers,Whitchurch Hospital Minor Injuries Unit,NHS SUPPLY CHAIN,1017110056,0.99,654 4347 29
Department of Health,CT Revenue Funds,20/09/2016,Analysers,Ludlow Hospital Inpatient Wards,NHS SUPPLY CHAIN,1017110056,30.98,654 4347 29
Department of Health,CT Revenue Funds,20/09/2016,Analysers,South East Interdisciplinary Teams,NHS SUPPLY CHAIN,1017110056,46.62,654 4347 29
Department of Health,CT Revenue Funds,20/09/2016,Analysers,Ludlow Hospital Inpatient Wards,NHS SUPPLY CHAIN,1017110056,6.2,654 4347 29
Department of Health,CT Revenue Funds,20/09/2016,Analysers,South East Interdisciplinary Teams,NHS SUPPLY CHAIN,1017110056,0.01,654 4347 29
Department of Health,CT Revenue Funds,20/09/2016,Analysers,Community Childrens Nurses,NHS SUPPLY CHAIN,1017110056,3.37,654 4347 29
Department of Health,CT Revenue Funds,20/09/2016,Analysers,South East Interdisciplinary Teams,NHS SUPPLY CHAIN,1017110056,9.33,654 4347 29
Department of Health,CT Revenue Funds,20/09/2016,Analysers,Whitchurch Hospital Minor Injuries Unit,NHS SUPPLY CHAIN,1017110056,4.94,654 4347 29
Department of Health,CT Revenue Funds,20/09/2016,Analysers,Community Childrens Nurses,NHS SUPPLY CHAIN,1017110056,16.85,654 4347 29
Department of Health,CT Revenue Funds,20/09/2016,Analysers,North East Shropshire Interdisciplinary Teams,NHS SUPPLY CHAIN,1017114088,5.7,654 4347 29
Department of Health,CT Revenue Funds,20/09/2016,Analysers,South West Interdisciplinary Teams,NHS SUPPLY CHAIN,1017114088,20.76,654 4347 29
Department of Health,CT Revenue Funds,20/09/2016,Analysers,North East Shropshire Interdisciplinary Teams,NHS SUPPLY CHAIN,1017114088,1.14,654 4347 29
Department of Health,CT Revenue Funds,20/09/2016,Analysers,Ludlow Hospital Inpatient Wards,NHS SUPPLY CHAIN,1017114088,1.19,654 4347 29
Department of Health,CT Revenue Funds,20/09/2016,Analysers,South West Interdisciplinary Teams,NHS SUPPLY CHAIN,1017114088,0.01,654 4347 29
Department of Health,CT Revenue Funds,20/09/2016,Analysers,South West Interdisciplinary Teams,NHS SUPPLY CHAIN,1017114088,4.15,654 4347 29
Department of Health,CT Revenue Funds,20/09/2016,Analysers,Ludlow Hospital Inpatient Wards,NHS SUPPLY CHAIN,1017114088,0.24,654 4347 29
Department of Health,CT Revenue Funds,20/09/2016,Analysers,Telford South Community Nursing,NHS SUPPLY CHAIN,1017114088,24.7,654 4347 29
Department of Health,CT Revenue Funds,20/09/2016,Analysers,Telford South Community Nursing,NHS SUPPLY CHAIN,1017114088,4.94,654 4347 29
Department of Health,CT Revenue Funds,20/09/2016,Analysers,Telford South Community Nursing,NHS SUPPLY CHAIN,1017114088,0.01,654 4347 29
Department of Health,CT Revenue Funds,09/09/2016,Audiology From Other NHS Bodies,Child Audiology,SHREWSBURY AND TELFORD HOSPITAL NHS TRUST,10111700,8261.13,
Department of Health,CT Revenue Funds,20/09/2016,Audiology From Other NHS Bodies,APCS ENT,SHREWSBURY AND TELFORD HOSPITAL NHS TRUST,10111809,392.13,
Department of Health,CT Revenue Funds,20/09/2016,Audiology From Other NHS Bodies,APCS ENT,SHREWSBURY AND TELFORD HOSPITAL NHS TRUST,10111810,522.84,
Department of Health,CT Revenue Funds,01/09/2016,Audit Fees : Internal,Finance Directorate Management,RSM RISK ASSURANCE SERVICES LLP,1529647,2500,769 0165 10
Department of Health,CT Revenue Funds,22/09/2016,Audit Fees : Statutory,Finance Directorate Management,GRANT THORNTON,8591190,1687.6,
Department of Health,CT Revenue Funds,22/09/2016,Audit Fees : Statutory,Finance Directorate Management,GRANT THORNTON,8591190,8438,
Department of Health,CT Revenue Funds,22/09/2016,Awards,Tissue Viability Nurses (T&W),MRS JOY TICKLE,REFUND-VOUCHERS 14/4/16 CONFERENCE,250,
Department of Health,CT Revenue Funds,09/09/2016,Bags Sacks,Whitchurch Hospital Inpatient Ward,NHS SUPPLY CHAIN,1017105555,0.01,654 4347 29
Department of Health,CT Revenue Funds,09/09/2016,Bags Sacks,Whitchurch Hospital Inpatient Ward,NHS SUPPLY CHAIN,1017105555,-0.02,654 4347 29
Department of Health,CT Revenue Funds,09/09/2016,Bags Sacks,Whitchurch Hospital Inpatient Ward,NHS SUPPLY CHAIN,1017105555,2.23,654 4347 29
Department of Health,CT Revenue Funds,09/09/2016,Bags Sacks,South West Interdisciplinary Teams,NHS SUPPLY CHAIN,1017105555,1.7,654 4347 29
Department of Health,CT Revenue Funds,09/09/2016,Bags Sacks,South West Interdisciplinary Teams,NHS SUPPLY CHAIN,1017105555,8.68,654 4347 29
Department of Health,CT Revenue Funds,09/09/2016,Bags Sacks,Ludlow Hospital Inpatient Wards,NHS SUPPLY CHAIN,1017105555,0.34,654 4347 29
Department of Health,CT Revenue Funds,09/09/2016,Bags Sacks,Whitchurch Hospital Inpatient Ward,NHS SUPPLY CHAIN,1017105555,2.78,654 4347 29
Department of Health,CT Revenue Funds,09/09/2016,Bags Sacks,Whitchurch Hospital Inpatient Ward,NHS SUPPLY CHAIN,1017105555,4.83,654 4347 29
Department of Health,CT Revenue Funds,09/09/2016,Bags Sacks,Bishops Castle Hospital Inpatient Ward,NHS SUPPLY CHAIN,1017105555,5.72,654 4347 29
Department of Health,CT Revenue Funds,09/09/2016,Bags Sacks,Whitchurch Hospital Inpatient Ward,NHS SUPPLY CHAIN,1017105555,1.72,654 4347 29
Department of Health,CT Revenue Funds,09/09/2016,Bags Sacks,Ludlow Hospital Inpatient Wards,NHS SUPPLY CHAIN,1017105555,1.12,654 4347 29
Department of Health,CT Revenue Funds,09/09/2016,Bags Sacks,Ludlow Hospital Inpatient Wards,NHS SUPPLY CHAIN,1017105555,1.44,654 4347 29
Department of Health,CT Revenue Funds,09/09/2016,Bags Sacks,Ludlow Hospital Inpatient Wards,NHS SUPPLY CHAIN,1017105555,0.8,654 4347 29
Department of Health,CT Revenue Funds,09/09/2016,Bags Sacks,Ludlow Hospital Inpatient Wards,NHS SUPPLY CHAIN,1017105555,5.58,654 4347 29
Department of Health,CT Revenue Funds,09/09/2016,Bags Sacks,Ludlow Hospital Hotel Services,NHS SUPPLY CHAIN,1017105555,0.01,654 4347 29
Department of Health,CT Revenue Funds,09/09/2016,Bags Sacks,South West Interdisciplinary Teams,NHS SUPPLY CHAIN,1017105555,1.63,654 4347 29
Department of Health,CT Revenue Funds,09/09/2016,Bags Sacks,Ludlow Hospital Hotel Services,NHS SUPPLY CHAIN,1017105555,21.6,654 4347 29
Department of Health,CT Revenue Funds,09/09/2016,Bags Sacks,Whitchurch Hospital Inpatient Ward,NHS SUPPLY CHAIN,1017105555,11.16,654 4347 29
Department of Health,CT Revenue Funds,09/09/2016,Bags Sacks,South West Interdisciplinary Teams,NHS SUPPLY CHAIN,1017105555,8.16,654 4347 29
Department of Health,CT Revenue Funds,09/09/2016,Bags Sacks,Bishops Castle Hospital Inpatient Ward,NHS SUPPLY CHAIN,1017105555,1.14,654 4347 29
Department of Health,CT Revenue Funds,09/09/2016,Bags Sacks,Ludlow Hospital Hotel Services,NHS SUPPLY CHAIN,1017105555,40.56,654 4347 29
Department of Health,CT Revenue Funds,09/09/2016,Bags Sacks,Whitchurch Hospital Inpatient Ward,NHS SUPPLY CHAIN,1017105555,13.92,654 4347 29
Department of Health,CT Revenue Funds,09/09/2016,Bags Sacks,Whitchurch Hospital Inpatient Ward,NHS SUPPLY CHAIN,1017105555,7.15,654 4347 29
Department of Health,CT Revenue Funds,09/09/2016,Bags Sacks,Whitchurch Hospital Inpatient Ward,NHS SUPPLY CHAIN,1017105555,0.01,654 4347 29
